Workbook

Sheet Data
A1: SURVIVED | B1: PCLASS | C1: NAME | D1: SEX | E1: AGE | F1: SIBSP | G1: PARCH | H1: FARE | I1: EMBARKED
A2: 1 | B2: 1 | C2: Allen, Miss. Elisabeth Walton | D2: female | E2: 29 | F2: 0 | G2: 0 | H2: 211.3375 | I2: S
A3: 1 | B3: 1 | C3: Allison, Master. Hudson Trevor | D3: male | E3: 0.9167 | F3: 1 | G3: 2 | H3: 151.55 | I3: S
A4: 0 | B4: 1 | C4: Allison, Miss. Helen Loraine | D4: female | E4: 2 | F4: 1 | G4: 2 | H4: 151.55 | I4: S
A5: 0 | B5: 1 | C5: Allison, Mr. Hudson Joshua Creighton | D5: male | E5: 30 | F5: 1 | G5: 2 | H5: 151.55 | I5: S
A6: 0 | B6: 1 | C6: Allison, Mrs. Hudson J C (Bessie Waldo Daniels) | D6: female | E6: 25 | F6: 1 | G6: 2 | H6: 151.55 | I6: S
A7: 1 | B7: 1 | C7: Anderson, Mr. Harry | D7: male | E7: 48 | F7: 0 | G7: 0 | H7: 26.55 | I7: S
A8: 1 | B8: 1 | C8: Andrews, Miss. Kornelia Theodosia | D8: female | E8: 63 | F8: 1 | G8: 0 | H8: 77.9583 | I8: S
A9: 0 | B9: 1 | C9: Andrews, Mr. Thomas Jr | D9: male | E9: 39 | F9: 0 | G9: 0 | H9: 0 | I9: S
A10: 1 | B10: 1 | C10: Appleton, Mrs. Edward Dale (Charlotte Lamson) | D10: female | E10: 53 | F10: 2 | G10: 0 | H10: 51.4792 | I10: S
A11: 0 | B11: 1 | C11: Artagaveytia, Mr. Ramon | D11: male | E11: 71 | F11: 0 | G11: 0 | H11: 49.5042 | I11: C
A12: 0 | B12: 1 | C12: Astor, Col. John Jacob | D12: male | E12: 47 | F12: 1 | G12: 0 | H12: 227.525 | I12: C
A13: 1 | B13: 1 | C13: Astor, Mrs. John Jacob (Madeleine Talmadge Force) | D13: female | E13: 18 | F13: 1 | G13: 0 | H13: 227.525 | I13: C
A14: 1 | B14: 1 | C14: Aubart, Mme. Leontine Pauline | D14: female | E14: 24 | F14: 0 | G14: 0 | H14: 69.3 | I14: C
A15: 1 | B15: 1 | C15: Barber, Miss. Ellen "Nellie" | D15: female | E15: 26 | F15: 0 | G15: 0 | H15: 78.85 | I15: S
A16: 1 | B16: 1 | C16: Barkworth, Mr. Algernon Henry Wilson | D16: male | E16: 80 | F16: 0 | G16: 0 | H16: 30 | I16: S
A17: 0 | B17: 1 | C17: Baumann, Mr. John D | D17: male | F17: 0 | G17: 0 | H17: 25.925 | I17: S
A18: 0 | B18: 1 | C18: Baxter, Mr. Quigg Edmond | D18: male | E18: 24 | F18: 0 | G18: 1 | H18: 247.5208 | I18: C
A19: 1 | B19: 1 | C19: Baxter, Mrs. James (Helene DeLaudeniere Chaput) | D19: female | E19: 50 | F19: 0 | G19: 1 | H19: 247.5208 | I19: C
A20: 1 | B20: 1 | C20: Bazzani, Miss. Albina | D20: female | E20: 32 | F20: 0 | G20: 0 | H20: 76.2917 | I20: C
A21: 0 | B21: 1 | C21: Beattie, Mr. Thomson | D21: male | E21: 36 | F21: 0 | G21: 0 | H21: 75.2417 | I21: C
A22: 1 | B22: 1 | C22: Beckwith, Mr. Richard Leonard | D22: male | E22: 37 | F22: 1 | G22: 1 | H22: 52.5542 | I22: S
A23: 1 | B23: 1 | C23: Beckwith, Mrs. Richard Leonard (Sallie Monypeny) | D23: female | E23: 47 | F23: 1 | G23: 1 | H23: 52.5542 | I23: S
A24: 1 | B24: 1 | C24: Behr, Mr. Karl Howell | D24: male | E24: 26 | F24: 0 | G24: 0 | H24: 30 | I24: C
A25: 1 | B25: 1 | C25: Bidois, Miss. Rosalie | D25: female | E25: 42 | F25: 0 | G25: 0 | H25: 227.525 | I25: C
A26: 1 | B26: 1 | C26: Bird, Miss. Ellen | D26: female | E26: 29 | F26: 0 | G26: 0 | H26: 221.7792 | I26: S
A27: 0 | B27: 1 | C27: Birnbaum, Mr. Jakob | D27: male | E27: 25 | F27: 0 | G27: 0 | H27: 26 | I27: C
A28: 1 | B28: 1 | C28: Bishop, Mr. Dickinson H | D28: male | E28: 25 | F28: 1 | G28: 0 | H28: 91.0792 | I28: C
A29: 1 | B29: 1 | C29: Bishop, Mrs. Dickinson H (Helen Walton) | D29: female | E29: 19 | F29: 1 | G29: 0 | H29: 91.0792 | I29: C
A30: 1 | B30: 1 | C30: Bissette, Miss. Amelia | D30: female | E30: 35 | F30: 0 | G30: 0 | H30: 135.6333 | I30: S
A31: 1 | B31: 1 | C31: Bjornstrom-Steffansson, Mr. Mauritz Hakan | D31: male | E31: 28 | F31: 0 | G31: 0 | H31: 26.55 | I31: S
A32: 0 | B32: 1 | C32: Blackwell, Mr. Stephen Weart | D32: male | E32: 45 | F32: 0 | G32: 0 | H32: 35.5 | I32: S
A33: 1 | B33: 1 | C33: Blank, Mr. Henry | D33: male | E33: 40 | F33: 0 | G33: 0 | H33: 31 | I33: C
A34: 1 | B34: 1 | C34: Bonnell, Miss. Caroline | D34: female | E34: 30 | F34: 0 | G34: 0 | H34: 164.8667 | I34: S
A35: 1 | B35: 1 | C35: Bonnell, Miss. Elizabeth | D35: female | E35: 58 | F35: 0 | G35: 0 | H35: 26.55 | I35: S
A36: 0 | B36: 1 | C36: Borebank, Mr. John James | D36: male | E36: 42 | F36: 0 | G36: 0 | H36: 26.55 | I36: S
A37: 1 | B37: 1 | C37: Bowen, Miss. Grace Scott | D37: female | E37: 45 | F37: 0 | G37: 0 | H37: 262.375 | I37: C
A38: 1 | B38: 1 | C38: Bowerman, Miss. Elsie Edith | D38: female | E38: 22 | F38: 0 | G38: 1 | H38: 55 | I38: S
A39: 1 | B39: 1 | C39: Bradley, Mr. George ("George Arthur Brayton") | D39: male | F39: 0 | G39: 0 | H39: 26.55 | I39: S
A40: 0 | B40: 1 | C40: Brady, Mr. John Bertram | D40: male | E40: 41 | F40: 0 | G40: 0 | H40: 30.5 | I40: S
A41: 0 | B41: 1 | C41: Brandeis, Mr. Emil | D41: male | E41: 48 | F41: 0 | G41: 0 | H41: 50.4958 | I41: C
A42: 0 | B42: 1 | C42: Brewe, Dr. Arthur Jackson | D42: male | F42: 0 | G42: 0 | H42: 39.6 | I42: C
A43: 1 | B43: 1 | C43: Brown, Mrs. James Joseph (Margaret Tobin) | D43: female | E43: 44 | F43: 0 | G43: 0 | H43: 27.7208 | I43: C
A44: 1 | B44: 1 | C44: Brown, Mrs. John Murray (Caroline Lane Lamson) | D44: female | E44: 59 | F44: 2 | G44: 0 | H44: 51.4792 | I44: S
A45: 1 | B45: 1 | C45: Bucknell, Mrs. William Robert (Emma Eliza Ward) | D45: female | E45: 60 | F45: 0 | G45: 0 | H45: 76.2917 | I45: C
A46: 1 | B46: 1 | C46: Burns, Miss. Elizabeth Margaret | D46: female | E46: 41 | F46: 0 | G46: 0 | H46: 134.5 | I46: C
A47: 0 | B47: 1 | C47: Butt, Major. Archibald Willingham | D47: male | E47: 45 | F47: 0 | G47: 0 | H47: 26.55 | I47: S
A48: 0 | B48: 1 | C48: Cairns, Mr. Alexander | D48: male | F48: 0 | G48: 0 | H48: 31 | I48: S
A49: 1 | B49: 1 | C49: Calderhead, Mr. Edward Pennington | D49: male | E49: 42 | F49: 0 | G49: 0 | H49: 26.2875 | I49: S
A50: 1 | B50: 1 | C50: Candee, Mrs. Edward (Helen Churchill Hungerford) | D50: female | E50: 53 | F50: 0 | G50: 0 | H50: 27.4458 | I50: C
A51: 1 | B51: 1 | C51: Cardeza, Mr. Thomas Drake Martinez | D51: male | E51: 36 | F51: 0 | G51: 1 | H51: 512.3292 | I51: C
A52: 1 | B52: 1 | C52: Cardeza, Mrs. James Warburton Martinez (Charlotte Wardle Drake) | D52: female | E52: 58 | F52: 0 | G52: 1 | H52: 512.3292 | I52: C
A53: 0 | B53: 1 | C53: Carlsson, Mr. Frans Olof | D53: male | E53: 33 | F53: 0 | G53: 0 | H53: 5 | I53: S
A54: 0 | B54: 1 | C54: Carrau, Mr. Francisco M | D54: male | E54: 28 | F54: 0 | G54: 0 | H54: 47.1 | I54: S
A55: 0 | B55: 1 | C55: Carrau, Mr. Jose Pedro | D55: male | E55: 17 | F55: 0 | G55: 0 | H55: 47.1 | I55: S
A56: 1 | B56: 1 | C56: Carter, Master. William Thornton II | D56: male | E56: 11 | F56: 1 | G56: 2 | H56: 120 | I56: S
A57: 1 | B57: 1 | C57: Carter, Miss. Lucile Polk | D57: female | E57: 14 | F57: 1 | G57: 2 | H57: 120 | I57: S
A58: 1 | B58: 1 | C58: Carter, Mr. William Ernest | D58: male | E58: 36 | F58: 1 | G58: 2 | H58: 120 | I58: S
A59: 1 | B59: 1 | C59: Carter, Mrs. William Ernest (Lucile Polk) | D59: female | E59: 36 | F59: 1 | G59: 2 | H59: 120 | I59: S
A60: 0 | B60: 1 | C60: Case, Mr. Howard Brown | D60: male | E60: 49 | F60: 0 | G60: 0 | H60: 26 | I60: S
A61: 1 | B61: 1 | C61: Cassebeer, Mrs. Henry Arthur Jr (Eleanor Genevieve Fosdick) | D61: female | F61: 0 | G61: 0 | H61: 27.7208 | I61: C
A62: 0 | B62: 1 | C62: Cavendish, Mr. Tyrell William | D62: male | E62: 36 | F62: 1 | G62: 0 | H62: 78.85 | I62: S
A63: 1 | B63: 1 | C63: Cavendish, Mrs. Tyrell William (Julia Florence Siegel) | D63: female | E63: 76 | F63: 1 | G63: 0 | H63: 78.85 | I63: S
A64: 0 | B64: 1 | C64: Chaffee, Mr. Herbert Fuller | D64: male | E64: 46 | F64: 1 | G64: 0 | H64: 61.175 | I64: S
A65: 1 | B65: 1 | C65: Chaffee, Mrs. Herbert Fuller (Carrie Constance Toogood) | D65: female | E65: 47 | F65: 1 | G65: 0 | H65: 61.175 | I65: S
A66: 1 | B66: 1 | C66: Chambers, Mr. Norman Campbell | D66: male | E66: 27 | F66: 1 | G66: 0 | H66: 53.1 | I66: S
A67: 1 | B67: 1 | C67: Chambers, Mrs. Norman Campbell (Bertha Griggs) | D67: female | E67: 33 | F67: 1 | G67: 0 | H67: 53.1 | I67: S
A68: 1 | B68: 1 | C68: Chaudanson, Miss. Victorine | D68: female | E68: 36 | F68: 0 | G68: 0 | H68: 262.375 | I68: C
A69: 1 | B69: 1 | C69: Cherry, Miss. Gladys | D69: female | E69: 30 | F69: 0 | G69: 0 | H69: 86.5 | I69: S
A70: 1 | B70: 1 | C70: Chevre, Mr. Paul Romaine | D70: male | E70: 45 | F70: 0 | G70: 0 | H70: 29.7 | I70: C
A71: 1 | B71: 1 | C71: Chibnall, Mrs. (Edith Martha Bowerman) | D71: female | F71: 0 | G71: 1 | H71: 55 | I71: S
A72: 0 | B72: 1 | C72: Chisholm, Mr. Roderick Robert Crispin | D72: male | F72: 0 | G72: 0 | H72: 0 | I72: S
A73: 0 | B73: 1 | C73: Clark, Mr. Walter Miller | D73: male | E73: 27 | F73: 1 | G73: 0 | H73: 136.7792 | I73: C
A74: 1 | B74: 1 | C74: Clark, Mrs. Walter Miller (Virginia McDowell) | D74: female | E74: 26 | F74: 1 | G74: 0 | H74: 136.7792 | I74: C
A75: 1 | B75: 1 | C75: Cleaver, Miss. Alice | D75: female | E75: 22 | F75: 0 | G75: 0 | H75: 151.55 | I75: S
A76: 0 | B76: 1 | C76: Clifford, Mr. George Quincy | D76: male | F76: 0 | G76: 0 | H76: 52 | I76: S
A77: 0 | B77: 1 | C77: Colley, Mr. Edward Pomeroy | D77: male | E77: 47 | F77: 0 | G77: 0 | H77: 25.5875 | I77: S
A78: 1 | B78: 1 | C78: Compton, Miss. Sara Rebecca | D78: female | E78: 39 | F78: 1 | G78: 1 | H78: 83.1583 | I78: C
A79: 0 | B79: 1 | C79: Compton, Mr. Alexander Taylor Jr | D79: male | E79: 37 | F79: 1 | G79: 1 | H79: 83.1583 | I79: C
A80: 1 | B80: 1 | C80: Compton, Mrs. Alexander Taylor (Mary Eliza Ingersoll) | D80: female | E80: 64 | F80: 0 | G80: 2 | H80: 83.1583 | I80: C
A81: 1 | B81: 1 | C81: Cornell, Mrs. Robert Clifford (Malvina Helen Lamson) | D81: female | E81: 55 | F81: 2 | G81: 0 | H81: 25.7 | I81: S
A82: 0 | B82: 1 | C82: Crafton, Mr. John Bertram | D82: male | F82: 0 | G82: 0 | H82: 26.55 | I82: S
A83: 0 | B83: 1 | C83: Crosby, Capt. Edward Gifford | D83: male | E83: 70 | F83: 1 | G83: 1 | H83: 71 | I83: S
A84: 1 | B84: 1 | C84: Crosby, Miss. Harriet R | D84: female | E84: 36 | F84: 0 | G84: 2 | H84: 71 | I84: S
A85: 1 | B85: 1 | C85: Crosby, Mrs. Edward Gifford (Catherine Elizabeth Halstead) | D85: female | E85: 64 | F85: 1 | G85: 1 | H85: 26.55 | I85: S
A86: 0 | B86: 1 | C86: Cumings, Mr. John Bradley | D86: male | E86: 39 | F86: 1 | G86: 0 | H86: 71.2833 | I86: C
A87: 1 | B87: 1 | C87: Cumings, Mrs. John Bradley (Florence Briggs Thayer) | D87: female | E87: 38 | F87: 1 | G87: 0 | H87: 71.2833 | I87: C
A88: 1 | B88: 1 | C88: Daly, Mr. Peter Denis | D88: male | E88: 51 | F88: 0 | G88: 0 | H88: 26.55 | I88: S
A89: 1 | B89: 1 | C89: Daniel, Mr. Robert Williams | D89: male | E89: 27 | F89: 0 | G89: 0 | H89: 30.5 | I89: S
A90: 1 | B90: 1 | C90: Daniels, Miss. Sarah | D90: female | E90: 33 | F90: 0 | G90: 0 | H90: 151.55 | I90: S
A91: 0 | B91: 1 | C91: Davidson, Mr. Thornton | D91: male | E91: 31 | F91: 1 | G91: 0 | H91: 52 | I91: S
A92: 1 | B92: 1 | C92: Davidson, Mrs. Thornton (Orian Hays) | D92: female | E92: 27 | F92: 1 | G92: 2 | H92: 52 | I92: S
A93: 1 | B93: 1 | C93: Dick, Mr. Albert Adrian | D93: male | E93: 31 | F93: 1 | G93: 0 | H93: 57 | I93: S
A94: 1 | B94: 1 | C94: Dick, Mrs. Albert Adrian (Vera Gillespie) | D94: female | E94: 17 | F94: 1 | G94: 0 | H94: 57 | I94: S
A95: 1 | B95: 1 | C95: Dodge, Dr. Washington | D95: male | E95: 53 | F95: 1 | G95: 1 | H95: 81.8583 | I95: S
A96: 1 | B96: 1 | C96: Dodge, Master. Washington | D96: male | E96: 4 | F96: 0 | G96: 2 | H96: 81.8583 | I96: S
A97: 1 | B97: 1 | C97: Dodge, Mrs. Washington (Ruth Vidaver) | D97: female | E97: 54 | F97: 1 | G97: 1 | H97: 81.8583 | I97: S
A98: 0 | B98: 1 | C98: Douglas, Mr. Walter Donald | D98: male | E98: 50 | F98: 1 | G98: 0 | H98: 106.425 | I98: C
A99: 1 | B99: 1 | C99: Douglas, Mrs. Frederick Charles (Mary Helene Baxter) | D99: female | E99: 27 | F99: 1 | G99: 1 | H99: 247.5208 | I99: C
A100: 1 | B100: 1 | C100: Douglas, Mrs. Walter Donald (Mahala Dutton) | D100: female | E100: 48 | F100: 1 | G100: 0 | H100: 106.425 | I100: C
A101: 1 | B101: 1 | C101: Duff Gordon, Lady. (Lucille Christiana Sutherland) ("Mrs Morgan") | D101: female | E101: 48 | F101: 1 | G101: 0 | H101: 39.6 | I101: C
A102: 1 | B102: 1 | C102: Duff Gordon, Sir. Cosmo Edmund ("Mr Morgan") | D102: male | E102: 49 | F102: 1 | G102: 0 | H102: 56.9292 | I102: C
A103: 0 | B103: 1 | C103: Dulles, Mr. William Crothers | D103: male | E103: 39 | F103: 0 | G103: 0 | H103: 29.7 | I103: C
A104: 1 | B104: 1 | C104: Earnshaw, Mrs. Boulton (Olive Potter) | D104: female | E104: 23 | F104: 0 | G104: 1 | H104: 83.1583 | I104: C
A105: 1 | B105: 1 | C105: Endres, Miss. Caroline Louise | D105: female | E105: 38 | F105: 0 | G105: 0 | H105: 227.525 | I105: C
A106: 1 | B106: 1 | C106: Eustis, Miss. Elizabeth Mussey | D106: female | E106: 54 | F106: 1 | G106: 0 | H106: 78.2667 | I106: C
A107: 0 | B107: 1 | C107: Evans, Miss. Edith Corse | D107: female | E107: 36 | F107: 0 | G107: 0 | H107: 31.6792 | I107: C
A108: 0 | B108: 1 | C108: Farthing, Mr. John | D108: male | F108: 0 | G108: 0 | H108: 221.7792 | I108: S
A109: 1 | B109: 1 | C109: Flegenheim, Mrs. Alfred (Antoinette) | D109: female | F109: 0 | G109: 0 | H109: 31.6833 | I109: S
A110: 1 | B110: 1 | C110: Fleming, Miss. Margaret | D110: female | F110: 0 | G110: 0 | H110: 110.8833 | I110: C
A111: 1 | B111: 1 | C111: Flynn, Mr. John Irwin ("Irving") | D111: male | E111: 36 | F111: 0 | G111: 0 | H111: 26.3875 | I111: S
A112: 0 | B112: 1 | C112: Foreman, Mr. Benjamin Laventall | D112: male | E112: 30 | F112: 0 | G112: 0 | H112: 27.75 | I112: C
A113: 1 | B113: 1 | C113: Fortune, Miss. Alice Elizabeth | D113: female | E113: 24 | F113: 3 | G113: 2 | H113: 263 | I113: S
A114: 1 | B114: 1 | C114: Fortune, Miss. Ethel Flora | D114: female | E114: 28 | F114: 3 | G114: 2 | H114: 263 | I114: S
A115: 1 | B115: 1 | C115: Fortune, Miss. Mabel Helen | D115: female | E115: 23 | F115: 3 | G115: 2 | H115: 263 | I115: S
A116: 0 | B116: 1 | C116: Fortune, Mr. Charles Alexander | D116: male | E116: 19 | F116: 3 | G116: 2 | H116: 263 | I116: S
A117: 0 | B117: 1 | C117: Fortune, Mr. Mark | D117: male | E117: 64 | F117: 1 | G117: 4 | H117: 263 | I117: S
A118: 1 | B118: 1 | C118: Fortune, Mrs. Mark (Mary McDougald) | D118: female | E118: 60 | F118: 1 | G118: 4 | H118: 263 | I118: S
A119: 1 | B119: 1 | C119: Francatelli, Miss. Laura Mabel | D119: female | E119: 30 | F119: 0 | G119: 0 | H119: 56.9292 | I119: C
A120: 0 | B120: 1 | C120: Franklin, Mr. Thomas Parham | D120: male | F120: 0 | G120: 0 | H120: 26.55 | I120: S
A121: 1 | B121: 1 | C121: Frauenthal, Dr. Henry William | D121: male | E121: 50 | F121: 2 | G121: 0 | H121: 133.65 | I121: S
A122: 1 | B122: 1 | C122: Frauenthal, Mr. Isaac Gerald | D122: male | E122: 43 | F122: 1 | G122: 0 | H122: 27.7208 | I122: C
A123: 1 | B123: 1 | C123: Frauenthal, Mrs. Henry William (Clara Heinsheimer) | D123: female | F123: 1 | G123: 0 | H123: 133.65 | I123: S
A124: 1 | B124: 1 | C124: Frolicher, Miss. Hedwig Margaritha | D124: female | E124: 22 | F124: 0 | G124: 2 | H124: 49.5 | I124: C
A125: 1 | B125: 1 | C125: Frolicher-Stehli, Mr. Maxmillian | D125: male | E125: 60 | F125: 1 | G125: 1 | H125: 79.2 | I125: C
A126: 1 | B126: 1 | C126: Frolicher-Stehli, Mrs. Maxmillian (Margaretha Emerentia Stehli) | D126: female | E126: 48 | F126: 1 | G126: 1 | H126: 79.2 | I126: C
A127: 0 | B127: 1 | C127: Fry, Mr. Richard | D127: male | F127: 0 | G127: 0 | H127: 0 | I127: S
A128: 0 | B128: 1 | C128: Futrelle, Mr. Jacques Heath | D128: male | E128: 37 | F128: 1 | G128: 0 | H128: 53.1 | I128: S
A129: 1 | B129: 1 | C129: Futrelle, Mrs. Jacques Heath (Lily May Peel) | D129: female | E129: 35 | F129: 1 | G129: 0 | H129: 53.1 | I129: S
A130: 0 | B130: 1 | C130: Gee, Mr. Arthur H | D130: male | E130: 47 | F130: 0 | G130: 0 | H130: 38.5 | I130: S
A131: 1 | B131: 1 | C131: Geiger, Miss. Amalie | D131: female | E131: 35 | F131: 0 | G131: 0 | H131: 211.5 | I131: C
A132: 1 | B132: 1 | C132: Gibson, Miss. Dorothy Winifred | D132: female | E132: 22 | F132: 0 | G132: 1 | H132: 59.4 | I132: C
A133: 1 | B133: 1 | C133: Gibson, Mrs. Leonard (Pauline C Boeson) | D133: female | E133: 45 | F133: 0 | G133: 1 | H133: 59.4 | I133: C
A134: 0 | B134: 1 | C134: Giglio, Mr. Victor | D134: male | E134: 24 | F134: 0 | G134: 0 | H134: 79.2 | I134: C
A135: 1 | B135: 1 | C135: Goldenberg, Mr. Samuel L | D135: male | E135: 49 | F135: 1 | G135: 0 | H135: 89.1042 | I135: C
A136: 1 | B136: 1 | C136: Goldenberg, Mrs. Samuel L (Edwiga Grabowska) | D136: female | F136: 1 | G136: 0 | H136: 89.1042 | I136: C
A137: 0 | B137: 1 | C137: Goldschmidt, Mr. George B | D137: male | E137: 71 | F137: 0 | G137: 0 | H137: 34.6542 | I137: C
A138: 1 | B138: 1 | C138: Gracie, Col. Archibald IV | D138: male | E138: 53 | F138: 0 | G138: 0 | H138: 28.5 | I138: C
A139: 1 | B139: 1 | C139: Graham, Miss. Margaret Edith | D139: female | E139: 19 | F139: 0 | G139: 0 | H139: 30 | I139: S
A140: 0 | B140: 1 | C140: Graham, Mr. George Edward | D140: male | E140: 38 | F140: 0 | G140: 1 | H140: 153.4625 | I140: S
A141: 1 | B141: 1 | C141: Graham, Mrs. William Thompson (Edith Junkins) | D141: female | E141: 58 | F141: 0 | G141: 1 | H141: 153.4625 | I141: S
A142: 1 | B142: 1 | C142: Greenfield, Mr. William Bertram | D142: male | E142: 23 | F142: 0 | G142: 1 | H142: 63.3583 | I142: C
A143: 1 | B143: 1 | C143: Greenfield, Mrs. Leo David (Blanche Strouse) | D143: female | E143: 45 | F143: 0 | G143: 1 | H143: 63.3583 | I143: C
A144: 0 | B144: 1 | C144: Guggenheim, Mr. Benjamin | D144: male | E144: 46 | F144: 0 | G144: 0 | H144: 79.2 | I144: C
A145: 1 | B145: 1 | C145: Harder, Mr. George Achilles | D145: male | E145: 25 | F145: 1 | G145: 0 | H145: 55.4417 | I145: C
A146: 1 | B146: 1 | C146: Harder, Mrs. George Achilles (Dorothy Annan) | D146: female | E146: 25 | F146: 1 | G146: 0 | H146: 55.4417 | I146: C
A147: 1 | B147: 1 | C147: Harper, Mr. Henry Sleeper | D147: male | E147: 48 | F147: 1 | G147: 0 | H147: 76.7292 | I147: C
A148: 1 | B148: 1 | C148: Harper, Mrs. Henry Sleeper (Myna Haxtun) | D148: female | E148: 49 | F148: 1 | G148: 0 | H148: 76.7292 | I148: C
A149: 0 | B149: 1 | C149: Harrington, Mr. Charles H | D149: male | F149: 0 | G149: 0 | H149: 42.4 | I149: S
A150: 0 | B150: 1 | C150: Harris, Mr. Henry Birkhardt | D150: male | E150: 45 | F150: 1 | G150: 0 | H150: 83.475 | I150: S
A151: 1 | B151: 1 | C151: Harris, Mrs. Henry Birkhardt (Irene Wallach) | D151: female | E151: 35 | F151: 1 | G151: 0 | H151: 83.475 | I151: S
A152: 0 | B152: 1 | C152: Harrison, Mr. William | D152: male | E152: 40 | F152: 0 | G152: 0 | H152: 0 | I152: S
A153: 1 | B153: 1 | C153: Hassab, Mr. Hammad | D153: male | E153: 27 | F153: 0 | G153: 0 | H153: 76.7292 | I153: C
A154: 1 | B154: 1 | C154: Hawksford, Mr. Walter James | D154: male | F154: 0 | G154: 0 | H154: 30 | I154: S
A155: 1 | B155: 1 | C155: Hays, Miss. Margaret Bechstein | D155: female | E155: 24 | F155: 0 | G155: 0 | H155: 83.1583 | I155: C
A156: 0 | B156: 1 | C156: Hays, Mr. Charles Melville | D156: male | E156: 55 | F156: 1 | G156: 1 | H156: 93.5 | I156: S
A157: 1 | B157: 1 | C157: Hays, Mrs. Charles Melville (Clara Jennings Gregg) | D157: female | E157: 52 | F157: 1 | G157: 1 | H157: 93.5 | I157: S
A158: 0 | B158: 1 | C158: Head, Mr. Christopher | D158: male | E158: 42 | F158: 0 | G158: 0 | H158: 42.5 | I158: S
A159: 0 | B159: 1 | C159: Hilliard, Mr. Herbert Henry | D159: male | F159: 0 | G159: 0 | H159: 51.8625 | I159: S
A160: 0 | B160: 1 | C160: Hipkins, Mr. William Edward | D160: male | E160: 55 | F160: 0 | G160: 0 | H160: 50 | I160: S
A161: 1 | B161: 1 | C161: Hippach, Miss. Jean Gertrude | D161: female | E161: 16 | F161: 0 | G161: 1 | H161: 57.9792 | I161: C
A162: 1 | B162: 1 | C162: Hippach, Mrs. Louis Albert (Ida Sophia Fischer) | D162: female | E162: 44 | F162: 0 | G162: 1 | H162: 57.9792 | I162: C
A163: 1 | B163: 1 | C163: Hogeboom, Mrs. John C (Anna Andrews) | D163: female | E163: 51 | F163: 1 | G163: 0 | H163: 77.9583 | I163: S
A164: 0 | B164: 1 | C164: Holverson, Mr. Alexander Oskar | D164: male | E164: 42 | F164: 1 | G164: 0 | H164: 52 | I164: S
A165: 1 | B165: 1 | C165: Holverson, Mrs. Alexander Oskar (Mary Aline Towner) | D165: female | E165: 35 | F165: 1 | G165: 0 | H165: 52 | I165: S
A166: 1 | B166: 1 | C166: Homer, Mr. Harry ("Mr E Haven") | D166: male | E166: 35 | F166: 0 | G166: 0 | H166: 26.55 | I166: C
A167: 1 | B167: 1 | C167: Hoyt, Mr. Frederick Maxfield | D167: male | E167: 38 | F167: 1 | G167: 0 | H167: 90 | I167: S
A168: 0 | B168: 1 | C168: Hoyt, Mr. William Fisher | D168: male | F168: 0 | G168: 0 | H168: 30.6958 | I168: C
A169: 1 | B169: 1 | C169: Hoyt, Mrs. Frederick Maxfield (Jane Anne Forby) | D169: female | E169: 35 | F169: 1 | G169: 0 | H169: 90 | I169: S
A170: 1 | B170: 1 | C170: Icard, Miss. Amelie | D170: female | E170: 38 | F170: 0 | G170: 0 | H170: 80
A171: 0 | B171: 1 | C171: Isham, Miss. Ann Elizabeth | D171: female | E171: 50 | F171: 0 | G171: 0 | H171: 28.7125 | I171: C
A172: 1 | B172: 1 | C172: Ismay, Mr. Joseph Bruce | D172: male | E172: 49 | F172: 0 | G172: 0 | H172: 0 | I172: S
A173: 0 | B173: 1 | C173: Jones, Mr. Charles Cresson | D173: male | E173: 46 | F173: 0 | G173: 0 | H173: 26 | I173: S
A174: 0 | B174: 1 | C174: Julian, Mr. Henry Forbes | D174: male | E174: 50 | F174: 0 | G174: 0 | H174: 26 | I174: S
A175: 0 | B175: 1 | C175: Keeping, Mr. Edwin | D175: male | E175: 32.5 | F175: 0 | G175: 0 | H175: 211.5 | I175: C
A176: 0 | B176: 1 | C176: Kent, Mr. Edward Austin | D176: male | E176: 58 | F176: 0 | G176: 0 | H176: 29.7 | I176: C
A177: 0 | B177: 1 | C177: Kenyon, Mr. Frederick R | D177: male | E177: 41 | F177: 1 | G177: 0 | H177: 51.8625 | I177: S
A178: 1 | B178: 1 | C178: Kenyon, Mrs. Frederick R (Marion) | D178: female | F178: 1 | G178: 0 | H178: 51.8625 | I178: S
A179: 1 | B179: 1 | C179: Kimball, Mr. Edwin Nelson Jr | D179: male | E179: 42 | F179: 1 | G179: 0 | H179: 52.5542 | I179: S
A180: 1 | B180: 1 | C180: Kimball, Mrs. Edwin Nelson Jr (Gertrude Parsons) | D180: female | E180: 45 | F180: 1 | G180: 0 | H180: 52.5542 | I180: S
A181: 0 | B181: 1 | C181: Klaber, Mr. Herman | D181: male | F181: 0 | G181: 0 | H181: 26.55 | I181: S
A182: 1 | B182: 1 | C182: Kreuchen, Miss. Emilie | D182: female | E182: 39 | F182: 0 | G182: 0 | H182: 211.3375 | I182: S
A183: 1 | B183: 1 | C183: Leader, Dr. Alice (Farnham) | D183: female | E183: 49 | F183: 0 | G183: 0 | H183: 25.9292 | I183: S
A184: 1 | B184: 1 | C184: LeRoy, Miss. Bertha | D184: female | E184: 30 | F184: 0 | G184: 0 | H184: 106.425 | I184: C
A185: 1 | B185: 1 | C185: Lesurer, Mr. Gustave J | D185: male | E185: 35 | F185: 0 | G185: 0 | H185: 512.3292 | I185: C
A186: 0 | B186: 1 | C186: Lewy, Mr. Ervin G | D186: male | F186: 0 | G186: 0 | H186: 27.7208 | I186: C
A187: 0 | B187: 1 | C187: Lindeberg-Lind, Mr. Erik Gustaf ("Mr Edward Lingrey") | D187: male | E187: 42 | F187: 0 | G187: 0 | H187: 26.55 | I187: S
A188: 1 | B188: 1 | C188: Lindstrom, Mrs. Carl Johan (Sigrid Posse) | D188: female | E188: 55 | F188: 0 | G188: 0 | H188: 27.7208 | I188: C
A189: 1 | B189: 1 | C189: Lines, Miss. Mary Conover | D189: female | E189: 16 | F189: 0 | G189: 1 | H189: 39.4 | I189: S
A190: 1 | B190: 1 | C190: Lines, Mrs. Ernest H (Elizabeth Lindsey James) | D190: female | E190: 51 | F190: 0 | G190: 1 | H190: 39.4 | I190: S
A191: 0 | B191: 1 | C191: Long, Mr. Milton Clyde | D191: male | E191: 29 | F191: 0 | G191: 0 | H191: 30 | I191: S
A192: 1 | B192: 1 | C192: Longley, Miss. Gretchen Fiske | D192: female | E192: 21 | F192: 0 | G192: 0 | H192: 77.9583 | I192: S
A193: 0 | B193: 1 | C193: Loring, Mr. Joseph Holland | D193: male | E193: 30 | F193: 0 | G193: 0 | H193: 45.5 | I193: S
A194: 1 | B194: 1 | C194: Lurette, Miss. Elise | D194: female | E194: 58 | F194: 0 | G194: 0 | H194: 146.5208 | I194: C
A195: 1 | B195: 1 | C195: Madill, Miss. Georgette Alexandra | D195: female | E195: 15 | F195: 0 | G195: 1 | H195: 211.3375 | I195: S
A196: 0 | B196: 1 | C196: Maguire, Mr. John Edward | D196: male | E196: 30 | F196: 0 | G196: 0 | H196: 26 | I196: S
A197: 1 | B197: 1 | C197: Maioni, Miss. Roberta | D197: female | E197: 16 | F197: 0 | G197: 0 | H197: 86.5 | I197: S
A198: 1 | B198: 1 | C198: Marechal, Mr. Pierre | D198: male | F198: 0 | G198: 0 | H198: 29.7 | I198: C
A199: 0 | B199: 1 | C199: Marvin, Mr. Daniel Warner | D199: male | E199: 19 | F199: 1 | G199: 0 | H199: 53.1 | I199: S
A200: 1 | B200: 1 | C200: Marvin, Mrs. Daniel Warner (Mary Graham Carmichael Farquarson) | D200: female | E200: 18 | F200: 1 | G200: 0 | H200: 53.1 | I200: S
... 1110 more rows

Sheet RDF
B1: XLSTAT 2024.4.0.1425 - Forêts aléatoires de classification et de régression - Début : 23/12/2024 à 16:46:57 / Fin : 23/12/2024 à 16:48:41 / Microsoft Excel 16.018227
B2: Variable(s) réponse : Classeur = demoRDF_Classifier (1).xlsm / Feuille = Data / Plage = 'Data'!$B:$B / 1309 lignes et 1 colonne
B3: Quantitatives : Classeur = demoRDF_Classifier (1).xlsm / Feuille = Data / Plage = 'Data'!$E:$H / 1309 lignes et 4 colonnes
B4: Qualitatives : Classeur = demoRDF_Classifier (1).xlsm / Feuille = Data / Plage = 'Data'!$A:$A,'Data'!$D:$D,'Data'!$I:$I / 1309 lignes et 3 colonnes
B5: Libellés des observations : Classeur = demoRDF_Classifier (1).xlsm / Feuille = Data / Plage = 'Data'!$C:$C / 1309 lignes et 1 colonne
B6: Type de forêt : Classification
B7: Méthode : Bagging
B8: Méthode d'échantillonnage : Aléatoire avec remise
B9: Taille des échantillons : 1043
B10: Nombre d'arbres souhaité dans la forêt : 500
B11: Nombre d'arbres construits : 500
B12: Graine (nombres aléatoires) : 123456789
B17: Nombre d'observations supprimées : 266
B20: Proportion de mal classés :
B22: Echantillon OOB | C22: 0.04985618408
B25: Graphique de l'évolution de l'erreur OOB :
B46: Matrice de confusion (Echantillon OOB) :
B48: de \ Vers | C48: 1 | D48: 2 | E48: 3 | F48: Total | G48: % correct
B49: 1 | C49: 266 | D49: 14 | E49: 2 | F49: 282 | G49: 94.32624113
B50: 2 | C50: 7 | D50: 237 | E50: 17 | F50: 261 | G50: 90.8045977
B51: 3 | C51: 2 | D51: 10 | E51: 488 | F51: 500 | G51: 97.6
B52: Total | C52: 275 | D52: 261 | E52: 507 | F52: 1043 | G52: 95.01438159
B74: Prédictions OOB :
C76: Nombre de fois OOB | D76: PCLASS | E76: Préd(PCLASS) | F76: 1 | G76: 2 | H76: 3
B77: Allen, Miss. Elisabeth Walton | C77: 154 | D77: 1 | E77: 1 | F77: 1 | G77: 0 | H77: 0
B78: Allison, Master. Hudson Trevor | C78: 190 | D78: 1 | E78: 1 | F78: 0.9842105263 | G78: 0.01578947368 | H78: 0
B79: Allison, Miss. Helen Loraine | C79: 192 | D79: 1 | E79: 1 | F79: 0.9375 | G79: 0.03125 | H79: 0.03125
B80: Allison, Mr. Hudson Joshua Creighton | C80: 173 | D80: 1 | E80: 1 | F80: 0.9942196532 | G80: 0.005780346821 | H80: 0
B81: Allison, Mrs. Hudson J C (Bessie Waldo Daniels) | C81: 179 | D81: 1 | E81: 1 | F81: 0.9944134078 | G81: 0.005586592179 | H81: 0
B82: Anderson, Mr. Harry | C82: 199 | D82: 1 | E82: 1 | F82: 1 | G82: 0 | H82: 0
B83: Andrews, Miss. Kornelia Theodosia | C83: 181 | D83: 1 | E83: 1 | F83: 1 | G83: 0 | H83: 0
B84: Andrews, Mr. Thomas Jr | C84: 209 | D84: 1 | E84: 1 | F84: 0.8708133971 | G84: 0 | H84: 0.1291866029
B85: Appleton, Mrs. Edward Dale (Charlotte Lamson) | C85: 162 | D85: 1 | E85: 1 | F85: 0.9197530864 | G85: 0.08024691358 | H85: 0
B86: Artagaveytia, Mr. Ramon | C86: 188 | D86: 1 | E86: 1 | F86: 1 | G86: 0 | H86: 0
B87: Astor, Col. John Jacob | C87: 178 | D87: 1 | E87: 1 | F87: 1 | G87: 0 | H87: 0
B88: Astor, Mrs. John Jacob (Madeleine Talmadge Force) | C88: 167 | D88: 1 | E88: 1 | F88: 0.994011976 | G88: 0.005988023952 | H88: 0
B89: Aubart, Mme. Leontine Pauline | C89: 171 | D89: 1 | E89: 1 | F89: 0.8479532164 | G89: 0.1228070175 | H89: 0.02923976608
B90: Barber, Miss. Ellen "Nellie" | C90: 168 | D90: 1 | E90: 1 | F90: 0.9821428571 | G90: 0 | H90: 0.01785714286
B91: Barkworth, Mr. Algernon Henry Wilson | C91: 188 | D91: 1 | E91: 1 | F91: 1 | G91: 0 | H91: 0
B92: Baxter, Mr. Quigg Edmond | C92: 193 | D92: 1 | E92: 1 | F92: 1 | G92: 0 | H92: 0
B93: Baxter, Mrs. James (Helene DeLaudeniere Chaput) | C93: 199 | D93: 1 | E93: 1 | F93: 1 | G93: 0 | H93: 0
B94: Bazzani, Miss. Albina | C94: 183 | D94: 1 | E94: 1 | F94: 0.912568306 | G94: 0.005464480874 | H94: 0.08196721311
B95: Beattie, Mr. Thomson | C95: 176 | D95: 1 | E95: 1 | F95: 1 | G95: 0 | H95: 0
B96: Beckwith, Mr. Richard Leonard | C96: 171 | D96: 1 | E96: 1 | F96: 0.9766081871 | G96: 0.01754385965 | H96: 0.005847953216
B97: Beckwith, Mrs. Richard Leonard (Sallie Monypeny) | C97: 178 | D97: 1 | E97: 1 | F97: 0.9775280899 | G97: 0.02247191011 | H97: 0
B98: Behr, Mr. Karl Howell | C98: 175 | D98: 1 | E98: 1 | F98: 0.8457142857 | G98: 0.1428571429 | H98: 0.01142857143
B99: Bidois, Miss. Rosalie | C99: 210 | D99: 1 | E99: 1 | F99: 1 | G99: 0 | H99: 0
B100: Bird, Miss. Ellen | C100: 189 | D100: 1 | E100: 1 | F100: 1 | G100: 0 | H100: 0
B101: Birnbaum, Mr. Jakob | C101: 167 | D101: 1 | E101: 2 | F101: 0.1017964072 | G101: 0.8922155689 | H101: 0.005988023952
B102: Bishop, Mr. Dickinson H | C102: 188 | D102: 1 | E102: 1 | F102: 1 | G102: 0 | H102: 0
B103: Bishop, Mrs. Dickinson H (Helen Walton) | C103: 202 | D103: 1 | E103: 1 | F103: 1 | G103: 0 | H103: 0
B104: Bissette, Miss. Amelia | C104: 202 | D104: 1 | E104: 1 | F104: 1 | G104: 0 | H104: 0
B105: Bjornstrom-Steffansson, Mr. Mauritz Hakan | C105: 199 | D105: 1 | E105: 1 | F105: 0.9095477387 | G105: 0.08040201005 | H105: 0.01005025126
B106: Blackwell, Mr. Stephen Weart | C106: 185 | D106: 1 | E106: 1 | F106: 1 | G106: 0 | H106: 0
B107: Blank, Mr. Henry | C107: 167 | D107: 1 | E107: 1 | F107: 1 | G107: 0 | H107: 0
B108: Bonnell, Miss. Caroline | C108: 174 | D108: 1 | E108: 1 | F108: 1 | G108: 0 | H108: 0
B109: Bonnell, Miss. Elizabeth | C109: 186 | D109: 1 | E109: 1 | F109: 1 | G109: 0 | H109: 0
B110: Borebank, Mr. John James | C110: 181 | D110: 1 | E110: 1 | F110: 1 | G110: 0 | H110: 0
B111: Bowen, Miss. Grace Scott | C111: 199 | D111: 1 | E111: 1 | F111: 1 | G111: 0 | H111: 0
B112: Bowerman, Miss. Elsie Edith | C112: 180 | D112: 1 | E112: 1 | F112: 0.6166666667 | G112: 0 | H112: 0.3833333333
B113: Brady, Mr. John Bertram | C113: 189 | D113: 1 | E113: 1 | F113: 1 | G113: 0 | H113: 0
B114: Brandeis, Mr. Emil | C114: 185 | D114: 1 | E114: 1 | F114: 1 | G114: 0 | H114: 0
B115: Brown, Mrs. James Joseph (Margaret Tobin) | C115: 181 | D115: 1 | E115: 1 | F115: 1 | G115: 0 | H115: 0
B116: Brown, Mrs. John Murray (Caroline Lane Lamson) | C116: 201 | D116: 1 | E116: 1 | F116: 0.9353233831 | G116: 0.06467661692 | H116: 0
B117: Bucknell, Mrs. William Robert (Emma Eliza Ward) | C117: 187 | D117: 1 | E117: 1 | F117: 1 | G117: 0 | H117: 0
B118: Burns, Miss. Elizabeth Margaret | C118: 165 | D118: 1 | E118: 1 | F118: 1 | G118: 0 | H118: 0
B119: Butt, Major. Archibald Willingham | C119: 172 | D119: 1 | E119: 1 | F119: 1 | G119: 0 | H119: 0
B120: Calderhead, Mr. Edward Pennington | C120: 186 | D120: 1 | E120: 1 | F120: 0.9892473118 | G120: 0.01075268817 | H120: 0
B121: Candee, Mrs. Edward (Helen Churchill Hungerford) | C121: 192 | D121: 1 | E121: 1 | F121: 1 | G121: 0 | H121: 0
B122: Cardeza, Mr. Thomas Drake Martinez | C122: 177 | D122: 1 | E122: 1 | F122: 1 | G122: 0 | H122: 0
B123: Cardeza, Mrs. James Warburton Martinez (Charlotte Wardle Drake) | C123: 169 | D123: 1 | E123: 1 | F123: 1 | G123: 0 | H123: 0
B124: Carlsson, Mr. Frans Olof | C124: 178 | D124: 1 | E124: 3 | F124: 0 | G124: 0 | H124: 1
B125: Carrau, Mr. Francisco M | C125: 214 | D125: 1 | E125: 1 | F125: 0.7570093458 | G125: 0.02336448598 | H125: 0.2196261682
B126: Carrau, Mr. Jose Pedro | C126: 185 | D126: 1 | E126: 1 | F126: 0.7027027027 | G126: 0.172972973 | H126: 0.1243243243
B127: Carter, Master. William Thornton II | C127: 183 | D127: 1 | E127: 1 | F127: 0.9890710383 | G127: 0.01092896175 | H127: 0
B128: Carter, Miss. Lucile Polk | C128: 171 | D128: 1 | E128: 1 | F128: 0.9824561404 | G128: 0.01754385965 | H128: 0
B129: Carter, Mr. William Ernest | C129: 194 | D129: 1 | E129: 1 | F129: 1 | G129: 0 | H129: 0
B130: Carter, Mrs. William Ernest (Lucile Polk) | C130: 198 | D130: 1 | E130: 1 | F130: 1 | G130: 0 | H130: 0
B131: Case, Mr. Howard Brown | C131: 180 | D131: 1 | E131: 1 | F131: 0.8611111111 | G131: 0.1388888889 | H131: 0
B132: Cavendish, Mr. Tyrell William | C132: 173 | D132: 1 | E132: 1 | F132: 1 | G132: 0 | H132: 0
B133: Cavendish, Mrs. Tyrell William (Julia Florence Siegel) | C133: 183 | D133: 1 | E133: 1 | F133: 1 | G133: 0 | H133: 0
B134: Chaffee, Mr. Herbert Fuller | C134: 182 | D134: 1 | E134: 1 | F134: 0.9945054945 | G134: 0 | H134: 0.005494505495
B135: Chaffee, Mrs. Herbert Fuller (Carrie Constance Toogood) | C135: 171 | D135: 1 | E135: 1 | F135: 0.9941520468 | G135: 0 | H135: 0.005847953216
B136: Chambers, Mr. Norman Campbell | C136: 191 | D136: 1 | E136: 1 | F136: 0.8848167539 | G136: 0.01047120419 | H136: 0.1047120419
B137: Chambers, Mrs. Norman Campbell (Bertha Griggs) | C137: 201 | D137: 1 | E137: 1 | F137: 0.8308457711 | G137: 0.03482587065 | H137: 0.1343283582
B138: Chaudanson, Miss. Victorine | C138: 173 | D138: 1 | E138: 1 | F138: 1 | G138: 0 | H138: 0
B139: Cherry, Miss. Gladys | C139: 178 | D139: 1 | E139: 1 | F139: 1 | G139: 0 | H139: 0
B140: Chevre, Mr. Paul Romaine | C140: 185 | D140: 1 | E140: 1 | F140: 1 | G140: 0 | H140: 0
B141: Clark, Mr. Walter Miller | C141: 183 | D141: 1 | E141: 1 | F141: 0.9890710383 | G141: 0 | H141: 0.01092896175
B142: Clark, Mrs. Walter Miller (Virginia McDowell) | C142: 198 | D142: 1 | E142: 1 | F142: 0.9949494949 | G142: 0 | H142: 0.005050505051
B143: Cleaver, Miss. Alice | C143: 188 | D143: 1 | E143: 1 | F143: 1 | G143: 0 | H143: 0
B144: Colley, Mr. Edward Pomeroy | C144: 179 | D144: 1 | E144: 1 | F144: 0.9162011173 | G144: 0.07262569832 | H144: 0.01117318436
B145: Compton, Miss. Sara Rebecca | C145: 186 | D145: 1 | E145: 1 | F145: 1 | G145: 0 | H145: 0
B146: Compton, Mr. Alexander Taylor Jr | C146: 185 | D146: 1 | E146: 1 | F146: 1 | G146: 0 | H146: 0
B147: Compton, Mrs. Alexander Taylor (Mary Eliza Ingersoll) | C147: 170 | D147: 1 | E147: 1 | F147: 0.9588235294 | G147: 0.04117647059 | H147: 0
B148: Cornell, Mrs. Robert Clifford (Malvina Helen Lamson) | C148: 191 | D148: 1 | E148: 2 | F148: 0.109947644 | G148: 0.8272251309 | H148: 0.06282722513
B149: Crosby, Capt. Edward Gifford | C149: 192 | D149: 1 | E149: 1 | F149: 0.71875 | G149: 0.28125 | H149: 0
B150: Crosby, Miss. Harriet R | C150: 174 | D150: 1 | E150: 2 | F150: 0.2356321839 | G150: 0.7528735632 | H150: 0.01149425287
B151: Crosby, Mrs. Edward Gifford (Catherine Elizabeth Halstead) | C151: 180 | D151: 1 | E151: 2 | F151: 0.1833333333 | G151: 0.8111111111 | H151: 0.005555555556
B152: Cumings, Mr. John Bradley | C152: 168 | D152: 1 | E152: 1 | F152: 0.9404761905 | G152: 0.05952380952 | H152: 0
B153: Cumings, Mrs. John Bradley (Florence Briggs Thayer) | C153: 175 | D153: 1 | E153: 1 | F153: 0.9771428571 | G153: 0.02285714286 | H153: 0
B154: Daly, Mr. Peter Denis | C154: 188 | D154: 1 | E154: 1 | F154: 1 | G154: 0 | H154: 0
B155: Daniel, Mr. Robert Williams | C155: 191 | D155: 1 | E155: 1 | F155: 0.890052356 | G155: 0.09947643979 | H155: 0.01047120419
B156: Daniels, Miss. Sarah | C156: 193 | D156: 1 | E156: 1 | F156: 1 | G156: 0 | H156: 0
B157: Davidson, Mr. Thornton | C157: 191 | D157: 1 | E157: 1 | F157: 0.9319371728 | G157: 0.02617801047 | H157: 0.04188481675
B158: Davidson, Mrs. Thornton (Orian Hays) | C158: 162 | D158: 1 | E158: 2 | F158: 0.4444444444 | G158: 0.5185185185 | H158: 0.03703703704
B159: Dick, Mr. Albert Adrian | C159: 176 | D159: 1 | E159: 1 | F159: 0.9147727273 | G159: 0.01704545455 | H159: 0.06818181818
B160: Dick, Mrs. Albert Adrian (Vera Gillespie) | C160: 180 | D160: 1 | E160: 1 | F160: 0.9611111111 | G160: 0.02222222222 | H160: 0.01666666667
B161: Dodge, Dr. Washington | C161: 191 | D161: 1 | E161: 1 | F161: 1 | G161: 0 | H161: 0
B162: Dodge, Master. Washington | C162: 184 | D162: 1 | E162: 1 | F162: 0.9456521739 | G162: 0.05434782609 | H162: 0
B163: Dodge, Mrs. Washington (Ruth Vidaver) | C163: 188 | D163: 1 | E163: 1 | F163: 1 | G163: 0 | H163: 0
B164: Douglas, Mr. Walter Donald | C164: 190 | D164: 1 | E164: 1 | F164: 1 | G164: 0 | H164: 0
B165: Douglas, Mrs. Frederick Charles (Mary Helene Baxter) | C165: 192 | D165: 1 | E165: 1 | F165: 0.984375 | G165: 0.015625 | H165: 0
B166: Douglas, Mrs. Walter Donald (Mahala Dutton) | C166: 180 | D166: 1 | E166: 1 | F166: 1 | G166: 0 | H166: 0
B167: Duff Gordon, Lady. (Lucille Christiana Sutherland) ("Mrs Morgan") | C167: 167 | D167: 1 | E167: 1 | F167: 0.5688622754 | G167: 0.4191616766 | H167: 0.0119760479
B168: Duff Gordon, Sir. Cosmo Edmund ("Mr Morgan") | C168: 170 | D168: 1 | E168: 1 | F168: 0.9823529412 | G168: 0 | H168: 0.01764705882
B169: Dulles, Mr. William Crothers | C169: 179 | D169: 1 | E169: 1 | F169: 1 | G169: 0 | H169: 0
B170: Earnshaw, Mrs. Boulton (Olive Potter) | C170: 192 | D170: 1 | E170: 1 | F170: 1 | G170: 0 | H170: 0
B171: Endres, Miss. Caroline Louise | C171: 168 | D171: 1 | E171: 1 | F171: 1 | G171: 0 | H171: 0
B172: Eustis, Miss. Elizabeth Mussey | C172: 189 | D172: 1 | E172: 1 | F172: 1 | G172: 0 | H172: 0
B173: Evans, Miss. Edith Corse | C173: 180 | D173: 1 | E173: 1 | F173: 0.9944444444 | G173: 0.005555555556 | H173: 0
B174: Flynn, Mr. John Irwin ("Irving") | C174: 195 | D174: 1 | E174: 1 | F174: 1 | G174: 0 | H174: 0
B175: Foreman, Mr. Benjamin Laventall | C175: 198 | D175: 1 | E175: 1 | F175: 0.9747474747 | G175: 0.02525252525 | H175: 0
B176: Fortune, Miss. Alice Elizabeth | C176: 185 | D176: 1 | E176: 1 | F176: 0.9891891892 | G176: 0.01081081081 | H176: 0
B177: Fortune, Miss. Ethel Flora | C177: 185 | D177: 1 | E177: 1 | F177: 0.9891891892 | G177: 0.01081081081 | H177: 0
B178: Fortune, Miss. Mabel Helen | C178: 171 | D178: 1 | E178: 1 | F178: 0.9941520468 | G178: 0.005847953216 | H178: 0
B179: Fortune, Mr. Charles Alexander | C179: 164 | D179: 1 | E179: 1 | F179: 0.8658536585 | G179: 0.03658536585 | H179: 0.09756097561
B180: Fortune, Mr. Mark | C180: 174 | D180: 1 | E180: 1 | F180: 0.9597701149 | G180: 0 | H180: 0.04022988506
B181: Fortune, Mrs. Mark (Mary McDougald) | C181: 178 | D181: 1 | E181: 1 | F181: 0.9662921348 | G181: 0 | H181: 0.03370786517
B182: Francatelli, Miss. Laura Mabel | C182: 170 | D182: 1 | E182: 1 | F182: 0.8411764706 | G182: 0 | H182: 0.1588235294
B183: Frauenthal, Dr. Henry William | C183: 175 | D183: 1 | E183: 1 | F183: 0.9942857143 | G183: 0.005714285714 | H183: 0
B184: Frauenthal, Mr. Isaac Gerald | C184: 178 | D184: 1 | E184: 2 | F184: 0.1741573034 | G184: 0.8258426966 | H184: 0
B185: Frolicher, Miss. Hedwig Margaritha | C185: 181 | D185: 1 | E185: 1 | F185: 0.6740331492 | G185: 0.320441989 | H185: 0.005524861878
B186: Frolicher-Stehli, Mr. Maxmillian | C186: 176 | D186: 1 | E186: 1 | F186: 0.9943181818 | G186: 0.005681818182 | H186: 0
B187: Frolicher-Stehli, Mrs. Maxmillian (Margaretha Emerentia Stehli) | C187: 168 | D187: 1 | E187: 1 | F187: 1 | G187: 0 | H187: 0
B188: Futrelle, Mr. Jacques Heath | C188: 183 | D188: 1 | E188: 1 | F188: 1 | G188: 0 | H188: 0
B189: Futrelle, Mrs. Jacques Heath (Lily May Peel) | C189: 165 | D189: 1 | E189: 1 | F189: 1 | G189: 0 | H189: 0
B190: Gee, Mr. Arthur H | C190: 186 | D190: 1 | E190: 1 | F190: 0.9677419355 | G190: 0.005376344086 | H190: 0.02688172043
B191: Geiger, Miss. Amalie | C191: 197 | D191: 1 | E191: 1 | F191: 1 | G191: 0 | H191: 0
B192: Gibson, Miss. Dorothy Winifred | C192: 187 | D192: 1 | E192: 1 | F192: 1 | G192: 0 | H192: 0
B193: Gibson, Mrs. Leonard (Pauline C Boeson) | C193: 182 | D193: 1 | E193: 1 | F193: 1 | G193: 0 | H193: 0
B194: Giglio, Mr. Victor | C194: 194 | D194: 1 | E194: 1 | F194: 0.9690721649 | G194: 0.03092783505 | H194: 0
B195: Goldenberg, Mr. Samuel L | C195: 187 | D195: 1 | E195: 1 | F195: 1 | G195: 0 | H195: 0
B196: Goldschmidt, Mr. George B | C196: 188 | D196: 1 | E196: 1 | F196: 1 | G196: 0 | H196: 0
B197: Gracie, Col. Archibald IV | C197: 184 | D197: 1 | E197: 1 | F197: 1 | G197: 0 | H197: 0
B198: Graham, Miss. Margaret Edith | C198: 189 | D198: 1 | E198: 2 | F198: 0.2592592593 | G198: 0.7142857143 | H198: 0.02645502646
B199: Graham, Mr. George Edward | C199: 190 | D199: 1 | E199: 1 | F199: 1 | G199: 0 | H199: 0
B200: Graham, Mrs. William Thompson (Edith Junkins) | C200: 172 | D200: 1 | E200: 1 | F200: 1 | G200: 0 | H200: 0
B201: Greenfield, Mr. William Bertram | C201: 177 | D201: 1 | E201: 1 | F201: 0.988700565 | G201: 0.01129943503 | H201: 0
B202: Greenfield, Mrs. Leo David (Blanche Strouse) | C202: 174 | D202: 1 | E202: 1 | F202: 0.9885057471 | G202: 0.01149425287 | H202: 0
B203: Guggenheim, Mr. Benjamin | C203: 198 | D203: 1 | E203: 1 | F203: 1 | G203: 0 | H203: 0
B204: Harder, Mr. George Achilles | C204: 196 | D204: 1 | E204: 1 | F204: 0.8775510204 | G204: 0 | H204: 0.1224489796
B205: Harder, Mrs. George Achilles (Dorothy Annan) | C205: 181 | D205: 1 | E205: 1 | F205: 0.8729281768 | G205: 0 | H205: 0.1270718232
B206: Harper, Mr. Henry Sleeper | C206: 188 | D206: 1 | E206: 1 | F206: 1 | G206: 0 | H206: 0
B207: Harper, Mrs. Henry Sleeper (Myna Haxtun) | C207: 195 | D207: 1 | E207: 1 | F207: 1 | G207: 0 | H207: 0
B208: Harris, Mr. Henry Birkhardt | C208: 181 | D208: 1 | E208: 1 | F208: 1 | G208: 0 | H208: 0
B209: Harris, Mrs. Henry Birkhardt (Irene Wallach) | C209: 190 | D209: 1 | E209: 1 | F209: 1 | G209: 0 | H209: 0
B210: Harrison, Mr. William | C210: 187 | D210: 1 | E210: 1 | F210: 0.8556149733 | G210: 0 | H210: 0.1443850267
B211: Hassab, Mr. Hammad | C211: 182 | D211: 1 | E211: 1 | F211: 0.989010989 | G211: 0 | H211: 0.01098901099
B212: Hays, Miss. Margaret Bechstein | C212: 188 | D212: 1 | E212: 1 | F212: 1 | G212: 0 | H212: 0
B213: Hays, Mr. Charles Melville | C213: 171 | D213: 1 | E213: 1 | F213: 1 | G213: 0 | H213: 0
B214: Hays, Mrs. Charles Melville (Clara Jennings Gregg) | C214: 170 | D214: 1 | E214: 1 | F214: 1 | G214: 0 | H214: 0
B215: Head, Mr. Christopher | C215: 186 | D215: 1 | E215: 1 | F215: 0.9892473118 | G215: 0 | H215: 0.01075268817
B216: Hipkins, Mr. William Edward | C216: 190 | D216: 1 | E216: 1 | F216: 0.9736842105 | G216: 0 | H216: 0.02631578947
B217: Hippach, Miss. Jean Gertrude | C217: 187 | D217: 1 | E217: 1 | F217: 0.9465240642 | G217: 0.03743315508 | H217: 0.01604278075
B218: Hippach, Mrs. Louis Albert (Ida Sophia Fischer) | C218: 182 | D218: 1 | E218: 1 | F218: 1 | G218: 0 | H218: 0
B219: Hogeboom, Mrs. John C (Anna Andrews) | C219: 185 | D219: 1 | E219: 1 | F219: 1 | G219: 0 | H219: 0
B220: Holverson, Mr. Alexander Oskar | C220: 162 | D220: 1 | E220: 1 | F220: 1 | G220: 0 | H220: 0
B221: Holverson, Mrs. Alexander Oskar (Mary Aline Towner) | C221: 181 | D221: 1 | E221: 1 | F221: 1 | G221: 0 | H221: 0
B222: Homer, Mr. Harry ("Mr E Haven") | C222: 189 | D222: 1 | E222: 1 | F222: 1 | G222: 0 | H222: 0
B223: Hoyt, Mr. Frederick Maxfield | C223: 177 | D223: 1 | E223: 1 | F223: 1 | G223: 0 | H223: 0
B224: Hoyt, Mrs. Frederick Maxfield (Jane Anne Forby) | C224: 204 | D224: 1 | E224: 1 | F224: 1 | G224: 0 | H224: 0
B225: Isham, Miss. Ann Elizabeth | C225: 175 | D225: 1 | E225: 1 | F225: 0.9942857143 | G225: 0 | H225: 0.005714285714
B226: Ismay, Mr. Joseph Bruce | C226: 204 | D226: 1 | E226: 3 | F226: 0.3235294118 | G226: 0 | H226: 0.6764705882
B227: Jones, Mr. Charles Cresson | C227: 180 | D227: 1 | E227: 2 | F227: 0.3277777778 | G227: 0.6722222222 | H227: 0
B228: Julian, Mr. Henry Forbes | C228: 181 | D228: 1 | E228: 1 | F228: 0.6574585635 | G228: 0.3425414365 | H228: 0
B229: Keeping, Mr. Edwin | C229: 198 | D229: 1 | E229: 1 | F229: 0.9797979798 | G229: 0.0202020202 | H229: 0
B230: Kent, Mr. Edward Austin | C230: 178 | D230: 1 | E230: 1 | F230: 1 | G230: 0 | H230: 0
B231: Kenyon, Mr. Frederick R | C231: 174 | D231: 1 | E231: 1 | F231: 1 | G231: 0 | H231: 0
B232: Kimball, Mr. Edwin Nelson Jr | C232: 192 | D232: 1 | E232: 1 | F232: 1 | G232: 0 | H232: 0
B233: Kimball, Mrs. Edwin Nelson Jr (Gertrude Parsons) | C233: 186 | D233: 1 | E233: 1 | F233: 1 | G233: 0 | H233: 0
B234: Kreuchen, Miss. Emilie | C234: 190 | D234: 1 | E234: 1 | F234: 1 | G234: 0 | H234: 0
B235: Leader, Dr. Alice (Farnham) | C235: 181 | D235: 1 | E235: 1 | F235: 0.9502762431 | G235: 0.04972375691 | H235: 0
B236: LeRoy, Miss. Bertha | C236: 168 | D236: 1 | E236: 1 | F236: 1 | G236: 0 | H236: 0
B237: Lesurer, Mr. Gustave J | C237: 179 | D237: 1 | E237: 1 | F237: 1 | G237: 0 | H237: 0
B238: Lindeberg-Lind, Mr. Erik Gustaf ("Mr Edward Lingrey") | C238: 165 | D238: 1 | E238: 1 | F238: 1 | G238: 0 | H238: 0
B239: Lindstrom, Mrs. Carl Johan (Sigrid Posse) | C239: 185 | D239: 1 | E239: 1 | F239: 1 | G239: 0 | H239: 0
B240: Lines, Miss. Mary Conover | C240: 181 | D240: 1 | E240: 2 | F240: 0.1104972376 | G240: 0.7458563536 | H240: 0.1436464088
B241: Lines, Mrs. Ernest H (Elizabeth Lindsey James) | C241: 185 | D241: 1 | E241: 1 | F241: 0.5135135135 | G241: 0.4054054054 | H241: 0.08108108108
B242: Long, Mr. Milton Clyde | C242: 175 | D242: 1 | E242: 1 | F242: 0.9771428571 | G242: 0.01714285714 | H242: 0.005714285714
B243: Longley, Miss. Gretchen Fiske | C243: 193 | D243: 1 | E243: 1 | F243: 1 | G243: 0 | H243: 0
B244: Loring, Mr. Joseph Holland | C244: 163 | D244: 1 | E244: 1 | F244: 0.9141104294 | G244: 0.01840490798 | H244: 0.06748466258
B245: Lurette, Miss. Elise | C245: 188 | D245: 1 | E245: 1 | F245: 1 | G245: 0 | H245: 0
B246: Madill, Miss. Georgette Alexandra | C246: 193 | D246: 1 | E246: 1 | F246: 1 | G246: 0 | H246: 0
B247: Maguire, Mr. John Edward | C247: 184 | D247: 1 | E247: 2 | F247: 0.08152173913 | G247: 0.9184782609 | H247: 0
B248: Maioni, Miss. Roberta | C248: 190 | D248: 1 | E248: 1 | F248: 0.9894736842 | G248: 0.01052631579 | H248: 0
B249: Marvin, Mr. Daniel Warner | C249: 174 | D249: 1 | E249: 1 | F249: 0.9540229885 | G249: 0.04022988506 | H249: 0.005747126437
B250: Marvin, Mrs. Daniel Warner (Mary Graham Carmichael Farquarson) | C250: 194 | D250: 1 | E250: 1 | F250: 0.9742268041 | G250: 0.01546391753 | H250: 0.01030927835
B251: Mayne, Mlle. Berthe Antonine ("Mrs de Villiers") | C251: 194 | D251: 1 | E251: 1 | F251: 0.9742268041 | G251: 0.005154639175 | H251: 0.0206185567
B252: McCaffry, Mr. Thomas Francis | C252: 190 | D252: 1 | E252: 1 | F252: 1 | G252: 0 | H252: 0
... 867 more rows

Sheet XLSTAT_20241223_164654_1_HID1 (hidden)
A1: 1 | B1: =(A1-1) -> 0 | C1: =0.1245003329+B1*0.001074391 -> 0.1245003329 | D1: =IF(B1/2-INT(B1/2)<0.1,2.1245003329,2.8754996671) -> 2.124500333 | E1: 1 | F1: =(E1-1) -> 0 | G1: =0.1353083494+F1*0.0010434668 -> 0.1353083494 | H1: =IF(F1/2-INT(F1/2)<0.1,2.1353083494,2.8646916506) -> 2.135308349 | I1: 1 | J1: =(I1-1) -> 0 | K1: =1.4163339973+J1*0.0002393877 -> 1.416333997 | L1: =IF(J1/2-INT(J1/2)<0.1,2.4163339973,2.5836660027) -> 2.416333997 | M1: 1 | N1: =(M1-1) -> 0 | O1: =2.4683772234+N1*0.00009048 -> 2.468377223 | P1: =IF(N1/2-INT(N1/2)<0.1,2.4683772234,2.5316227766) -> 2.468377223 | Q1: 1 | R1: =(Q1-1) -> 0 | S1: =0.4408392022+R1*0.0001692727 -> 0.4408392022 | T1: =IF(R1/2-INT(R1/2)<0.1,1.4408392022,1.5591607978) -> 1.440839202 | U1: 1 | V1: =(U1-1) -> 0 | W1: =1.1387521626+V1*0.0010336133 -> 1.138752163 | X1: =IF(V1/2-INT(V1/2)<0.1,1.1387521626,1.8612478374) -> 1.138752163 | Y1: 1 | Z1: =(Y1-1) -> 0 | AA1: =1.1557617104+Z1*0.000984945 -> 1.15576171 | AB1: =IF(Z1/2-INT(Z1/2)<0.1,1.1557617104,1.8442382896) -> 1.15576171 | AC1: 1 | AD1: =(AC1-1) -> 0 | AE1: =2.4078045554+AD1*0.0002637924 -> 2.407804555 | AF1: =IF(AD1/2-INT(AD1/2)<0.1,1.4078045554,1.5921954446) -> 1.407804555 | AG1: 1 | AH1: =(AG1-1) -> 0 | AI1: =0.4683772234+AH1*0.00009048 -> 0.4683772234 | AJ1: =IF(AH1/2-INT(AH1/2)<0.1,0.4683772234,0.5316227766) -> 0.4683772234 | AK1: 1 | AL1: =(AK1-1) -> 0 | AM1: =1.4292893219+AL1*0.0002023195 -> 1.429289322 | AN1: =IF(AL1/2-INT(AL1/2)<0.1,0.4292893219,0.5707106781) -> 0.4292893219 | AO1: 1 | AP1: =(AO1-1) -> 0 | AQ1: =2+AP1*0.0014306152 -> 2 | AR1: =IF(AP1/2-INT(AP1/2)<0.1,0,1) -> 0 | AS1: 1 | AT1: =(AS1-1) -> 0 | AU1: =2.0060364386+AT1*0.0014133435 -> 2.006036439 | AV1: =IF(AT1/2-INT(AT1/2)<0.1,0.0060364386,0.9939635614) -> 0.0060364386
A2: 2 | B2: 1 | C2: 0.1255747239 | D2: 2.875499667 | E2: 2 | F2: 1 | G2: 0.1363518162 | H2: 2.864691651 | I2: 2 | J2: 1 | K2: 1.416573385 | L2: 2.583666003 | M2: 2 | N2: 1 | O2: 2.468467703 | P2: 2.531622777 | Q2: 2 | R2: 1 | S2: 0.4410084749 | T2: 1.559160798 | U2: 2 | V2: 1 | W2: 1.139785776 | X2: 1.861247837 | Y2: 2 | Z2: 1 | AA2: 1.156746655 | AB2: 1.84423829 | AC2: 2 | AD2: 1 | AE2: 2.408068348 | AF2: 1.592195445 | AG2: 2 | AH2: 1 | AI2: 0.4684677034 | AJ2: 0.5316227766 | AK2: 2 | AL2: 1 | AM2: 1.429491641 | AN2: 0.5707106781 | AO2: 2 | AP2: 1 | AQ2: 2.001430615 | AR2: 1 | AS2: 2 | AT2: 1 | AU2: 2.007449782 | AV2: 0.9939635614
A3: 3 | B3: 2 | C3: 0.1266491149 | D3: 2.124500333 | E3: 3 | F3: 2 | G3: 0.137395283 | H3: 2.135308349 | I3: 3 | J3: 2 | K3: 1.416812773 | L3: 2.416333997 | M3: 3 | N3: 2 | O3: 2.468558183 | P3: 2.468377223 | Q3: 3 | R3: 2 | S3: 0.4411777476 | T3: 1.440839202 | U3: 3 | V3: 2 | W3: 1.140819389 | X3: 1.138752163 | Y3: 3 | Z3: 2 | AA3: 1.1577316 | AB3: 1.15576171 | AC3: 3 | AD3: 2 | AE3: 2.40833214 | AF3: 1.407804555 | AG3: 3 | AH3: 2 | AI3: 0.4685581834 | AJ3: 0.4683772234 | AK3: 3 | AL3: 2 | AM3: 1.429693961 | AN3: 0.4292893219 | AO3: 3 | AP3: 2 | AQ3: 2.00286123 | AR3: 0 | AS3: 3 | AT3: 2 | AU3: 2.008863126 | AV3: 0.0060364386
A4: 4 | B4: 3 | C4: 0.1277235059 | D4: 2.875499667 | E4: 4 | F4: 3 | G4: 0.1384387498 | H4: 2.864691651 | I4: 4 | J4: 3 | K4: 1.41705216 | L4: 2.583666003 | M4: 4 | N4: 3 | O4: 2.468648663 | P4: 2.531622777 | Q4: 4 | R4: 3 | S4: 0.4413470203 | T4: 1.559160798 | U4: 4 | V4: 3 | W4: 1.141853002 | X4: 1.861247837 | Y4: 4 | Z4: 3 | AA4: 1.158716545 | AB4: 1.84423829 | AC4: 4 | AD4: 3 | AE4: 2.408595933 | AF4: 1.592195445 | AG4: 4 | AH4: 3 | AI4: 0.4686486634 | AJ4: 0.5316227766 | AK4: 4 | AL4: 3 | AM4: 1.42989628 | AN4: 0.5707106781 | AO4: 4 | AP4: 3 | AQ4: 2.004291846 | AR4: 1 | AS4: 4 | AT4: 3 | AU4: 2.010276469 | AV4: 0.9939635614
A5: 5 | B5: 4 | C5: 0.1287978969 | D5: 2.124500333 | E5: 5 | F5: 4 | G5: 0.1394822166 | H5: 2.135308349 | I5: 5 | J5: 4 | K5: 1.417291548 | L5: 2.416333997 | M5: 5 | N5: 4 | O5: 2.468739143 | P5: 2.468377223 | Q5: 5 | R5: 4 | S5: 0.441516293 | T5: 1.440839202 | U5: 5 | V5: 4 | W5: 1.142886616 | X5: 1.138752163 | Y5: 5 | Z5: 4 | AA5: 1.15970149 | AB5: 1.15576171 | AC5: 5 | AD5: 4 | AE5: 2.408859725 | AF5: 1.407804555 | AG5: 5 | AH5: 4 | AI5: 0.4687391434 | AJ5: 0.4683772234 | AK5: 5 | AL5: 4 | AM5: 1.4300986 | AN5: 0.4292893219 | AO5: 5 | AP5: 4 | AQ5: 2.005722461 | AR5: 0 | AS5: 5 | AT5: 4 | AU5: 2.011689813 | AV5: 0.0060364386
A6: 6 | B6: 5 | C6: 0.1298722879 | D6: 2.875499667 | E6: 6 | F6: 5 | G6: 0.1405256834 | H6: 2.864691651 | I6: 6 | J6: 5 | K6: 1.417530936 | L6: 2.583666003 | M6: 6 | N6: 5 | O6: 2.468829623 | P6: 2.531622777 | Q6: 6 | R6: 5 | S6: 0.4416855657 | T6: 1.559160798 | U6: 6 | V6: 5 | W6: 1.143920229 | X6: 1.861247837 | Y6: 6 | Z6: 5 | AA6: 1.160686435 | AB6: 1.84423829 | AC6: 6 | AD6: 5 | AE6: 2.409123517 | AF6: 1.592195445 | AG6: 6 | AH6: 5 | AI6: 0.4688296234 | AJ6: 0.5316227766 | AK6: 6 | AL6: 5 | AM6: 1.430300919 | AN6: 0.5707106781 | AO6: 6 | AP6: 5 | AQ6: 2.007153076 | AR6: 1 | AS6: 6 | AT6: 5 | AU6: 2.013103156 | AV6: 0.9939635614
A7: 7 | B7: 6 | C7: 0.1309466789 | D7: 2.124500333 | E7: 7 | F7: 6 | G7: 0.1415691502 | H7: 2.135308349 | I7: 7 | J7: 6 | K7: 1.417770323 | L7: 2.416333997 | M7: 7 | N7: 6 | O7: 2.468920103 | P7: 2.468377223 | Q7: 7 | R7: 6 | S7: 0.4418548384 | T7: 1.440839202 | U7: 7 | V7: 6 | W7: 1.144953842 | X7: 1.138752163 | Y7: 7 | Z7: 6 | AA7: 1.16167138 | AB7: 1.15576171 | AC7: 7 | AD7: 6 | AE7: 2.40938731 | AF7: 1.407804555 | AG7: 7 | AH7: 6 | AI7: 0.4689201034 | AJ7: 0.4683772234 | AK7: 7 | AL7: 6 | AM7: 1.430503239 | AN7: 0.4292893219 | AO7: 7 | AP7: 6 | AQ7: 2.008583691 | AR7: 0 | AS7: 7 | AT7: 6 | AU7: 2.0145165 | AV7: 0.0060364386
A8: 8 | B8: 7 | C8: 0.1320210699 | D8: 2.875499667 | E8: 8 | F8: 7 | G8: 0.142612617 | H8: 2.864691651 | I8: 8 | J8: 7 | K8: 1.418009711 | L8: 2.583666003 | M8: 8 | N8: 7 | O8: 2.469010583 | P8: 2.531622777 | Q8: 8 | R8: 7 | S8: 0.4420241111 | T8: 1.559160798 | U8: 8 | V8: 7 | W8: 1.145987456 | X8: 1.861247837 | Y8: 8 | Z8: 7 | AA8: 1.162656325 | AB8: 1.84423829 | AC8: 8 | AD8: 7 | AE8: 2.409651102 | AF8: 1.592195445 | AG8: 8 | AH8: 7 | AI8: 0.4690105834 | AJ8: 0.5316227766 | AK8: 8 | AL8: 7 | AM8: 1.430705558 | AN8: 0.5707106781 | AO8: 8 | AP8: 7 | AQ8: 2.010014306 | AR8: 1 | AS8: 8 | AT8: 7 | AU8: 2.015929843 | AV8: 0.9939635614
A9: 9 | B9: 8 | C9: 0.1330954609 | D9: 2.124500333 | E9: 9 | F9: 8 | G9: 0.1436560838 | H9: 2.135308349 | I9: 9 | J9: 8 | K9: 1.418249099 | L9: 2.416333997 | M9: 9 | N9: 8 | O9: 2.469101063 | P9: 2.468377223 | Q9: 9 | R9: 8 | S9: 0.4421933838 | T9: 1.440839202 | U9: 9 | V9: 8 | W9: 1.147021069 | X9: 1.138752163 | Y9: 9 | Z9: 8 | AA9: 1.16364127 | AB9: 1.15576171 | AC9: 9 | AD9: 8 | AE9: 2.409914895 | AF9: 1.407804555 | AG9: 9 | AH9: 8 | AI9: 0.4691010634 | AJ9: 0.4683772234 | AK9: 9 | AL9: 8 | AM9: 1.430907878 | AN9: 0.4292893219 | AO9: 9 | AP9: 8 | AQ9: 2.011444922 | AR9: 0 | AS9: 9 | AT9: 8 | AU9: 2.017343187 | AV9: 0.0060364386
A10: 10 | B10: 9 | C10: 0.1341698519 | D10: 2.875499667 | E10: 10 | F10: 9 | G10: 0.1446995506 | H10: 2.864691651 | I10: 10 | J10: 9 | K10: 1.418488487 | L10: 2.583666003 | M10: 10 | N10: 9 | O10: 2.469191543 | P10: 2.531622777 | Q10: 10 | R10: 9 | S10: 0.4423626565 | T10: 1.559160798 | U10: 10 | V10: 9 | W10: 1.148054682 | X10: 1.861247837 | Y10: 10 | Z10: 9 | AA10: 1.164626215 | AB10: 1.84423829 | AC10: 10 | AD10: 9 | AE10: 2.410178687 | AF10: 1.592195445 | AG10: 10 | AH10: 9 | AI10: 0.4691915434 | AJ10: 0.5316227766 | AK10: 10 | AL10: 9 | AM10: 1.431110197 | AN10: 0.5707106781 | AO10: 10 | AP10: 9 | AQ10: 2.012875537 | AR10: 1 | AS10: 10 | AT10: 9 | AU10: 2.01875653 | AV10: 0.9939635614
A11: 11 | B11: 10 | C11: 0.1352442429 | D11: 2.124500333 | E11: 11 | F11: 10 | G11: 0.1457430174 | H11: 2.135308349 | I11: 11 | J11: 10 | K11: 1.418727874 | L11: 2.416333997 | M11: 11 | N11: 10 | O11: 2.469282023 | P11: 2.468377223 | Q11: 11 | R11: 10 | S11: 0.4425319292 | T11: 1.440839202 | U11: 11 | V11: 10 | W11: 1.149088296 | X11: 1.138752163 | Y11: 11 | Z11: 10 | AA11: 1.16561116 | AB11: 1.15576171 | AC11: 11 | AD11: 10 | AE11: 2.410442479 | AF11: 1.407804555 | AG11: 11 | AH11: 10 | AI11: 0.4692820234 | AJ11: 0.4683772234 | AK11: 11 | AL11: 10 | AM11: 1.431312517 | AN11: 0.4292893219 | AO11: 11 | AP11: 10 | AQ11: 2.014306152 | AR11: 0 | AS11: 11 | AT11: 10 | AU11: 2.020169874 | AV11: 0.0060364386
A12: 12 | B12: 11 | C12: 0.1363186339 | D12: 2.875499667 | E12: 12 | F12: 11 | G12: 0.1467864842 | H12: 2.864691651 | I12: 12 | J12: 11 | K12: 1.418967262 | L12: 2.583666003 | M12: 12 | N12: 11 | O12: 2.469372503 | P12: 2.531622777 | Q12: 12 | R12: 11 | S12: 0.4427012019 | T12: 1.559160798 | U12: 12 | V12: 11 | W12: 1.150121909 | X12: 1.861247837 | Y12: 12 | Z12: 11 | AA12: 1.166596105 | AB12: 1.84423829 | AC12: 12 | AD12: 11 | AE12: 2.410706272 | AF12: 1.592195445 | AG12: 12 | AH12: 11 | AI12: 0.4693725034 | AJ12: 0.5316227766 | AK12: 12 | AL12: 11 | AM12: 1.431514836 | AN12: 0.5707106781 | AO12: 12 | AP12: 11 | AQ12: 2.015736767 | AR12: 1 | AS12: 12 | AT12: 11 | AU12: 2.021583217 | AV12: 0.9939635614
A13: 13 | B13: 12 | C13: 0.1373930249 | D13: 2.124500333 | E13: 13 | F13: 12 | G13: 0.147829951 | H13: 2.135308349 | I13: 13 | J13: 12 | K13: 1.41920665 | L13: 2.416333997 | M13: 13 | N13: 12 | O13: 2.469462983 | P13: 2.468377223 | Q13: 13 | R13: 12 | S13: 0.4428704746 | T13: 1.440839202 | U13: 13 | V13: 12 | W13: 1.151155522 | X13: 1.138752163 | Y13: 13 | Z13: 12 | AA13: 1.16758105 | AB13: 1.15576171 | AC13: 13 | AD13: 12 | AE13: 2.410970064 | AF13: 1.407804555 | AG13: 13 | AH13: 12 | AI13: 0.4694629834 | AJ13: 0.4683772234 | AK13: 13 | AL13: 12 | AM13: 1.431717156 | AN13: 0.4292893219 | AO13: 13 | AP13: 12 | AQ13: 2.017167382 | AR13: 0 | AS13: 13 | AT13: 12 | AU13: 2.022996561 | AV13: 0.0060364386
A14: 14 | B14: 13 | C14: 0.1384674159 | D14: 2.875499667 | E14: 14 | F14: 13 | G14: 0.1488734178 | H14: 2.864691651 | I14: 14 | J14: 13 | K14: 1.419446037 | L14: 2.583666003 | M14: 14 | N14: 13 | O14: 2.469553463 | P14: 2.531622777 | Q14: 14 | R14: 13 | S14: 0.4430397473 | T14: 1.559160798 | U14: 14 | V14: 13 | W14: 1.152189135 | X14: 1.861247837 | Y14: 14 | Z14: 13 | AA14: 1.168565995 | AB14: 1.84423829 | AC14: 14 | AD14: 13 | AE14: 2.411233857 | AF14: 1.592195445 | AG14: 14 | AH14: 13 | AI14: 0.4695534634 | AJ14: 0.5316227766 | AK14: 14 | AL14: 13 | AM14: 1.431919475 | AN14: 0.5707106781 | AO14: 14 | AP14: 13 | AQ14: 2.018597998 | AR14: 1 | AS14: 14 | AT14: 13 | AU14: 2.024409904 | AV14: 0.9939635614
A15: 15 | B15: 14 | C15: 0.1395418069 | D15: 2.124500333 | E15: 15 | F15: 14 | G15: 0.1499168846 | H15: 2.135308349 | I15: 15 | J15: 14 | K15: 1.419685425 | L15: 2.416333997 | M15: 15 | N15: 14 | O15: 2.469643943 | P15: 2.468377223 | Q15: 15 | R15: 14 | S15: 0.44320902 | T15: 1.440839202 | U15: 15 | V15: 14 | W15: 1.153222749 | X15: 1.138752163 | Y15: 15 | Z15: 14 | AA15: 1.16955094 | AB15: 1.15576171 | AC15: 15 | AD15: 14 | AE15: 2.411497649 | AF15: 1.407804555 | AG15: 15 | AH15: 14 | AI15: 0.4696439434 | AJ15: 0.4683772234 | AK15: 15 | AL15: 14 | AM15: 1.432121795 | AN15: 0.4292893219 | AO15: 15 | AP15: 14 | AQ15: 2.020028613 | AR15: 0 | AS15: 15 | AT15: 14 | AU15: 2.025823248 | AV15: 0.0060364386
A16: 16 | B16: 15 | C16: 0.1406161979 | D16: 2.875499667 | E16: 16 | F16: 15 | G16: 0.1509603514 | H16: 2.864691651 | I16: 16 | J16: 15 | K16: 1.419924813 | L16: 2.583666003 | M16: 16 | N16: 15 | O16: 2.469734423 | P16: 2.531622777 | Q16: 16 | R16: 15 | S16: 0.4433782927 | T16: 1.559160798 | U16: 16 | V16: 15 | W16: 1.154256362 | X16: 1.861247837 | Y16: 16 | Z16: 15 | AA16: 1.170535885 | AB16: 1.84423829 | AC16: 16 | AD16: 15 | AE16: 2.411761441 | AF16: 1.592195445 | AG16: 16 | AH16: 15 | AI16: 0.4697344234 | AJ16: 0.5316227766 | AK16: 16 | AL16: 15 | AM16: 1.432324114 | AN16: 0.5707106781 | AO16: 16 | AP16: 15 | AQ16: 2.021459228 | AR16: 1 | AS16: 16 | AT16: 15 | AU16: 2.027236591 | AV16: 0.9939635614
A17: 17 | B17: 16 | C17: 0.1416905889 | D17: 2.124500333 | E17: 17 | F17: 16 | G17: 0.1520038182 | H17: 2.135308349 | I17: 17 | J17: 16 | K17: 1.4201642 | L17: 2.416333997 | M17: 17 | N17: 16 | O17: 2.469824903 | P17: 2.468377223 | Q17: 17 | R17: 16 | S17: 0.4435475654 | T17: 1.440839202 | U17: 17 | V17: 16 | W17: 1.155289975 | X17: 1.138752163 | Y17: 17 | Z17: 16 | AA17: 1.17152083 | AB17: 1.15576171 | AC17: 17 | AD17: 16 | AE17: 2.412025234 | AF17: 1.407804555 | AG17: 17 | AH17: 16 | AI17: 0.4698249034 | AJ17: 0.4683772234 | AK17: 17 | AL17: 16 | AM17: 1.432526434 | AN17: 0.4292893219 | AO17: 17 | AP17: 16 | AQ17: 2.022889843 | AR17: 0 | AS17: 17 | AT17: 16 | AU17: 2.028649935 | AV17: 0.0060364386
A18: 18 | B18: 17 | C18: 0.1427649799 | D18: 2.875499667 | E18: 18 | F18: 17 | G18: 0.153047285 | H18: 2.864691651 | I18: 18 | J18: 17 | K18: 1.420403588 | L18: 2.583666003 | M18: 18 | N18: 17 | O18: 2.469915383 | P18: 2.531622777 | Q18: 18 | R18: 17 | S18: 0.4437168381 | T18: 1.559160798 | U18: 18 | V18: 17 | W18: 1.156323589 | X18: 1.861247837 | Y18: 18 | Z18: 17 | AA18: 1.172505775 | AB18: 1.84423829 | AC18: 18 | AD18: 17 | AE18: 2.412289026 | AF18: 1.592195445 | AG18: 18 | AH18: 17 | AI18: 0.4699153834 | AJ18: 0.5316227766 | AK18: 18 | AL18: 17 | AM18: 1.432728753 | AN18: 0.5707106781 | AO18: 18 | AP18: 17 | AQ18: 2.024320458 | AR18: 1 | AS18: 18 | AT18: 17 | AU18: 2.030063278 | AV18: 0.9939635614
A19: 19 | B19: 18 | C19: 0.1438393709 | D19: 2.124500333 | E19: 19 | F19: 18 | G19: 0.1540907518 | H19: 2.135308349 | I19: 19 | J19: 18 | K19: 1.420642976 | L19: 2.416333997 | M19: 19 | N19: 18 | O19: 2.470005863 | P19: 2.468377223 | Q19: 19 | R19: 18 | S19: 0.4438861108 | T19: 1.440839202 | U19: 19 | V19: 18 | W19: 1.157357202 | X19: 1.138752163 | Y19: 19 | Z19: 18 | AA19: 1.17349072 | AB19: 1.15576171 | AC19: 19 | AD19: 18 | AE19: 2.412552819 | AF19: 1.407804555 | AG19: 19 | AH19: 18 | AI19: 0.4700058634 | AJ19: 0.4683772234 | AK19: 19 | AL19: 18 | AM19: 1.432931073 | AN19: 0.4292893219 | AO19: 19 | AP19: 18 | AQ19: 2.025751074 | AR19: 0 | AS19: 19 | AT19: 18 | AU19: 2.031476622 | AV19: 0.0060364386
A20: 20 | B20: 19 | C20: 0.1449137619 | D20: 2.875499667 | E20: 20 | F20: 19 | G20: 0.1551342186 | H20: 2.864691651 | I20: 20 | J20: 19 | K20: 1.420882364 | L20: 2.583666003 | M20: 20 | N20: 19 | O20: 2.470096343 | P20: 2.531622777 | Q20: 20 | R20: 19 | S20: 0.4440553835 | T20: 1.559160798 | U20: 20 | V20: 19 | W20: 1.158390815 | X20: 1.861247837 | Y20: 20 | Z20: 19 | AA20: 1.174475665 | AB20: 1.84423829 | AC20: 20 | AD20: 19 | AE20: 2.412816611 | AF20: 1.592195445 | AG20: 20 | AH20: 19 | AI20: 0.4700963434 | AJ20: 0.5316227766 | AK20: 20 | AL20: 19 | AM20: 1.433133392 | AN20: 0.5707106781 | AO20: 20 | AP20: 19 | AQ20: 2.027181689 | AR20: 1 | AS20: 20 | AT20: 19 | AU20: 2.032889965 | AV20: 0.9939635614
A21: 21 | B21: 20 | C21: 0.1459881529 | D21: 2.124500333 | E21: 21 | F21: 20 | G21: 0.1561776854 | H21: 2.135308349 | I21: 21 | J21: 20 | K21: 1.421121751 | L21: 2.416333997 | M21: 21 | N21: 20 | O21: 2.470186823 | P21: 2.468377223 | Q21: 21 | R21: 20 | S21: 0.4442246562 | T21: 1.440839202 | U21: 21 | V21: 20 | W21: 1.159424429 | X21: 1.138752163 | Y21: 21 | Z21: 20 | AA21: 1.17546061 | AB21: 1.15576171 | AC21: 21 | AD21: 20 | AE21: 2.413080403 | AF21: 1.407804555 | AG21: 21 | AH21: 20 | AI21: 0.4701868234 | AJ21: 0.4683772234 | AK21: 21 | AL21: 20 | AM21: 1.433335712 | AN21: 0.4292893219 | AO21: 21 | AP21: 20 | AQ21: 2.028612304 | AR21: 0 | AS21: 21 | AT21: 20 | AU21: 2.034303309 | AV21: 0.0060364386
A22: 22 | B22: 21 | C22: 0.1470625439 | D22: 2.875499667 | E22: 22 | F22: 21 | G22: 0.1572211522 | H22: 2.864691651 | I22: 22 | J22: 21 | K22: 1.421361139 | L22: 2.583666003 | M22: 22 | N22: 21 | O22: 2.470277303 | P22: 2.531622777 | Q22: 22 | R22: 21 | S22: 0.4443939289 | T22: 1.559160798 | U22: 22 | V22: 21 | W22: 1.160458042 | X22: 1.861247837 | Y22: 22 | Z22: 21 | AA22: 1.176445555 | AB22: 1.84423829 | AC22: 22 | AD22: 21 | AE22: 2.413344196 | AF22: 1.592195445 | AG22: 22 | AH22: 21 | AI22: 0.4702773034 | AJ22: 0.5316227766 | AK22: 22 | AL22: 21 | AM22: 1.433538031 | AN22: 0.5707106781 | AO22: 22 | AP22: 21 | AQ22: 2.030042919 | AR22: 1 | AS22: 22 | AT22: 21 | AU22: 2.035716652 | AV22: 0.9939635614
A23: 23 | B23: 22 | C23: 0.1481369349 | D23: 2.124500333 | E23: 23 | F23: 22 | G23: 0.158264619 | H23: 2.135308349 | I23: 23 | J23: 22 | K23: 1.421600527 | L23: 2.416333997 | M23: 23 | N23: 22 | O23: 2.470367783 | P23: 2.468377223 | Q23: 23 | R23: 22 | S23: 0.4445632016 | T23: 1.440839202 | U23: 23 | V23: 22 | W23: 1.161491655 | X23: 1.138752163 | Y23: 23 | Z23: 22 | AA23: 1.1774305 | AB23: 1.15576171 | AC23: 23 | AD23: 22 | AE23: 2.413607988 | AF23: 1.407804555 | AG23: 23 | AH23: 22 | AI23: 0.4703677834 | AJ23: 0.4683772234 | AK23: 23 | AL23: 22 | AM23: 1.433740351 | AN23: 0.4292893219 | AO23: 23 | AP23: 22 | AQ23: 2.031473534 | AR23: 0 | AS23: 23 | AT23: 22 | AU23: 2.037129996 | AV23: 0.0060364386
A24: 24 | B24: 23 | C24: 0.1492113259 | D24: 2.875499667 | E24: 24 | F24: 23 | G24: 0.1593080858 | H24: 2.864691651 | I24: 24 | J24: 23 | K24: 1.421839914 | L24: 2.583666003 | M24: 24 | N24: 23 | O24: 2.470458263 | P24: 2.531622777 | Q24: 24 | R24: 23 | S24: 0.4447324743 | T24: 1.559160798 | U24: 24 | V24: 23 | W24: 1.162525268 | X24: 1.861247837 | Y24: 24 | Z24: 23 | AA24: 1.178415445 | AB24: 1.84423829 | AC24: 24 | AD24: 23 | AE24: 2.413871781 | AF24: 1.592195445 | AG24: 24 | AH24: 23 | AI24: 0.4704582634 | AJ24: 0.5316227766 | AK24: 24 | AL24: 23 | AM24: 1.43394267 | AN24: 0.5707106781 | AO24: 24 | AP24: 23 | AQ24: 2.03290415 | AR24: 1 | AS24: 24 | AT24: 23 | AU24: 2.038543339 | AV24: 0.9939635614
A25: 25 | B25: 24 | C25: 0.1502857169 | D25: 2.124500333 | E25: 25 | F25: 24 | G25: 0.1603515526 | H25: 2.135308349 | I25: 25 | J25: 24 | K25: 1.422079302 | L25: 2.416333997 | M25: 25 | N25: 24 | O25: 2.470548743 | P25: 2.468377223 | Q25: 25 | R25: 24 | S25: 0.444901747 | T25: 1.440839202 | U25: 25 | V25: 24 | W25: 1.163558882 | X25: 1.138752163 | Y25: 25 | Z25: 24 | AA25: 1.17940039 | AB25: 1.15576171 | AC25: 25 | AD25: 24 | AE25: 2.414135573 | AF25: 1.407804555 | AG25: 25 | AH25: 24 | AI25: 0.4705487434 | AJ25: 0.4683772234 | AK25: 25 | AL25: 24 | AM25: 1.43414499 | AN25: 0.4292893219 | AO25: 25 | AP25: 24 | AQ25: 2.034334765 | AR25: 0 | AS25: 25 | AT25: 24 | AU25: 2.039956683 | AV25: 0.0060364386
A26: 26 | B26: 25 | C26: 0.1513601079 | D26: 2.875499667 | E26: 26 | F26: 25 | G26: 0.1613950194 | H26: 2.864691651 | I26: 26 | J26: 25 | K26: 1.42231869 | L26: 2.583666003 | M26: 26 | N26: 25 | O26: 2.470639223 | P26: 2.531622777 | Q26: 26 | R26: 25 | S26: 0.4450710197 | T26: 1.559160798 | U26: 26 | V26: 25 | W26: 1.164592495 | X26: 1.861247837 | Y26: 26 | Z26: 25 | AA26: 1.180385335 | AB26: 1.84423829 | AC26: 26 | AD26: 25 | AE26: 2.414399365 | AF26: 1.592195445 | AG26: 26 | AH26: 25 | AI26: 0.4706392234 | AJ26: 0.5316227766 | AK26: 26 | AL26: 25 | AM26: 1.434347309 | AN26: 0.5707106781 | AO26: 26 | AP26: 25 | AQ26: 2.03576538 | AR26: 1 | AS26: 26 | AT26: 25 | AU26: 2.041370026 | AV26: 0.9939635614
A27: 27 | B27: 26 | C27: 0.1524344989 | D27: 2.124500333 | E27: 27 | F27: 26 | G27: 0.1624384862 | H27: 2.135308349 | I27: 27 | J27: 26 | K27: 1.422558077 | L27: 2.416333997 | M27: 27 | N27: 26 | O27: 2.470729703 | P27: 2.468377223 | Q27: 27 | R27: 26 | S27: 0.4452402924 | T27: 1.440839202 | U27: 27 | V27: 26 | W27: 1.165626108 | X27: 1.138752163 | Y27: 27 | Z27: 26 | AA27: 1.18137028 | AB27: 1.15576171 | AC27: 27 | AD27: 26 | AE27: 2.414663158 | AF27: 1.407804555 | AG27: 27 | AH27: 26 | AI27: 0.4707297034 | AJ27: 0.4683772234 | AK27: 27 | AL27: 26 | AM27: 1.434549629 | AN27: 0.4292893219 | AO27: 27 | AP27: 26 | AQ27: 2.037195995 | AR27: 0 | AS27: 27 | AT27: 26 | AU27: 2.04278337 | AV27: 0.0060364386
A28: 28 | B28: 27 | C28: 0.1535088899 | D28: 2.875499667 | E28: 28 | F28: 27 | G28: 0.163481953 | H28: 2.864691651 | I28: 28 | J28: 27 | K28: 1.422797465 | L28: 2.583666003 | M28: 28 | N28: 27 | O28: 2.470820183 | P28: 2.531622777 | Q28: 28 | R28: 27 | S28: 0.4454095651 | T28: 1.559160798 | U28: 28 | V28: 27 | W28: 1.166659722 | X28: 1.861247837 | Y28: 28 | Z28: 27 | AA28: 1.182355225 | AB28: 1.84423829 | AC28: 28 | AD28: 27 | AE28: 2.41492695 | AF28: 1.592195445 | AG28: 28 | AH28: 27 | AI28: 0.4708201834 | AJ28: 0.5316227766 | AK28: 28 | AL28: 27 | AM28: 1.434751948 | AN28: 0.5707106781 | AO28: 28 | AP28: 27 | AQ28: 2.03862661 | AR28: 1 | AS28: 28 | AT28: 27 | AU28: 2.044196713 | AV28: 0.9939635614
A29: 29 | B29: 28 | C29: 0.1545832809 | D29: 2.124500333 | E29: 29 | F29: 28 | G29: 0.1645254198 | H29: 2.135308349 | I29: 29 | J29: 28 | K29: 1.423036853 | L29: 2.416333997 | M29: 29 | N29: 28 | O29: 2.470910663 | P29: 2.468377223 | Q29: 29 | R29: 28 | S29: 0.4455788378 | T29: 1.440839202 | U29: 29 | V29: 28 | W29: 1.167693335 | X29: 1.138752163 | Y29: 29 | Z29: 28 | AA29: 1.18334017 | AB29: 1.15576171 | AC29: 29 | AD29: 28 | AE29: 2.415190743 | AF29: 1.407804555 | AG29: 29 | AH29: 28 | AI29: 0.4709106634 | AJ29: 0.4683772234 | AK29: 29 | AL29: 28 | AM29: 1.434954268 | AN29: 0.4292893219 | AO29: 29 | AP29: 28 | AQ29: 2.040057226 | AR29: 0 | AS29: 29 | AT29: 28 | AU29: 2.045610057 | AV29: 0.0060364386
A30: 30 | B30: 29 | C30: 0.1556576719 | D30: 2.875499667 | E30: 30 | F30: 29 | G30: 0.1655688866 | H30: 2.864691651 | I30: 30 | J30: 29 | K30: 1.423276241 | L30: 2.583666003 | M30: 30 | N30: 29 | O30: 2.471001143 | P30: 2.531622777 | Q30: 30 | R30: 29 | S30: 0.4457481105 | T30: 1.559160798 | U30: 30 | V30: 29 | W30: 1.168726948 | X30: 1.861247837 | Y30: 30 | Z30: 29 | AA30: 1.184325115 | AB30: 1.84423829 | AC30: 30 | AD30: 29 | AE30: 2.415454535 | AF30: 1.592195445 | AG30: 30 | AH30: 29 | AI30: 0.4710011434 | AJ30: 0.5316227766 | AK30: 30 | AL30: 29 | AM30: 1.435156587 | AN30: 0.5707106781 | AO30: 30 | AP30: 29 | AQ30: 2.041487841 | AR30: 1 | AS30: 30 | AT30: 29 | AU30: 2.0470234 | AV30: 0.9939635614
A31: 31 | B31: 30 | C31: 0.1567320629 | D31: 2.124500333 | E31: 31 | F31: 30 | G31: 0.1666123534 | H31: 2.135308349 | I31: 31 | J31: 30 | K31: 1.423515628 | L31: 2.416333997 | M31: 31 | N31: 30 | O31: 2.471091623 | P31: 2.468377223 | Q31: 31 | R31: 30 | S31: 0.4459173832 | T31: 1.440839202 | U31: 31 | V31: 30 | W31: 1.169760562 | X31: 1.138752163 | Y31: 31 | Z31: 30 | AA31: 1.18531006 | AB31: 1.15576171 | AC31: 31 | AD31: 30 | AE31: 2.415718327 | AF31: 1.407804555 | AG31: 31 | AH31: 30 | AI31: 0.4710916234 | AJ31: 0.4683772234 | AK31: 31 | AL31: 30 | AM31: 1.435358907 | AN31: 0.4292893219 | AO31: 31 | AP31: 30 | AQ31: 2.042918456 | AR31: 0 | AS31: 31 | AT31: 30 | AU31: 2.048436744 | AV31: 0.0060364386
A32: 32 | B32: 31 | C32: 0.1578064539 | D32: 2.875499667 | E32: 32 | F32: 31 | G32: 0.1676558202 | H32: 2.864691651 | I32: 32 | J32: 31 | K32: 1.423755016 | L32: 2.583666003 | M32: 32 | N32: 31 | O32: 2.471182103 | P32: 2.531622777 | Q32: 32 | R32: 31 | S32: 0.4460866559 | T32: 1.559160798 | U32: 32 | V32: 31 | W32: 1.170794175 | X32: 1.861247837 | Y32: 32 | Z32: 31 | AA32: 1.186295005 | AB32: 1.84423829 | AC32: 32 | AD32: 31 | AE32: 2.41598212 | AF32: 1.592195445 | AG32: 32 | AH32: 31 | AI32: 0.4711821034 | AJ32: 0.5316227766 | AK32: 32 | AL32: 31 | AM32: 1.435561226 | AN32: 0.5707106781 | AO32: 32 | AP32: 31 | AQ32: 2.044349071 | AR32: 1 | AS32: 32 | AT32: 31 | AU32: 2.049850087 | AV32: 0.9939635614
A33: 33 | B33: 32 | C33: 0.1588808449 | D33: 2.124500333 | E33: 33 | F33: 32 | G33: 0.168699287 | H33: 2.135308349 | I33: 33 | J33: 32 | K33: 1.423994404 | L33: 2.416333997 | M33: 33 | N33: 32 | O33: 2.471272583 | P33: 2.468377223 | Q33: 33 | R33: 32 | S33: 0.4462559286 | T33: 1.440839202 | U33: 33 | V33: 32 | W33: 1.171827788 | X33: 1.138752163 | Y33: 33 | Z33: 32 | AA33: 1.18727995 | AB33: 1.15576171 | AC33: 33 | AD33: 32 | AE33: 2.416245912 | AF33: 1.407804555 | AG33: 33 | AH33: 32 | AI33: 0.4712725834 | AJ33: 0.4683772234 | AK33: 33 | AL33: 32 | AM33: 1.435763546 | AN33: 0.4292893219 | AO33: 33 | AP33: 32 | AQ33: 2.045779686 | AR33: 0 | AS33: 33 | AT33: 32 | AU33: 2.051263431 | AV33: 0.0060364386
A34: 34 | B34: 33 | C34: 0.1599552359 | D34: 2.875499667 | E34: 34 | F34: 33 | G34: 0.1697427538 | H34: 2.864691651 | I34: 34 | J34: 33 | K34: 1.424233791 | L34: 2.583666003 | M34: 34 | N34: 33 | O34: 2.471363063 | P34: 2.531622777 | Q34: 34 | R34: 33 | S34: 0.4464252013 | T34: 1.559160798 | U34: 34 | V34: 33 | W34: 1.172861401 | X34: 1.861247837 | Y34: 34 | Z34: 33 | AA34: 1.188264895 | AB34: 1.84423829 | AC34: 34 | AD34: 33 | AE34: 2.416509705 | AF34: 1.592195445 | AG34: 34 | AH34: 33 | AI34: 0.4713630634 | AJ34: 0.5316227766 | AK34: 34 | AL34: 33 | AM34: 1.435965865 | AN34: 0.5707106781 | AO34: 34 | AP34: 33 | AQ34: 2.047210302 | AR34: 1 | AS34: 34 | AT34: 33 | AU34: 2.052676774 | AV34: 0.9939635614
A35: 35 | B35: 34 | C35: 0.1610296269 | D35: 2.124500333 | E35: 35 | F35: 34 | G35: 0.1707862206 | H35: 2.135308349 | I35: 35 | J35: 34 | K35: 1.424473179 | L35: 2.416333997 | M35: 35 | N35: 34 | O35: 2.471453543 | P35: 2.468377223 | Q35: 35 | R35: 34 | S35: 0.446594474 | T35: 1.440839202 | U35: 35 | V35: 34 | W35: 1.173895015 | X35: 1.138752163 | Y35: 35 | Z35: 34 | AA35: 1.18924984 | AB35: 1.15576171 | AC35: 35 | AD35: 34 | AE35: 2.416773497 | AF35: 1.407804555 | AG35: 35 | AH35: 34 | AI35: 0.4714535434 | AJ35: 0.4683772234 | AK35: 35 | AL35: 34 | AM35: 1.436168185 | AN35: 0.4292893219 | AO35: 35 | AP35: 34 | AQ35: 2.048640917 | AR35: 0 | AS35: 35 | AT35: 34 | AU35: 2.054090118 | AV35: 0.0060364386
A36: 36 | B36: 35 | C36: 0.1621040179 | D36: 2.875499667 | E36: 36 | F36: 35 | G36: 0.1718296874 | H36: 2.864691651 | I36: 36 | J36: 35 | K36: 1.424712567 | L36: 2.583666003 | M36: 36 | N36: 35 | O36: 2.471544023 | P36: 2.531622777 | Q36: 36 | R36: 35 | S36: 0.4467637467 | T36: 1.559160798 | U36: 36 | V36: 35 | W36: 1.174928628 | X36: 1.861247837 | Y36: 36 | Z36: 35 | AA36: 1.190234785 | AB36: 1.84423829 | AC36: 36 | AD36: 35 | AE36: 2.417037289 | AF36: 1.592195445 | AG36: 36 | AH36: 35 | AI36: 0.4715440234 | AJ36: 0.5316227766 | AK36: 36 | AL36: 35 | AM36: 1.436370504 | AN36: 0.5707106781 | AO36: 36 | AP36: 35 | AQ36: 2.050071532 | AR36: 1 | AS36: 36 | AT36: 35 | AU36: 2.055503461 | AV36: 0.9939635614
A37: 37 | B37: 36 | C37: 0.1631784089 | D37: 2.124500333 | E37: 37 | F37: 36 | G37: 0.1728731542 | H37: 2.135308349 | I37: 37 | J37: 36 | K37: 1.424951955 | L37: 2.416333997 | M37: 37 | N37: 36 | O37: 2.471634503 | P37: 2.468377223 | Q37: 37 | R37: 36 | S37: 0.4469330194 | T37: 1.440839202 | U37: 37 | V37: 36 | W37: 1.175962241 | X37: 1.138752163 | Y37: 37 | Z37: 36 | AA37: 1.19121973 | AB37: 1.15576171 | AC37: 37 | AD37: 36 | AE37: 2.417301082 | AF37: 1.407804555 | AG37: 37 | AH37: 36 | AI37: 0.4716345034 | AJ37: 0.4683772234 | AK37: 37 | AL37: 36 | AM37: 1.436572824 | AN37: 0.4292893219 | AO37: 37 | AP37: 36 | AQ37: 2.051502147 | AR37: 0 | AS37: 37 | AT37: 36 | AU37: 2.056916805 | AV37: 0.0060364386
A38: 38 | B38: 37 | C38: 0.1642527999 | D38: 2.875499667 | E38: 38 | F38: 37 | G38: 0.173916621 | H38: 2.864691651 | I38: 38 | J38: 37 | K38: 1.425191342 | L38: 2.583666003 | M38: 38 | N38: 37 | O38: 2.471724983 | P38: 2.531622777 | Q38: 38 | R38: 37 | S38: 0.4471022921 | T38: 1.559160798 | U38: 38 | V38: 37 | W38: 1.176995855 | X38: 1.861247837 | Y38: 38 | Z38: 37 | AA38: 1.192204675 | AB38: 1.84423829 | AC38: 38 | AD38: 37 | AE38: 2.417564874 | AF38: 1.592195445 | AG38: 38 | AH38: 37 | AI38: 0.4717249834 | AJ38: 0.5316227766 | AK38: 38 | AL38: 37 | AM38: 1.436775143 | AN38: 0.5707106781 | AO38: 38 | AP38: 37 | AQ38: 2.052932762 | AR38: 1 | AS38: 38 | AT38: 37 | AU38: 2.058330148 | AV38: 0.9939635614
A39: 39 | B39: 38 | C39: 0.1653271909 | D39: 2.124500333 | E39: 39 | F39: 38 | G39: 0.1749600878 | H39: 2.135308349 | I39: 39 | J39: 38 | K39: 1.42543073 | L39: 2.416333997 | M39: 39 | N39: 38 | O39: 2.471815463 | P39: 2.468377223 | Q39: 39 | R39: 38 | S39: 0.4472715648 | T39: 1.440839202 | U39: 39 | V39: 38 | W39: 1.178029468 | X39: 1.138752163 | Y39: 39 | Z39: 38 | AA39: 1.19318962 | AB39: 1.15576171 | AC39: 39 | AD39: 38 | AE39: 2.417828667 | AF39: 1.407804555 | AG39: 39 | AH39: 38 | AI39: 0.4718154634 | AJ39: 0.4683772234 | AK39: 39 | AL39: 38 | AM39: 1.436977463 | AN39: 0.4292893219 | AO39: 39 | AP39: 38 | AQ39: 2.054363378 | AR39: 0 | AS39: 39 | AT39: 38 | AU39: 2.059743492 | AV39: 0.0060364386
A40: 40 | B40: 39 | C40: 0.1664015819 | D40: 2.875499667 | E40: 40 | F40: 39 | G40: 0.1760035546 | H40: 2.864691651 | I40: 40 | J40: 39 | K40: 1.425670118 | L40: 2.583666003 | M40: 40 | N40: 39 | O40: 2.471905943 | P40: 2.531622777 | Q40: 40 | R40: 39 | S40: 0.4474408375 | T40: 1.559160798 | U40: 40 | V40: 39 | W40: 1.179063081 | X40: 1.861247837 | Y40: 40 | Z40: 39 | AA40: 1.194174565 | AB40: 1.84423829 | AC40: 40 | AD40: 39 | AE40: 2.418092459 | AF40: 1.592195445 | AG40: 40 | AH40: 39 | AI40: 0.4719059434 | AJ40: 0.5316227766 | AK40: 40 | AL40: 39 | AM40: 1.437179782 | AN40: 0.5707106781 | AO40: 40 | AP40: 39 | AQ40: 2.055793993 | AR40: 1 | AS40: 40 | AT40: 39 | AU40: 2.061156835 | AV40: 0.9939635614
A41: 41 | B41: 40 | C41: 0.1674759729 | D41: 2.124500333 | E41: 41 | F41: 40 | G41: 0.1770470214 | H41: 2.135308349 | I41: 41 | J41: 40 | K41: 1.425909505 | L41: 2.416333997 | M41: 41 | N41: 40 | O41: 2.471996423 | P41: 2.468377223 | Q41: 41 | R41: 40 | S41: 0.4476101102 | T41: 1.440839202 | U41: 41 | V41: 40 | W41: 1.180096695 | X41: 1.138752163 | Y41: 41 | Z41: 40 | AA41: 1.19515951 | AB41: 1.15576171 | AC41: 41 | AD41: 40 | AE41: 2.418356251 | AF41: 1.407804555 | AG41: 41 | AH41: 40 | AI41: 0.4719964234 | AJ41: 0.4683772234 | AK41: 41 | AL41: 40 | AM41: 1.437382102 | AN41: 0.4292893219 | AO41: 41 | AP41: 40 | AQ41: 2.057224608 | AR41: 0 | AS41: 41 | AT41: 40 | AU41: 2.062570179 | AV41: 0.0060364386
A42: 42 | B42: 41 | C42: 0.1685503639 | D42: 2.875499667 | E42: 42 | F42: 41 | G42: 0.1780904882 | H42: 2.864691651 | I42: 42 | J42: 41 | K42: 1.426148893 | L42: 2.583666003 | M42: 42 | N42: 41 | O42: 2.472086903 | P42: 2.531622777 | Q42: 42 | R42: 41 | S42: 0.4477793829 | T42: 1.559160798 | U42: 42 | V42: 41 | W42: 1.181130308 | X42: 1.861247837 | Y42: 42 | Z42: 41 | AA42: 1.196144455 | AB42: 1.84423829 | AC42: 42 | AD42: 41 | AE42: 2.418620044 | AF42: 1.592195445 | AG42: 42 | AH42: 41 | AI42: 0.4720869034 | AJ42: 0.5316227766 | AK42: 42 | AL42: 41 | AM42: 1.437584421 | AN42: 0.5707106781 | AO42: 42 | AP42: 41 | AQ42: 2.058655223 | AR42: 1 | AS42: 42 | AT42: 41 | AU42: 2.063983522 | AV42: 0.9939635614
A43: 43 | B43: 42 | C43: 0.1696247549 | D43: 2.124500333 | E43: 43 | F43: 42 | G43: 0.179133955 | H43: 2.135308349 | I43: 43 | J43: 42 | K43: 1.426388281 | L43: 2.416333997 | M43: 43 | N43: 42 | O43: 2.472177383 | P43: 2.468377223 | Q43: 43 | R43: 42 | S43: 0.4479486556 | T43: 1.440839202 | U43: 43 | V43: 42 | W43: 1.182163921 | X43: 1.138752163 | Y43: 43 | Z43: 42 | AA43: 1.1971294 | AB43: 1.15576171 | AC43: 43 | AD43: 42 | AE43: 2.418883836 | AF43: 1.407804555 | AG43: 43 | AH43: 42 | AI43: 0.4721773834 | AJ43: 0.4683772234 | AK43: 43 | AL43: 42 | AM43: 1.437786741 | AN43: 0.4292893219 | AO43: 43 | AP43: 42 | AQ43: 2.060085838 | AR43: 0 | AS43: 43 | AT43: 42 | AU43: 2.065396866 | AV43: 0.0060364386
A44: 44 | B44: 43 | C44: 0.1706991459 | D44: 2.875499667 | E44: 44 | F44: 43 | G44: 0.1801774218 | H44: 2.864691651 | I44: 44 | J44: 43 | K44: 1.426627668 | L44: 2.583666003 | M44: 44 | N44: 43 | O44: 2.472267863 | P44: 2.531622777 | Q44: 44 | R44: 43 | S44: 0.4481179283 | T44: 1.559160798 | U44: 44 | V44: 43 | W44: 1.183197534 | X44: 1.861247837 | Y44: 44 | Z44: 43 | AA44: 1.198114345 | AB44: 1.84423829 | AC44: 44 | AD44: 43 | AE44: 2.419147629 | AF44: 1.592195445 | AG44: 44 | AH44: 43 | AI44: 0.4722678634 | AJ44: 0.5316227766 | AK44: 44 | AL44: 43 | AM44: 1.43798906 | AN44: 0.5707106781 | AO44: 44 | AP44: 43 | AQ44: 2.061516454 | AR44: 1 | AS44: 44 | AT44: 43 | AU44: 2.066810209 | AV44: 0.9939635614
A45: 45 | B45: 44 | C45: 0.1717735369 | D45: 2.124500333 | E45: 45 | F45: 44 | G45: 0.1812208886 | H45: 2.135308349 | I45: 45 | J45: 44 | K45: 1.426867056 | L45: 2.416333997 | M45: 45 | N45: 44 | O45: 2.472358343 | P45: 2.468377223 | Q45: 45 | R45: 44 | S45: 0.448287201 | T45: 1.440839202 | U45: 45 | V45: 44 | W45: 1.184231148 | X45: 1.138752163 | Y45: 45 | Z45: 44 | AA45: 1.19909929 | AB45: 1.15576171 | AC45: 45 | AD45: 44 | AE45: 2.419411421 | AF45: 1.407804555 | AG45: 45 | AH45: 44 | AI45: 0.4723583434 | AJ45: 0.4683772234 | AK45: 45 | AL45: 44 | AM45: 1.43819138 | AN45: 0.4292893219 | AO45: 45 | AP45: 44 | AQ45: 2.062947069 | AR45: 0 | AS45: 45 | AT45: 44 | AU45: 2.068223553 | AV45: 0.0060364386
A46: 46 | B46: 45 | C46: 0.1728479279 | D46: 2.875499667 | E46: 46 | F46: 45 | G46: 0.1822643554 | H46: 2.864691651 | I46: 46 | J46: 45 | K46: 1.427106444 | L46: 2.583666003 | M46: 46 | N46: 45 | O46: 2.472448823 | P46: 2.531622777 | Q46: 46 | R46: 45 | S46: 0.4484564737 | T46: 1.559160798 | U46: 46 | V46: 45 | W46: 1.185264761 | X46: 1.861247837 | Y46: 46 | Z46: 45 | AA46: 1.200084235 | AB46: 1.84423829 | AC46: 46 | AD46: 45 | AE46: 2.419675213 | AF46: 1.592195445 | AG46: 46 | AH46: 45 | AI46: 0.4724488234 | AJ46: 0.5316227766 | AK46: 46 | AL46: 45 | AM46: 1.438393699 | AN46: 0.5707106781 | AO46: 46 | AP46: 45 | AQ46: 2.064377684 | AR46: 1 | AS46: 46 | AT46: 45 | AU46: 2.069636896 | AV46: 0.9939635614
A47: 47 | B47: 46 | C47: 0.1739223189 | D47: 2.124500333 | E47: 47 | F47: 46 | G47: 0.1833078222 | H47: 2.135308349 | I47: 47 | J47: 46 | K47: 1.427345832 | L47: 2.416333997 | M47: 47 | N47: 46 | O47: 2.472539303 | P47: 2.468377223 | Q47: 47 | R47: 46 | S47: 0.4486257464 | T47: 1.440839202 | U47: 47 | V47: 46 | W47: 1.186298374 | X47: 1.138752163 | Y47: 47 | Z47: 46 | AA47: 1.20106918 | AB47: 1.15576171 | AC47: 47 | AD47: 46 | AE47: 2.419939006 | AF47: 1.407804555 | AG47: 47 | AH47: 46 | AI47: 0.4725393034 | AJ47: 0.4683772234 | AK47: 47 | AL47: 46 | AM47: 1.438596019 | AN47: 0.4292893219 | AO47: 47 | AP47: 46 | AQ47: 2.065808299 | AR47: 0 | AS47: 47 | AT47: 46 | AU47: 2.07105024 | AV47: 0.0060364386
A48: 48 | B48: 47 | C48: 0.1749967099 | D48: 2.875499667 | E48: 48 | F48: 47 | G48: 0.184351289 | H48: 2.864691651 | I48: 48 | J48: 47 | K48: 1.427585219 | L48: 2.583666003 | M48: 48 | N48: 47 | O48: 2.472629783 | P48: 2.531622777 | Q48: 48 | R48: 47 | S48: 0.4487950191 | T48: 1.559160798 | U48: 48 | V48: 47 | W48: 1.187331988 | X48: 1.861247837 | Y48: 48 | Z48: 47 | AA48: 1.202054125 | AB48: 1.84423829 | AC48: 48 | AD48: 47 | AE48: 2.420202798 | AF48: 1.592195445 | AG48: 48 | AH48: 47 | AI48: 0.4726297834 | AJ48: 0.5316227766 | AK48: 48 | AL48: 47 | AM48: 1.438798338 | AN48: 0.5707106781 | AO48: 48 | AP48: 47 | AQ48: 2.067238914 | AR48: 1 | AS48: 48 | AT48: 47 | AU48: 2.072463583 | AV48: 0.9939635614
A49: 49 | B49: 48 | C49: 0.1760711009 | D49: 2.124500333 | E49: 49 | F49: 48 | G49: 0.1853947558 | H49: 2.135308349 | I49: 49 | J49: 48 | K49: 1.427824607 | L49: 2.416333997 | M49: 49 | N49: 48 | O49: 2.472720263 | P49: 2.468377223 | Q49: 49 | R49: 48 | S49: 0.4489642918 | T49: 1.440839202 | U49: 49 | V49: 48 | W49: 1.188365601 | X49: 1.138752163 | Y49: 49 | Z49: 48 | AA49: 1.20303907 | AB49: 1.15576171 | AC49: 49 | AD49: 48 | AE49: 2.420466591 | AF49: 1.407804555 | AG49: 49 | AH49: 48 | AI49: 0.4727202634 | AJ49: 0.4683772234 | AK49: 49 | AL49: 48 | AM49: 1.439000658 | AN49: 0.4292893219 | AO49: 49 | AP49: 48 | AQ49: 2.06866953 | AR49: 0 | AS49: 49 | AT49: 48 | AU49: 2.073876927 | AV49: 0.0060364386
A50: 50 | B50: 49 | C50: 0.1771454919 | D50: 2.875499667 | E50: 50 | F50: 49 | G50: 0.1864382226 | H50: 2.864691651 | I50: 50 | J50: 49 | K50: 1.428063995 | L50: 2.583666003 | M50: 50 | N50: 49 | O50: 2.472810743 | P50: 2.531622777 | Q50: 50 | R50: 49 | S50: 0.4491335645 | T50: 1.559160798 | U50: 50 | V50: 49 | W50: 1.189399214 | X50: 1.861247837 | Y50: 50 | Z50: 49 | AA50: 1.204024015 | AB50: 1.84423829 | AC50: 50 | AD50: 49 | AE50: 2.420730383 | AF50: 1.592195445 | AG50: 50 | AH50: 49 | AI50: 0.4728107434 | AJ50: 0.5316227766 | AK50: 50 | AL50: 49 | AM50: 1.439202977 | AN50: 0.5707106781 | AO50: 50 | AP50: 49 | AQ50: 2.070100145 | AR50: 1 | AS50: 50 | AT50: 49 | AU50: 2.07529027 | AV50: 0.9939635614
A51: 51 | B51: 50 | C51: 0.1782198829 | D51: 2.124500333 | E51: 51 | F51: 50 | G51: 0.1874816894 | H51: 2.135308349 | I51: 51 | J51: 50 | K51: 1.428303382 | L51: 2.416333997 | M51: 51 | N51: 50 | O51: 2.472901223 | P51: 2.468377223 | Q51: 51 | R51: 50 | S51: 0.4493028372 | T51: 1.440839202 | U51: 51 | V51: 50 | W51: 1.190432828 | X51: 1.138752163 | Y51: 51 | Z51: 50 | AA51: 1.20500896 | AB51: 1.15576171 | AC51: 51 | AD51: 50 | AE51: 2.420994175 | AF51: 1.407804555 | AG51: 51 | AH51: 50 | AI51: 0.4729012234 | AJ51: 0.4683772234 | AK51: 51 | AL51: 50 | AM51: 1.439405297 | AN51: 0.4292893219 | AO51: 51 | AP51: 50 | AQ51: 2.07153076 | AR51: 0 | AS51: 51 | AT51: 50 | AU51: 2.076703614 | AV51: 0.0060364386
A52: 52 | B52: 51 | C52: 0.1792942739 | D52: 2.875499667 | E52: 52 | F52: 51 | G52: 0.1885251562 | H52: 2.864691651 | I52: 52 | J52: 51 | K52: 1.42854277 | L52: 2.583666003 | M52: 52 | N52: 51 | O52: 2.472991703 | P52: 2.531622777 | Q52: 52 | R52: 51 | S52: 0.4494721099 | T52: 1.559160798 | U52: 52 | V52: 51 | W52: 1.191466441 | X52: 1.861247837 | Y52: 52 | Z52: 51 | AA52: 1.205993905 | AB52: 1.84423829 | AC52: 52 | AD52: 51 | AE52: 2.421257968 | AF52: 1.592195445 | AG52: 52 | AH52: 51 | AI52: 0.4729917034 | AJ52: 0.5316227766 | AK52: 52 | AL52: 51 | AM52: 1.439607616 | AN52: 0.5707106781 | AO52: 52 | AP52: 51 | AQ52: 2.072961375 | AR52: 1 | AS52: 52 | AT52: 51 | AU52: 2.078116957 | AV52: 0.9939635614
A53: 53 | B53: 52 | C53: 0.1803686649 | D53: 2.124500333 | E53: 53 | F53: 52 | G53: 0.189568623 | H53: 2.135308349 | I53: 53 | J53: 52 | K53: 1.428782158 | L53: 2.416333997 | M53: 53 | N53: 52 | O53: 2.473082183 | P53: 2.468377223 | Q53: 53 | R53: 52 | S53: 0.4496413826 | T53: 1.440839202 | U53: 53 | V53: 52 | W53: 1.192500054 | X53: 1.138752163 | Y53: 53 | Z53: 52 | AA53: 1.20697885 | AB53: 1.15576171 | AC53: 53 | AD53: 52 | AE53: 2.42152176 | AF53: 1.407804555 | AG53: 53 | AH53: 52 | AI53: 0.4730821834 | AJ53: 0.4683772234 | AK53: 53 | AL53: 52 | AM53: 1.439809936 | AN53: 0.4292893219 | AO53: 53 | AP53: 52 | AQ53: 2.07439199 | AR53: 0 | AS53: 53 | AT53: 52 | AU53: 2.079530301 | AV53: 0.0060364386
A54: 54 | B54: 53 | C54: 0.1814430559 | D54: 2.875499667 | E54: 54 | F54: 53 | G54: 0.1906120898 | H54: 2.864691651 | I54: 54 | J54: 53 | K54: 1.429021545 | L54: 2.583666003 | M54: 54 | N54: 53 | O54: 2.473172663 | P54: 2.531622777 | Q54: 54 | R54: 53 | S54: 0.4498106553 | T54: 1.559160798 | U54: 54 | V54: 53 | W54: 1.193533667 | X54: 1.861247837 | Y54: 54 | Z54: 53 | AA54: 1.207963795 | AB54: 1.84423829 | AC54: 54 | AD54: 53 | AE54: 2.421785553 | AF54: 1.592195445 | AG54: 54 | AH54: 53 | AI54: 0.4731726634 | AJ54: 0.5316227766 | AK54: 54 | AL54: 53 | AM54: 1.440012255 | AN54: 0.5707106781 | AO54: 54 | AP54: 53 | AQ54: 2.075822606 | AR54: 1 | AS54: 54 | AT54: 53 | AU54: 2.080943644 | AV54: 0.9939635614
A55: 55 | B55: 54 | C55: 0.1825174469 | D55: 2.124500333 | E55: 55 | F55: 54 | G55: 0.1916555566 | H55: 2.135308349 | I55: 55 | J55: 54 | K55: 1.429260933 | L55: 2.416333997 | M55: 55 | N55: 54 | O55: 2.473263143 | P55: 2.468377223 | Q55: 55 | R55: 54 | S55: 0.449979928 | T55: 1.440839202 | U55: 55 | V55: 54 | W55: 1.194567281 | X55: 1.138752163 | Y55: 55 | Z55: 54 | AA55: 1.20894874 | AB55: 1.15576171 | AC55: 55 | AD55: 54 | AE55: 2.422049345 | AF55: 1.407804555 | AG55: 55 | AH55: 54 | AI55: 0.4732631434 | AJ55: 0.4683772234 | AK55: 55 | AL55: 54 | AM55: 1.440214575 | AN55: 0.4292893219 | AO55: 55 | AP55: 54 | AQ55: 2.077253221 | AR55: 0 | AS55: 55 | AT55: 54 | AU55: 2.082356988 | AV55: 0.0060364386
A56: 56 | B56: 55 | C56: 0.1835918379 | D56: 2.875499667 | E56: 56 | F56: 55 | G56: 0.1926990234 | H56: 2.864691651 | I56: 56 | J56: 55 | K56: 1.429500321 | L56: 2.583666003 | M56: 56 | N56: 55 | O56: 2.473353623 | P56: 2.531622777 | Q56: 56 | R56: 55 | S56: 0.4501492007 | T56: 1.559160798 | U56: 56 | V56: 55 | W56: 1.195600894 | X56: 1.861247837 | Y56: 56 | Z56: 55 | AA56: 1.209933685 | AB56: 1.84423829 | AC56: 56 | AD56: 55 | AE56: 2.422313137 | AF56: 1.592195445 | AG56: 56 | AH56: 55 | AI56: 0.4733536234 | AJ56: 0.5316227766 | AK56: 56 | AL56: 55 | AM56: 1.440416894 | AN56: 0.5707106781 | AO56: 56 | AP56: 55 | AQ56: 2.078683836 | AR56: 1 | AS56: 56 | AT56: 55 | AU56: 2.083770331 | AV56: 0.9939635614
A57: 57 | B57: 56 | C57: 0.1846662289 | D57: 2.124500333 | E57: 57 | F57: 56 | G57: 0.1937424902 | H57: 2.135308349 | I57: 57 | J57: 56 | K57: 1.429739708 | L57: 2.416333997 | M57: 57 | N57: 56 | O57: 2.473444103 | P57: 2.468377223 | Q57: 57 | R57: 56 | S57: 0.4503184734 | T57: 1.440839202 | U57: 57 | V57: 56 | W57: 1.196634507 | X57: 1.138752163 | Y57: 57 | Z57: 56 | AA57: 1.21091863 | AB57: 1.15576171 | AC57: 57 | AD57: 56 | AE57: 2.42257693 | AF57: 1.407804555 | AG57: 57 | AH57: 56 | AI57: 0.4734441034 | AJ57: 0.4683772234 | AK57: 57 | AL57: 56 | AM57: 1.440619214 | AN57: 0.4292893219 | AO57: 57 | AP57: 56 | AQ57: 2.080114451 | AR57: 0 | AS57: 57 | AT57: 56 | AU57: 2.085183675 | AV57: 0.0060364386
A58: 58 | B58: 57 | C58: 0.1857406199 | D58: 2.875499667 | E58: 58 | F58: 57 | G58: 0.194785957 | H58: 2.864691651 | I58: 58 | J58: 57 | K58: 1.429979096 | L58: 2.583666003 | M58: 58 | N58: 57 | O58: 2.473534583 | P58: 2.531622777 | Q58: 58 | R58: 57 | S58: 0.4504877461 | T58: 1.559160798 | U58: 58 | V58: 57 | W58: 1.197668121 | X58: 1.861247837 | Y58: 58 | Z58: 57 | AA58: 1.211903575 | AB58: 1.84423829 | AC58: 58 | AD58: 57 | AE58: 2.422840722 | AF58: 1.592195445 | AG58: 58 | AH58: 57 | AI58: 0.4735345834 | AJ58: 0.5316227766 | AK58: 58 | AL58: 57 | AM58: 1.440821533 | AN58: 0.5707106781 | AO58: 58 | AP58: 57 | AQ58: 2.081545066 | AR58: 1 | AS58: 58 | AT58: 57 | AU58: 2.086597018 | AV58: 0.9939635614
A59: 59 | B59: 58 | C59: 0.1868150109 | D59: 2.124500333 | E59: 59 | F59: 58 | G59: 0.1958294238 | H59: 2.135308349 | I59: 59 | J59: 58 | K59: 1.430218484 | L59: 2.416333997 | M59: 59 | N59: 58 | O59: 2.473625063 | P59: 2.468377223 | Q59: 59 | R59: 58 | S59: 0.4506570188 | T59: 1.440839202 | U59: 59 | V59: 58 | W59: 1.198701734 | X59: 1.138752163 | Y59: 59 | Z59: 58 | AA59: 1.21288852 | AB59: 1.15576171 | AC59: 59 | AD59: 58 | AE59: 2.423104515 | AF59: 1.407804555 | AG59: 59 | AH59: 58 | AI59: 0.4736250634 | AJ59: 0.4683772234 | AK59: 59 | AL59: 58 | AM59: 1.441023853 | AN59: 0.4292893219 | AO59: 59 | AP59: 58 | AQ59: 2.082975682 | AR59: 0 | AS59: 59 | AT59: 58 | AU59: 2.088010362 | AV59: 0.0060364386
A60: 60 | B60: 59 | C60: 0.1878894019 | D60: 2.875499667 | E60: 60 | F60: 59 | G60: 0.1968728906 | H60: 2.864691651 | I60: 60 | J60: 59 | K60: 1.430457872 | L60: 2.583666003 | M60: 60 | N60: 59 | O60: 2.473715543 | P60: 2.531622777 | Q60: 60 | R60: 59 | S60: 0.4508262915 | T60: 1.559160798 | U60: 60 | V60: 59 | W60: 1.199735347 | X60: 1.861247837 | Y60: 60 | Z60: 59 | AA60: 1.213873465 | AB60: 1.84423829 | AC60: 60 | AD60: 59 | AE60: 2.423368307 | AF60: 1.592195445 | AG60: 60 | AH60: 59 | AI60: 0.4737155434 | AJ60: 0.5316227766 | AK60: 60 | AL60: 59 | AM60: 1.441226172 | AN60: 0.5707106781 | AO60: 60 | AP60: 59 | AQ60: 2.084406297 | AR60: 1 | AS60: 60 | AT60: 59 | AU60: 2.089423705 | AV60: 0.9939635614
A61: 61 | B61: 60 | C61: 0.1889637929 | D61: 2.124500333 | E61: 61 | F61: 60 | G61: 0.1979163574 | H61: 2.135308349 | I61: 61 | J61: 60 | K61: 1.430697259 | L61: 2.416333997 | M61: 61 | N61: 60 | O61: 2.473806023 | P61: 2.468377223 | Q61: 61 | R61: 60 | S61: 0.4509955642 | T61: 1.440839202 | U61: 61 | V61: 60 | W61: 1.200768961 | X61: 1.138752163 | Y61: 61 | Z61: 60 | AA61: 1.21485841 | AB61: 1.15576171 | AC61: 61 | AD61: 60 | AE61: 2.423632099 | AF61: 1.407804555 | AG61: 61 | AH61: 60 | AI61: 0.4738060234 | AJ61: 0.4683772234 | AK61: 61 | AL61: 60 | AM61: 1.441428492 | AN61: 0.4292893219 | AO61: 61 | AP61: 60 | AQ61: 2.085836912 | AR61: 0 | AS61: 61 | AT61: 60 | AU61: 2.090837049 | AV61: 0.0060364386
A62: 62 | B62: 61 | C62: 0.1900381839 | D62: 2.875499667 | E62: 62 | F62: 61 | G62: 0.1989598242 | H62: 2.864691651 | I62: 62 | J62: 61 | K62: 1.430936647 | L62: 2.583666003 | M62: 62 | N62: 61 | O62: 2.473896503 | P62: 2.531622777 | Q62: 62 | R62: 61 | S62: 0.4511648369 | T62: 1.559160798 | U62: 62 | V62: 61 | W62: 1.201802574 | X62: 1.861247837 | Y62: 62 | Z62: 61 | AA62: 1.215843355 | AB62: 1.84423829 | AC62: 62 | AD62: 61 | AE62: 2.423895892 | AF62: 1.592195445 | AG62: 62 | AH62: 61 | AI62: 0.4738965034 | AJ62: 0.5316227766 | AK62: 62 | AL62: 61 | AM62: 1.441630811 | AN62: 0.5707106781 | AO62: 62 | AP62: 61 | AQ62: 2.087267527 | AR62: 1 | AS62: 62 | AT62: 61 | AU62: 2.092250392 | AV62: 0.9939635614
A63: 63 | B63: 62 | C63: 0.1911125749 | D63: 2.124500333 | E63: 63 | F63: 62 | G63: 0.200003291 | H63: 2.135308349 | I63: 63 | J63: 62 | K63: 1.431176035 | L63: 2.416333997 | M63: 63 | N63: 62 | O63: 2.473986983 | P63: 2.468377223 | Q63: 63 | R63: 62 | S63: 0.4513341096 | T63: 1.440839202 | U63: 63 | V63: 62 | W63: 1.202836187 | X63: 1.138752163 | Y63: 63 | Z63: 62 | AA63: 1.2168283 | AB63: 1.15576171 | AC63: 63 | AD63: 62 | AE63: 2.424159684 | AF63: 1.407804555 | AG63: 63 | AH63: 62 | AI63: 0.4739869834 | AJ63: 0.4683772234 | AK63: 63 | AL63: 62 | AM63: 1.441833131 | AN63: 0.4292893219 | AO63: 63 | AP63: 62 | AQ63: 2.088698142 | AR63: 0 | AS63: 63 | AT63: 62 | AU63: 2.093663736 | AV63: 0.0060364386
A64: 64 | B64: 63 | C64: 0.1921869659 | D64: 2.875499667 | E64: 64 | F64: 63 | G64: 0.2010467578 | H64: 2.864691651 | I64: 64 | J64: 63 | K64: 1.431415422 | L64: 2.583666003 | M64: 64 | N64: 63 | O64: 2.474077463 | P64: 2.531622777 | Q64: 64 | R64: 63 | S64: 0.4515033823 | T64: 1.559160798 | U64: 64 | V64: 63 | W64: 1.2038698 | X64: 1.861247837 | Y64: 64 | Z64: 63 | AA64: 1.217813245 | AB64: 1.84423829 | AC64: 64 | AD64: 63 | AE64: 2.424423477 | AF64: 1.592195445 | AG64: 64 | AH64: 63 | AI64: 0.4740774634 | AJ64: 0.5316227766 | AK64: 64 | AL64: 63 | AM64: 1.44203545 | AN64: 0.5707106781 | AO64: 64 | AP64: 63 | AQ64: 2.090128758 | AR64: 1 | AS64: 64 | AT64: 63 | AU64: 2.095077079 | AV64: 0.9939635614
A65: 65 | B65: =(A65-1) -> 64 | C65: =0.1245003329+B65*0.001074391 -> 0.1932613569 | D65: =IF(B65/2-INT(B65/2)<0.1,2.1245003329,2.8754996671) -> 2.124500333 | E65: 65 | F65: =(E65-1) -> 64 | G65: =0.1353083494+F65*0.0010434668 -> 0.2020902246 | H65: =IF(F65/2-INT(F65/2)<0.1,2.1353083494,2.8646916506) -> 2.135308349 | I65: 65 | J65: =(I65-1) -> 64 | K65: =1.4163339973+J65*0.0002393877 -> 1.43165481 | L65: =IF(J65/2-INT(J65/2)<0.1,2.4163339973,2.5836660027) -> 2.416333997 | M65: 65 | N65: =(M65-1) -> 64 | O65: =2.4683772234+N65*0.00009048 -> 2.474167943 | P65: =IF(N65/2-INT(N65/2)<0.1,2.4683772234,2.5316227766) -> 2.468377223 | Q65: 65 | R65: =(Q65-1) -> 64 | S65: =0.4408392022+R65*0.0001692727 -> 0.451672655 | T65: =IF(R65/2-INT(R65/2)<0.1,1.4408392022,1.5591607978) -> 1.440839202 | U65: 65 | V65: =(U65-1) -> 64 | W65: =1.1387521626+V65*0.0010336133 -> 1.204903414 | X65: =IF(V65/2-INT(V65/2)<0.1,1.1387521626,1.8612478374) -> 1.138752163 | Y65: 65 | Z65: =(Y65-1) -> 64 | AA65: =1.1557617104+Z65*0.000984945 -> 1.21879819 | AB65: =IF(Z65/2-INT(Z65/2)<0.1,1.1557617104,1.8442382896) -> 1.15576171 | AC65: 65 | AD65: =(AC65-1) -> 64 | AE65: =2.4078045554+AD65*0.0002637924 -> 2.424687269 | AF65: =IF(AD65/2-INT(AD65/2)<0.1,1.4078045554,1.5921954446) -> 1.407804555 | AG65: 65 | AH65: =(AG65-1) -> 64 | AI65: =0.4683772234+AH65*0.00009048 -> 0.4741679434 | AJ65: =IF(AH65/2-INT(AH65/2)<0.1,0.4683772234,0.5316227766) -> 0.4683772234 | AK65: 65 | AL65: =(AK65-1) -> 64 | AM65: =1.4292893219+AL65*0.0002023195 -> 1.44223777 | AN65: =IF(AL65/2-INT(AL65/2)<0.1,0.4292893219,0.5707106781) -> 0.4292893219 | AO65: 65 | AP65: =(AO65-1) -> 64 | AQ65: =2+AP65*0.0014306152 -> 2.091559373 | AR65: =IF(AP65/2-INT(AP65/2)<0.1,0,1) -> 0 | AS65: 65 | AT65: =(AS65-1) -> 64 | AU65: =2.0060364386+AT65*0.0014133435 -> 2.096490423 | AV65: =IF(AT65/2-INT(AT65/2)<0.1,0.0060364386,0.9939635614) -> 0.0060364386
A66: 66 | B66: 65 | C66: 0.1943357479 | D66: 2.875499667 | E66: 66 | F66: 65 | G66: 0.2031336914 | H66: 2.864691651 | I66: 66 | J66: 65 | K66: 1.431894198 | L66: 2.583666003 | M66: 66 | N66: 65 | O66: 2.474258423 | P66: 2.531622777 | Q66: 66 | R66: 65 | S66: 0.4518419277 | T66: 1.559160798 | U66: 66 | V66: 65 | W66: 1.205937027 | X66: 1.861247837 | Y66: 66 | Z66: 65 | AA66: 1.219783135 | AB66: 1.84423829 | AC66: 66 | AD66: 65 | AE66: 2.424951061 | AF66: 1.592195445 | AG66: 66 | AH66: 65 | AI66: 0.4742584234 | AJ66: 0.5316227766 | AK66: 66 | AL66: 65 | AM66: 1.442440089 | AN66: 0.5707106781 | AO66: 66 | AP66: 65 | AQ66: 2.092989988 | AR66: 1 | AS66: 66 | AT66: 65 | AU66: 2.097903766 | AV66: 0.9939635614
A67: 67 | B67: 66 | C67: 0.1954101389 | D67: 2.124500333 | E67: 67 | F67: 66 | G67: 0.2041771582 | H67: 2.135308349 | I67: 67 | J67: 66 | K67: 1.432133585 | L67: 2.416333997 | M67: 67 | N67: 66 | O67: 2.474348903 | P67: 2.468377223 | Q67: 67 | R67: 66 | S67: 0.4520112004 | T67: 1.440839202 | U67: 67 | V67: 66 | W67: 1.20697064 | X67: 1.138752163 | Y67: 67 | Z67: 66 | AA67: 1.22076808 | AB67: 1.15576171 | AC67: 67 | AD67: 66 | AE67: 2.425214854 | AF67: 1.407804555 | AG67: 67 | AH67: 66 | AI67: 0.4743489034 | AJ67: 0.4683772234 | AK67: 67 | AL67: 66 | AM67: 1.442642409 | AN67: 0.4292893219 | AO67: 67 | AP67: 66 | AQ67: 2.094420603 | AR67: 0 | AS67: 67 | AT67: 66 | AU67: 2.09931711 | AV67: 0.0060364386
A68: 68 | B68: 67 | C68: 0.1964845299 | D68: 2.875499667 | E68: 68 | F68: 67 | G68: 0.205220625 | H68: 2.864691651 | I68: 68 | J68: 67 | K68: 1.432372973 | L68: 2.583666003 | M68: 68 | N68: 67 | O68: 2.474439383 | P68: 2.531622777 | Q68: 68 | R68: 67 | S68: 0.4521804731 | T68: 1.559160798 | U68: 68 | V68: 67 | W68: 1.208004254 | X68: 1.861247837 | Y68: 68 | Z68: 67 | AA68: 1.221753025 | AB68: 1.84423829 | AC68: 68 | AD68: 67 | AE68: 2.425478646 | AF68: 1.592195445 | AG68: 68 | AH68: 67 | AI68: 0.4744393834 | AJ68: 0.5316227766 | AK68: 68 | AL68: 67 | AM68: 1.442844728 | AN68: 0.5707106781 | AO68: 68 | AP68: 67 | AQ68: 2.095851218 | AR68: 1 | AS68: 68 | AT68: 67 | AU68: 2.100730453 | AV68: 0.9939635614
A69: 69 | B69: 68 | C69: 0.1975589209 | D69: 2.124500333 | E69: 69 | F69: 68 | G69: 0.2062640918 | H69: 2.135308349 | I69: 69 | J69: 68 | K69: 1.432612361 | L69: 2.416333997 | M69: 69 | N69: 68 | O69: 2.474529863 | P69: 2.468377223 | Q69: 69 | R69: 68 | S69: 0.4523497458 | T69: 1.440839202 | U69: 69 | V69: 68 | W69: 1.209037867 | X69: 1.138752163 | Y69: 69 | Z69: 68 | AA69: 1.22273797 | AB69: 1.15576171 | AC69: 69 | AD69: 68 | AE69: 2.425742439 | AF69: 1.407804555 | AG69: 69 | AH69: 68 | AI69: 0.4745298634 | AJ69: 0.4683772234 | AK69: 69 | AL69: 68 | AM69: 1.443047048 | AN69: 0.4292893219 | AO69: 69 | AP69: 68 | AQ69: 2.097281834 | AR69: 0 | AS69: 69 | AT69: 68 | AU69: 2.102143797 | AV69: 0.0060364386
A70: 70 | B70: 69 | C70: 0.1986333119 | D70: 2.875499667 | E70: 70 | F70: 69 | G70: 0.2073075586 | H70: 2.864691651 | I70: 70 | J70: 69 | K70: 1.432851749 | L70: 2.583666003 | M70: 70 | N70: 69 | O70: 2.474620343 | P70: 2.531622777 | Q70: 70 | R70: 69 | S70: 0.4525190185 | T70: 1.559160798 | U70: 70 | V70: 69 | W70: 1.21007148 | X70: 1.861247837 | Y70: 70 | Z70: 69 | AA70: 1.223722915 | AB70: 1.84423829 | AC70: 70 | AD70: 69 | AE70: 2.426006231 | AF70: 1.592195445 | AG70: 70 | AH70: 69 | AI70: 0.4746203434 | AJ70: 0.5316227766 | AK70: 70 | AL70: 69 | AM70: 1.443249367 | AN70: 0.5707106781 | AO70: 70 | AP70: 69 | AQ70: 2.098712449 | AR70: 1 | AS70: 70 | AT70: 69 | AU70: 2.10355714 | AV70: 0.9939635614
A71: 71 | B71: 70 | C71: 0.1997077029 | D71: 2.124500333 | E71: 71 | F71: 70 | G71: 0.2083510254 | H71: 2.135308349 | I71: 71 | J71: 70 | K71: 1.433091136 | L71: 2.416333997 | M71: 71 | N71: 70 | O71: 2.474710823 | P71: 2.468377223 | Q71: 71 | R71: 70 | S71: 0.4526882912 | T71: 1.440839202 | U71: 71 | V71: 70 | W71: 1.211105094 | X71: 1.138752163 | Y71: 71 | Z71: 70 | AA71: 1.22470786 | AB71: 1.15576171 | AC71: 71 | AD71: 70 | AE71: 2.426270023 | AF71: 1.407804555 | AG71: 71 | AH71: 70 | AI71: 0.4747108234 | AJ71: 0.4683772234 | AK71: 71 | AL71: 70 | AM71: 1.443451687 | AN71: 0.4292893219 | AO71: 71 | AP71: 70 | AQ71: 2.100143064 | AR71: 0 | AS71: 71 | AT71: 70 | AU71: 2.104970484 | AV71: 0.0060364386
A72: 72 | B72: 71 | C72: 0.2007820939 | D72: 2.875499667 | E72: 72 | F72: 71 | G72: 0.2093944922 | H72: 2.864691651 | I72: 72 | J72: 71 | K72: 1.433330524 | L72: 2.583666003 | M72: 72 | N72: 71 | O72: 2.474801303 | P72: 2.531622777 | Q72: 72 | R72: 71 | S72: 0.4528575639 | T72: 1.559160798 | U72: 72 | V72: 71 | W72: 1.212138707 | X72: 1.861247837 | Y72: 72 | Z72: 71 | AA72: 1.225692805 | AB72: 1.84423829 | AC72: 72 | AD72: 71 | AE72: 2.426533816 | AF72: 1.592195445 | AG72: 72 | AH72: 71 | AI72: 0.4748013034 | AJ72: 0.5316227766 | AK72: 72 | AL72: 71 | AM72: 1.443654006 | AN72: 0.5707106781 | AO72: 72 | AP72: 71 | AQ72: 2.101573679 | AR72: 1 | AS72: 72 | AT72: 71 | AU72: 2.106383827 | AV72: 0.9939635614
A73: 73 | B73: 72 | C73: 0.2018564849 | D73: 2.124500333 | E73: 73 | F73: 72 | G73: 0.210437959 | H73: 2.135308349 | I73: 73 | J73: 72 | K73: 1.433569912 | L73: 2.416333997 | M73: 73 | N73: 72 | O73: 2.474891783 | P73: 2.468377223 | Q73: 73 | R73: 72 | S73: 0.4530268366 | T73: 1.440839202 | U73: 73 | V73: 72 | W73: 1.21317232 | X73: 1.138752163 | Y73: 73 | Z73: 72 | AA73: 1.22667775 | AB73: 1.15576171 | AC73: 73 | AD73: 72 | AE73: 2.426797608 | AF73: 1.407804555 | AG73: 73 | AH73: 72 | AI73: 0.4748917834 | AJ73: 0.4683772234 | AK73: 73 | AL73: 72 | AM73: 1.443856326 | AN73: 0.4292893219 | AO73: 73 | AP73: 72 | AQ73: 2.103004294 | AR73: 0 | AS73: 73 | AT73: 72 | AU73: 2.107797171 | AV73: 0.0060364386
A74: 74 | B74: 73 | C74: 0.2029308759 | D74: 2.875499667 | E74: 74 | F74: 73 | G74: 0.2114814258 | H74: 2.864691651 | I74: 74 | J74: 73 | K74: 1.433809299 | L74: 2.583666003 | M74: 74 | N74: 73 | O74: 2.474982263 | P74: 2.531622777 | Q74: 74 | R74: 73 | S74: 0.4531961093 | T74: 1.559160798 | U74: 74 | V74: 73 | W74: 1.214205933 | X74: 1.861247837 | Y74: 74 | Z74: 73 | AA74: 1.227662695 | AB74: 1.84423829 | AC74: 74 | AD74: 73 | AE74: 2.427061401 | AF74: 1.592195445 | AG74: 74 | AH74: 73 | AI74: 0.4749822634 | AJ74: 0.5316227766 | AK74: 74 | AL74: 73 | AM74: 1.444058645 | AN74: 0.5707106781 | AO74: 74 | AP74: 73 | AQ74: 2.10443491 | AR74: 1 | AS74: 74 | AT74: 73 | AU74: 2.109210514 | AV74: 0.9939635614
A75: 75 | B75: 74 | C75: 0.2040052669 | D75: 2.124500333 | E75: 75 | F75: 74 | G75: 0.2125248926 | H75: 2.135308349 | I75: 75 | J75: 74 | K75: 1.434048687 | L75: 2.416333997 | M75: 75 | N75: 74 | O75: 2.475072743 | P75: 2.468377223 | Q75: 75 | R75: 74 | S75: 0.453365382 | T75: 1.440839202 | U75: 75 | V75: 74 | W75: 1.215239547 | X75: 1.138752163 | Y75: 75 | Z75: 74 | AA75: 1.22864764 | AB75: 1.15576171 | AC75: 75 | AD75: 74 | AE75: 2.427325193 | AF75: 1.407804555 | AG75: 75 | AH75: 74 | AI75: 0.4750727434 | AJ75: 0.4683772234 | AK75: 75 | AL75: 74 | AM75: 1.444260965 | AN75: 0.4292893219 | AO75: 75 | AP75: 74 | AQ75: 2.105865525 | AR75: 0 | AS75: 75 | AT75: 74 | AU75: 2.110623858 | AV75: 0.0060364386
A76: 76 | B76: 75 | C76: 0.2050796579 | D76: 2.875499667 | E76: 76 | F76: 75 | G76: 0.2135683594 | H76: 2.864691651 | I76: 76 | J76: 75 | K76: 1.434288075 | L76: 2.583666003 | M76: 76 | N76: 75 | O76: 2.475163223 | P76: 2.531622777 | Q76: 76 | R76: 75 | S76: 0.4535346547 | T76: 1.559160798 | U76: 76 | V76: 75 | W76: 1.21627316 | X76: 1.861247837 | Y76: 76 | Z76: 75 | AA76: 1.229632585 | AB76: 1.84423829 | AC76: 76 | AD76: 75 | AE76: 2.427588985 | AF76: 1.592195445 | AG76: 76 | AH76: 75 | AI76: 0.4751632234 | AJ76: 0.5316227766 | AK76: 76 | AL76: 75 | AM76: 1.444463284 | AN76: 0.5707106781 | AO76: 76 | AP76: 75 | AQ76: 2.10729614 | AR76: 1 | AS76: 76 | AT76: 75 | AU76: 2.112037201 | AV76: 0.9939635614
A77: 77 | B77: 76 | C77: 0.2061540489 | D77: 2.124500333 | E77: 77 | F77: 76 | G77: 0.2146118262 | H77: 2.135308349 | I77: 77 | J77: 76 | K77: 1.434527462 | L77: 2.416333997 | M77: 77 | N77: 76 | O77: 2.475253703 | P77: 2.468377223 | Q77: 77 | R77: 76 | S77: 0.4537039274 | T77: 1.440839202 | U77: 77 | V77: 76 | W77: 1.217306773 | X77: 1.138752163 | Y77: 77 | Z77: 76 | AA77: 1.23061753 | AB77: 1.15576171 | AC77: 77 | AD77: 76 | AE77: 2.427852778 | AF77: 1.407804555 | AG77: 77 | AH77: 76 | AI77: 0.4752537034 | AJ77: 0.4683772234 | AK77: 77 | AL77: 76 | AM77: 1.444665604 | AN77: 0.4292893219 | AO77: 77 | AP77: 76 | AQ77: 2.108726755 | AR77: 0 | AS77: 77 | AT77: 76 | AU77: 2.113450545 | AV77: 0.0060364386
A78: 78 | B78: 77 | C78: 0.2072284399 | D78: 2.875499667 | E78: 78 | F78: 77 | G78: 0.215655293 | H78: 2.864691651 | I78: 78 | J78: 77 | K78: 1.43476685 | L78: 2.583666003 | M78: 78 | N78: 77 | O78: 2.475344183 | P78: 2.531622777 | Q78: 78 | R78: 77 | S78: 0.4538732001 | T78: 1.559160798 | U78: 78 | V78: 77 | W78: 1.218340387 | X78: 1.861247837 | Y78: 78 | Z78: 77 | AA78: 1.231602475 | AB78: 1.84423829 | AC78: 78 | AD78: 77 | AE78: 2.42811657 | AF78: 1.592195445 | AG78: 78 | AH78: 77 | AI78: 0.4753441834 | AJ78: 0.5316227766 | AK78: 78 | AL78: 77 | AM78: 1.444867923 | AN78: 0.5707106781 | AO78: 78 | AP78: 77 | AQ78: 2.11015737 | AR78: 1 | AS78: 78 | AT78: 77 | AU78: 2.114863888 | AV78: 0.9939635614
A79: 79 | B79: 78 | C79: 0.2083028309 | D79: 2.124500333 | E79: 79 | F79: 78 | G79: 0.2166987598 | H79: 2.135308349 | I79: 79 | J79: 78 | K79: 1.435006238 | L79: 2.416333997 | M79: 79 | N79: 78 | O79: 2.475434663 | P79: 2.468377223 | Q79: 79 | R79: 78 | S79: 0.4540424728 | T79: 1.440839202 | U79: 79 | V79: 78 | W79: 1.219374 | X79: 1.138752163 | Y79: 79 | Z79: 78 | AA79: 1.23258742 | AB79: 1.15576171 | AC79: 79 | AD79: 78 | AE79: 2.428380363 | AF79: 1.407804555 | AG79: 79 | AH79: 78 | AI79: 0.4754346634 | AJ79: 0.4683772234 | AK79: 79 | AL79: 78 | AM79: 1.445070243 | AN79: 0.4292893219 | AO79: 79 | AP79: 78 | AQ79: 2.111587986 | AR79: 0 | AS79: 79 | AT79: 78 | AU79: 2.116277232 | AV79: 0.0060364386
A80: 80 | B80: 79 | C80: 0.2093772219 | D80: 2.875499667 | E80: 80 | F80: 79 | G80: 0.2177422266 | H80: 2.864691651 | I80: 80 | J80: 79 | K80: 1.435245626 | L80: 2.583666003 | M80: 80 | N80: 79 | O80: 2.475525143 | P80: 2.531622777 | Q80: 80 | R80: 79 | S80: 0.4542117455 | T80: 1.559160798 | U80: 80 | V80: 79 | W80: 1.220407613 | X80: 1.861247837 | Y80: 80 | Z80: 79 | AA80: 1.233572365 | AB80: 1.84423829 | AC80: 80 | AD80: 79 | AE80: 2.428644155 | AF80: 1.592195445 | AG80: 80 | AH80: 79 | AI80: 0.4755251434 | AJ80: 0.5316227766 | AK80: 80 | AL80: 79 | AM80: 1.445272562 | AN80: 0.5707106781 | AO80: 80 | AP80: 79 | AQ80: 2.113018601 | AR80: 1 | AS80: 80 | AT80: 79 | AU80: 2.117690575 | AV80: 0.9939635614
A81: 81 | B81: 80 | C81: 0.2104516129 | D81: 2.124500333 | E81: 81 | F81: 80 | G81: 0.2187856934 | H81: 2.135308349 | I81: 81 | J81: 80 | K81: 1.435485013 | L81: 2.416333997 | M81: 81 | N81: 80 | O81: 2.475615623 | P81: 2.468377223 | Q81: 81 | R81: 80 | S81: 0.4543810182 | T81: 1.440839202 | U81: 81 | V81: 80 | W81: 1.221441227 | X81: 1.138752163 | Y81: 81 | Z81: 80 | AA81: 1.23455731 | AB81: 1.15576171 | AC81: 81 | AD81: 80 | AE81: 2.428907947 | AF81: 1.407804555 | AG81: 81 | AH81: 80 | AI81: 0.4756156234 | AJ81: 0.4683772234 | AK81: 81 | AL81: 80 | AM81: 1.445474882 | AN81: 0.4292893219 | AO81: 81 | AP81: 80 | AQ81: 2.114449216 | AR81: 0 | AS81: 81 | AT81: 80 | AU81: 2.119103919 | AV81: 0.0060364386
A82: 82 | B82: 81 | C82: 0.2115260039 | D82: 2.875499667 | E82: 82 | F82: 81 | G82: 0.2198291602 | H82: 2.864691651 | I82: 82 | J82: 81 | K82: 1.435724401 | L82: 2.583666003 | M82: 82 | N82: 81 | O82: 2.475706103 | P82: 2.531622777 | Q82: 82 | R82: 81 | S82: 0.4545502909 | T82: 1.559160798 | U82: 82 | V82: 81 | W82: 1.22247484 | X82: 1.861247837 | Y82: 82 | Z82: 81 | AA82: 1.235542255 | AB82: 1.84423829 | AC82: 82 | AD82: 81 | AE82: 2.42917174 | AF82: 1.592195445 | AG82: 82 | AH82: 81 | AI82: 0.4757061034 | AJ82: 0.5316227766 | AK82: 82 | AL82: 81 | AM82: 1.445677201 | AN82: 0.5707106781 | AO82: 82 | AP82: 81 | AQ82: 2.115879831 | AR82: 1 | AS82: 82 | AT82: 81 | AU82: 2.120517262 | AV82: 0.9939635614
A83: 83 | B83: 82 | C83: 0.2126003949 | D83: 2.124500333 | E83: 83 | F83: 82 | G83: 0.220872627 | H83: 2.135308349 | I83: 83 | J83: 82 | K83: 1.435963789 | L83: 2.416333997 | M83: 83 | N83: 82 | O83: 2.475796583 | P83: 2.468377223 | Q83: 83 | R83: 82 | S83: 0.4547195636 | T83: 1.440839202 | U83: 83 | V83: 82 | W83: 1.223508453 | X83: 1.138752163 | Y83: 83 | Z83: 82 | AA83: 1.2365272 | AB83: 1.15576171 | AC83: 83 | AD83: 82 | AE83: 2.429435532 | AF83: 1.407804555 | AG83: 83 | AH83: 82 | AI83: 0.4757965834 | AJ83: 0.4683772234 | AK83: 83 | AL83: 82 | AM83: 1.445879521 | AN83: 0.4292893219 | AO83: 83 | AP83: 82 | AQ83: 2.117310446 | AR83: 0 | AS83: 83 | AT83: 82 | AU83: 2.121930606 | AV83: 0.0060364386
A84: 84 | B84: 83 | C84: 0.2136747859 | D84: 2.875499667 | E84: 84 | F84: 83 | G84: 0.2219160938 | H84: 2.864691651 | I84: 84 | J84: 83 | K84: 1.436203176 | L84: 2.583666003 | M84: 84 | N84: 83 | O84: 2.475887063 | P84: 2.531622777 | Q84: 84 | R84: 83 | S84: 0.4548888363 | T84: 1.559160798 | U84: 84 | V84: 83 | W84: 1.224542066 | X84: 1.861247837 | Y84: 84 | Z84: 83 | AA84: 1.237512145 | AB84: 1.84423829 | AC84: 84 | AD84: 83 | AE84: 2.429699325 | AF84: 1.592195445 | AG84: 84 | AH84: 83 | AI84: 0.4758870634 | AJ84: 0.5316227766 | AK84: 84 | AL84: 83 | AM84: 1.44608184 | AN84: 0.5707106781 | AO84: 84 | AP84: 83 | AQ84: 2.118741062 | AR84: 1 | AS84: 84 | AT84: 83 | AU84: 2.123343949 | AV84: 0.9939635614
A85: 85 | B85: 84 | C85: 0.2147491769 | D85: 2.124500333 | E85: 85 | F85: 84 | G85: 0.2229595606 | H85: 2.135308349 | I85: 85 | J85: 84 | K85: 1.436442564 | L85: 2.416333997 | M85: 85 | N85: 84 | O85: 2.475977543 | P85: 2.468377223 | Q85: 85 | R85: 84 | S85: 0.455058109 | T85: 1.440839202 | U85: 85 | V85: 84 | W85: 1.22557568 | X85: 1.138752163 | Y85: 85 | Z85: 84 | AA85: 1.23849709 | AB85: 1.15576171 | AC85: 85 | AD85: 84 | AE85: 2.429963117 | AF85: 1.407804555 | AG85: 85 | AH85: 84 | AI85: 0.4759775434 | AJ85: 0.4683772234 | AK85: 85 | AL85: 84 | AM85: 1.44628416 | AN85: 0.4292893219 | AO85: 85 | AP85: 84 | AQ85: 2.120171677 | AR85: 0 | AS85: 85 | AT85: 84 | AU85: 2.124757293 | AV85: 0.0060364386
A86: 86 | B86: 85 | C86: 0.2158235679 | D86: 2.875499667 | E86: 86 | F86: 85 | G86: 0.2240030274 | H86: 2.864691651 | I86: 86 | J86: 85 | K86: 1.436681952 | L86: 2.583666003 | M86: 86 | N86: 85 | O86: 2.476068023 | P86: 2.531622777 | Q86: 86 | R86: 85 | S86: 0.4552273817 | T86: 1.559160798 | U86: 86 | V86: 85 | W86: 1.226609293 | X86: 1.861247837 | Y86: 86 | Z86: 85 | AA86: 1.239482035 | AB86: 1.84423829 | AC86: 86 | AD86: 85 | AE86: 2.430226909 | AF86: 1.592195445 | AG86: 86 | AH86: 85 | AI86: 0.4760680234 | AJ86: 0.5316227766 | AK86: 86 | AL86: 85 | AM86: 1.446486479 | AN86: 0.5707106781 | AO86: 86 | AP86: 85 | AQ86: 2.121602292 | AR86: 1 | AS86: 86 | AT86: 85 | AU86: 2.126170636 | AV86: 0.9939635614
A87: 87 | B87: 86 | C87: 0.2168979589 | D87: 2.124500333 | E87: 87 | F87: 86 | G87: 0.2250464942 | H87: 2.135308349 | I87: 87 | J87: 86 | K87: 1.43692134 | L87: 2.416333997 | M87: 87 | N87: 86 | O87: 2.476158503 | P87: 2.468377223 | Q87: 87 | R87: 86 | S87: 0.4553966544 | T87: 1.440839202 | U87: 87 | V87: 86 | W87: 1.227642906 | X87: 1.138752163 | Y87: 87 | Z87: 86 | AA87: 1.24046698 | AB87: 1.15576171 | AC87: 87 | AD87: 86 | AE87: 2.430490702 | AF87: 1.407804555 | AG87: 87 | AH87: 86 | AI87: 0.4761585034 | AJ87: 0.4683772234 | AK87: 87 | AL87: 86 | AM87: 1.446688799 | AN87: 0.4292893219 | AO87: 87 | AP87: 86 | AQ87: 2.123032907 | AR87: 0 | AS87: 87 | AT87: 86 | AU87: 2.12758398 | AV87: 0.0060364386
A88: 88 | B88: 87 | C88: 0.2179723499 | D88: 2.875499667 | E88: 88 | F88: 87 | G88: 0.226089961 | H88: 2.864691651 | I88: 88 | J88: 87 | K88: 1.437160727 | L88: 2.583666003 | M88: 88 | N88: 87 | O88: 2.476248983 | P88: 2.531622777 | Q88: 88 | R88: 87 | S88: 0.4555659271 | T88: 1.559160798 | U88: 88 | V88: 87 | W88: 1.22867652 | X88: 1.861247837 | Y88: 88 | Z88: 87 | AA88: 1.241451925 | AB88: 1.84423829 | AC88: 88 | AD88: 87 | AE88: 2.430754494 | AF88: 1.592195445 | AG88: 88 | AH88: 87 | AI88: 0.4762489834 | AJ88: 0.5316227766 | AK88: 88 | AL88: 87 | AM88: 1.446891118 | AN88: 0.5707106781 | AO88: 88 | AP88: 87 | AQ88: 2.124463522 | AR88: 1 | AS88: 88 | AT88: 87 | AU88: 2.128997323 | AV88: 0.9939635614
A89: 89 | B89: 88 | C89: 0.2190467409 | D89: 2.124500333 | E89: 89 | F89: 88 | G89: 0.2271334278 | H89: 2.135308349 | I89: 89 | J89: 88 | K89: 1.437400115 | L89: 2.416333997 | M89: 89 | N89: 88 | O89: 2.476339463 | P89: 2.468377223 | Q89: 89 | R89: 88 | S89: 0.4557351998 | T89: 1.440839202 | U89: 89 | V89: 88 | W89: 1.229710133 | X89: 1.138752163 | Y89: 89 | Z89: 88 | AA89: 1.24243687 | AB89: 1.15576171 | AC89: 89 | AD89: 88 | AE89: 2.431018287 | AF89: 1.407804555 | AG89: 89 | AH89: 88 | AI89: 0.4763394634 | AJ89: 0.4683772234 | AK89: 89 | AL89: 88 | AM89: 1.447093438 | AN89: 0.4292893219 | AO89: 89 | AP89: 88 | AQ89: 2.125894138 | AR89: 0 | AS89: 89 | AT89: 88 | AU89: 2.130410667 | AV89: 0.0060364386
A90: 90 | B90: 89 | C90: 0.2201211319 | D90: 2.875499667 | E90: 90 | F90: 89 | G90: 0.2281768946 | H90: 2.864691651 | I90: 90 | J90: 89 | K90: 1.437639503 | L90: 2.583666003 | M90: 90 | N90: 89 | O90: 2.476429943 | P90: 2.531622777 | Q90: 90 | R90: 89 | S90: 0.4559044725 | T90: 1.559160798 | U90: 90 | V90: 89 | W90: 1.230743746 | X90: 1.861247837 | Y90: 90 | Z90: 89 | AA90: 1.243421815 | AB90: 1.84423829 | AC90: 90 | AD90: 89 | AE90: 2.431282079 | AF90: 1.592195445 | AG90: 90 | AH90: 89 | AI90: 0.4764299434 | AJ90: 0.5316227766 | AK90: 90 | AL90: 89 | AM90: 1.447295757 | AN90: 0.5707106781 | AO90: 90 | AP90: 89 | AQ90: 2.127324753 | AR90: 1 | AS90: 90 | AT90: 89 | AU90: 2.13182401 | AV90: 0.9939635614
A91: 91 | B91: 90 | C91: 0.2211955229 | D91: 2.124500333 | E91: 91 | F91: 90 | G91: 0.2292203614 | H91: 2.135308349 | I91: 91 | J91: 90 | K91: 1.43787889 | L91: 2.416333997 | M91: 91 | N91: 90 | O91: 2.476520423 | P91: 2.468377223 | Q91: 91 | R91: 90 | S91: 0.4560737452 | T91: 1.440839202 | U91: 91 | V91: 90 | W91: 1.23177736 | X91: 1.138752163 | Y91: 91 | Z91: 90 | AA91: 1.24440676 | AB91: 1.15576171 | AC91: 91 | AD91: 90 | AE91: 2.431545871 | AF91: 1.407804555 | AG91: 91 | AH91: 90 | AI91: 0.4765204234 | AJ91: 0.4683772234 | AK91: 91 | AL91: 90 | AM91: 1.447498077 | AN91: 0.4292893219 | AO91: 91 | AP91: 90 | AQ91: 2.128755368 | AR91: 0 | AS91: 91 | AT91: 90 | AU91: 2.133237354 | AV91: 0.0060364386
A92: 92 | B92: 91 | C92: 0.2222699139 | D92: 2.875499667 | E92: 92 | F92: 91 | G92: 0.2302638282 | H92: 2.864691651 | I92: 92 | J92: 91 | K92: 1.438118278 | L92: 2.583666003 | M92: 92 | N92: 91 | O92: 2.476610903 | P92: 2.531622777 | Q92: 92 | R92: 91 | S92: 0.4562430179 | T92: 1.559160798 | U92: 92 | V92: 91 | W92: 1.232810973 | X92: 1.861247837 | Y92: 92 | Z92: 91 | AA92: 1.245391705 | AB92: 1.84423829 | AC92: 92 | AD92: 91 | AE92: 2.431809664 | AF92: 1.592195445 | AG92: 92 | AH92: 91 | AI92: 0.4766109034 | AJ92: 0.5316227766 | AK92: 92 | AL92: 91 | AM92: 1.447700396 | AN92: 0.5707106781 | AO92: 92 | AP92: 91 | AQ92: 2.130185983 | AR92: 1 | AS92: 92 | AT92: 91 | AU92: 2.134650697 | AV92: 0.9939635614
A93: 93 | B93: 92 | C93: 0.2233443049 | D93: 2.124500333 | E93: 93 | F93: 92 | G93: 0.231307295 | H93: 2.135308349 | I93: 93 | J93: 92 | K93: 1.438357666 | L93: 2.416333997 | M93: 93 | N93: 92 | O93: 2.476701383 | P93: 2.468377223 | Q93: 93 | R93: 92 | S93: 0.4564122906 | T93: 1.440839202 | U93: 93 | V93: 92 | W93: 1.233844586 | X93: 1.138752163 | Y93: 93 | Z93: 92 | AA93: 1.24637665 | AB93: 1.15576171 | AC93: 93 | AD93: 92 | AE93: 2.432073456 | AF93: 1.407804555 | AG93: 93 | AH93: 92 | AI93: 0.4767013834 | AJ93: 0.4683772234 | AK93: 93 | AL93: 92 | AM93: 1.447902716 | AN93: 0.4292893219 | AO93: 93 | AP93: 92 | AQ93: 2.131616598 | AR93: 0 | AS93: 93 | AT93: 92 | AU93: 2.136064041 | AV93: 0.0060364386
A94: 94 | B94: 93 | C94: 0.2244186959 | D94: 2.875499667 | E94: 94 | F94: 93 | G94: 0.2323507618 | H94: 2.864691651 | I94: 94 | J94: 93 | K94: 1.438597053 | L94: 2.583666003 | M94: 94 | N94: 93 | O94: 2.476791863 | P94: 2.531622777 | Q94: 94 | R94: 93 | S94: 0.4565815633 | T94: 1.559160798 | U94: 94 | V94: 93 | W94: 1.234878199 | X94: 1.861247837 | Y94: 94 | Z94: 93 | AA94: 1.247361595 | AB94: 1.84423829 | AC94: 94 | AD94: 93 | AE94: 2.432337249 | AF94: 1.592195445 | AG94: 94 | AH94: 93 | AI94: 0.4767918634 | AJ94: 0.5316227766 | AK94: 94 | AL94: 93 | AM94: 1.448105035 | AN94: 0.5707106781 | AO94: 94 | AP94: 93 | AQ94: 2.133047214 | AR94: 1 | AS94: 94 | AT94: 93 | AU94: 2.137477384 | AV94: 0.9939635614
A95: 95 | B95: 94 | C95: 0.2254930869 | D95: 2.124500333 | E95: 95 | F95: 94 | G95: 0.2333942286 | H95: 2.135308349 | I95: 95 | J95: 94 | K95: 1.438836441 | L95: 2.416333997 | M95: 95 | N95: 94 | O95: 2.476882343 | P95: 2.468377223 | Q95: 95 | R95: 94 | S95: 0.456750836 | T95: 1.440839202 | U95: 95 | V95: 94 | W95: 1.235911813 | X95: 1.138752163 | Y95: 95 | Z95: 94 | AA95: 1.24834654 | AB95: 1.15576171 | AC95: 95 | AD95: 94 | AE95: 2.432601041 | AF95: 1.407804555 | AG95: 95 | AH95: 94 | AI95: 0.4768823434 | AJ95: 0.4683772234 | AK95: 95 | AL95: 94 | AM95: 1.448307355 | AN95: 0.4292893219 | AO95: 95 | AP95: 94 | AQ95: 2.134477829 | AR95: 0 | AS95: 95 | AT95: 94 | AU95: 2.138890728 | AV95: 0.0060364386
A96: 96 | B96: 95 | C96: 0.2265674779 | D96: 2.875499667 | E96: 96 | F96: 95 | G96: 0.2344376954 | H96: 2.864691651 | I96: 96 | J96: 95 | K96: 1.439075829 | L96: 2.583666003 | M96: 96 | N96: 95 | O96: 2.476972823 | P96: 2.531622777 | Q96: 96 | R96: 95 | S96: 0.4569201087 | T96: 1.559160798 | U96: 96 | V96: 95 | W96: 1.236945426 | X96: 1.861247837 | Y96: 96 | Z96: 95 | AA96: 1.249331485 | AB96: 1.84423829 | AC96: 96 | AD96: 95 | AE96: 2.432864833 | AF96: 1.592195445 | AG96: 96 | AH96: 95 | AI96: 0.4769728234 | AJ96: 0.5316227766 | AK96: 96 | AL96: 95 | AM96: 1.448509674 | AN96: 0.5707106781 | AO96: 96 | AP96: 95 | AQ96: 2.135908444 | AR96: 1 | AS96: 96 | AT96: 95 | AU96: 2.140304071 | AV96: 0.9939635614
A97: 97 | B97: 96 | C97: 0.2276418689 | D97: 2.124500333 | E97: 97 | F97: 96 | G97: 0.2354811622 | H97: 2.135308349 | I97: 97 | J97: 96 | K97: 1.439315217 | L97: 2.416333997 | M97: 97 | N97: 96 | O97: 2.477063303 | P97: 2.468377223 | Q97: 97 | R97: 96 | S97: 0.4570893814 | T97: 1.440839202 | U97: 97 | V97: 96 | W97: 1.237979039 | X97: 1.138752163 | Y97: 97 | Z97: 96 | AA97: 1.25031643 | AB97: 1.15576171 | AC97: 97 | AD97: 96 | AE97: 2.433128626 | AF97: 1.407804555 | AG97: 97 | AH97: 96 | AI97: 0.4770633034 | AJ97: 0.4683772234 | AK97: 97 | AL97: 96 | AM97: 1.448711994 | AN97: 0.4292893219 | AO97: 97 | AP97: 96 | AQ97: 2.137339059 | AR97: 0 | AS97: 97 | AT97: 96 | AU97: 2.141717415 | AV97: 0.0060364386
A98: 98 | B98: 97 | C98: 0.2287162599 | D98: 2.875499667 | E98: 98 | F98: 97 | G98: 0.236524629 | H98: 2.864691651 | I98: 98 | J98: 97 | K98: 1.439554604 | L98: 2.583666003 | M98: 98 | N98: 97 | O98: 2.477153783 | P98: 2.531622777 | Q98: 98 | R98: 97 | S98: 0.4572586541 | T98: 1.559160798 | U98: 98 | V98: 97 | W98: 1.239012653 | X98: 1.861247837 | Y98: 98 | Z98: 97 | AA98: 1.251301375 | AB98: 1.84423829 | AC98: 98 | AD98: 97 | AE98: 2.433392418 | AF98: 1.592195445 | AG98: 98 | AH98: 97 | AI98: 0.4771537834 | AJ98: 0.5316227766 | AK98: 98 | AL98: 97 | AM98: 1.448914313 | AN98: 0.5707106781 | AO98: 98 | AP98: 97 | AQ98: 2.138769674 | AR98: 1 | AS98: 98 | AT98: 97 | AU98: 2.143130758 | AV98: 0.9939635614
A99: 99 | B99: 98 | C99: 0.2297906509 | D99: 2.124500333 | E99: 99 | F99: 98 | G99: 0.2375680958 | H99: 2.135308349 | I99: 99 | J99: 98 | K99: 1.439793992 | L99: 2.416333997 | M99: 99 | N99: 98 | O99: 2.477244263 | P99: 2.468377223 | Q99: 99 | R99: 98 | S99: 0.4574279268 | T99: 1.440839202 | U99: 99 | V99: 98 | W99: 1.240046266 | X99: 1.138752163 | Y99: 99 | Z99: 98 | AA99: 1.25228632 | AB99: 1.15576171 | AC99: 99 | AD99: 98 | AE99: 2.433656211 | AF99: 1.407804555 | AG99: 99 | AH99: 98 | AI99: 0.4772442634 | AJ99: 0.4683772234 | AK99: 99 | AL99: 98 | AM99: 1.449116633 | AN99: 0.4292893219 | AO99: 99 | AP99: 98 | AQ99: 2.14020029 | AR99: 0 | AS99: 99 | AT99: 98 | AU99: 2.144544102 | AV99: 0.0060364386
A100: 100 | B100: 99 | C100: 0.2308650419 | D100: 2.875499667 | E100: 100 | F100: 99 | G100: 0.2386115626 | H100: 2.864691651 | I100: 100 | J100: 99 | K100: 1.44003338 | L100: 2.583666003 | M100: 100 | N100: 99 | O100: 2.477334743 | P100: 2.531622777 | Q100: 100 | R100: 99 | S100: 0.4575971995 | T100: 1.559160798 | U100: 100 | V100: 99 | W100: 1.241079879 | X100: 1.861247837 | Y100: 100 | Z100: 99 | AA100: 1.253271265 | AB100: 1.84423829 | AC100: 100 | AD100: 99 | AE100: 2.433920003 | AF100: 1.592195445 | AG100: 100 | AH100: 99 | AI100: 0.4773347434 | AJ100: 0.5316227766 | AK100: 100 | AL100: 99 | AM100: 1.449318952 | AN100: 0.5707106781 | AO100: 100 | AP100: 99 | AQ100: 2.141630905 | AR100: 1 | AS100: 100 | AT100: 99 | AU100: 2.145957445 | AV100: 0.9939635614
A101: 101 | B101: 100 | C101: 0.2319394329 | D101: 2.124500333 | E101: 101 | F101: 100 | G101: 0.2396550294 | H101: 2.135308349 | I101: 101 | J101: 100 | K101: 1.440272767 | L101: 2.416333997 | M101: 101 | N101: 100 | O101: 2.477425223 | P101: 2.468377223 | Q101: 101 | R101: 100 | S101: 0.4577664722 | T101: 1.440839202 | U101: 101 | V101: 100 | W101: 1.242113493 | X101: 1.138752163 | Y101: 101 | Z101: 100 | AA101: 1.25425621 | AB101: 1.15576171 | AC101: 101 | AD101: 100 | AE101: 2.434183795 | AF101: 1.407804555 | AG101: 101 | AH101: 100 | AI101: 0.4774252234 | AJ101: 0.4683772234 | AK101: 101 | AL101: 100 | AM101: 1.449521272 | AN101: 0.4292893219 | AO101: 101 | AP101: 100 | AQ101: 2.14306152 | AR101: 0 | AS101: 101 | AT101: 100 | AU101: 2.147370789 | AV101: 0.0060364386
A102: 102 | B102: 101 | C102: 0.2330138239 | D102: 2.875499667 | E102: 102 | F102: 101 | G102: 0.2406984962 | H102: 2.864691651 | I102: 102 | J102: 101 | K102: 1.440512155 | L102: 2.583666003 | M102: 102 | N102: 101 | O102: 2.477515703 | P102: 2.531622777 | Q102: 102 | R102: 101 | S102: 0.4579357449 | T102: 1.559160798 | U102: 102 | V102: 101 | W102: 1.243147106 | X102: 1.861247837 | Y102: 102 | Z102: 101 | AA102: 1.255241155 | AB102: 1.84423829 | AC102: 102 | AD102: 101 | AE102: 2.434447588 | AF102: 1.592195445 | AG102: 102 | AH102: 101 | AI102: 0.4775157034 | AJ102: 0.5316227766 | AK102: 102 | AL102: 101 | AM102: 1.449723591 | AN102: 0.5707106781 | AO102: 102 | AP102: 101 | AQ102: 2.144492135 | AR102: 1 | AS102: 102 | AT102: 101 | AU102: 2.148784132 | AV102: 0.9939635614
A103: 103 | B103: 102 | C103: 0.2340882149 | D103: 2.124500333 | E103: 103 | F103: 102 | G103: 0.241741963 | H103: 2.135308349 | I103: 103 | J103: 102 | K103: 1.440751543 | L103: 2.416333997 | M103: 103 | N103: 102 | O103: 2.477606183 | P103: 2.468377223 | Q103: 103 | R103: 102 | S103: 0.4581050176 | T103: 1.440839202 | U103: 103 | V103: 102 | W103: 1.244180719 | X103: 1.138752163 | Y103: 103 | Z103: 102 | AA103: 1.2562261 | AB103: 1.15576171 | AC103: 103 | AD103: 102 | AE103: 2.43471138 | AF103: 1.407804555 | AG103: 103 | AH103: 102 | AI103: 0.4776061834 | AJ103: 0.4683772234 | AK103: 103 | AL103: 102 | AM103: 1.449925911 | AN103: 0.4292893219 | AO103: 103 | AP103: 102 | AQ103: 2.14592275 | AR103: 0 | AS103: 103 | AT103: 102 | AU103: 2.150197476 | AV103: 0.0060364386
A104: 104 | B104: 103 | C104: 0.2351626059 | D104: 2.875499667 | E104: 104 | F104: 103 | G104: 0.2427854298 | H104: 2.864691651 | I104: 104 | J104: 103 | K104: 1.44099093 | L104: 2.583666003 | M104: 104 | N104: 103 | O104: 2.477696663 | P104: 2.531622777 | Q104: 104 | R104: 103 | S104: 0.4582742903 | T104: 1.559160798 | U104: 104 | V104: 103 | W104: 1.245214332 | X104: 1.861247837 | Y104: 104 | Z104: 103 | AA104: 1.257211045 | AB104: 1.84423829 | AC104: 104 | AD104: 103 | AE104: 2.434975173 | AF104: 1.592195445 | AG104: 104 | AH104: 103 | AI104: 0.4776966634 | AJ104: 0.5316227766 | AK104: 104 | AL104: 103 | AM104: 1.45012823 | AN104: 0.5707106781 | AO104: 104 | AP104: 103 | AQ104: 2.147353366 | AR104: 1 | AS104: 104 | AT104: 103 | AU104: 2.151610819 | AV104: 0.9939635614
A105: 105 | B105: 104 | C105: 0.2362369969 | D105: 2.124500333 | E105: 105 | F105: 104 | G105: 0.2438288966 | H105: 2.135308349 | I105: 105 | J105: 104 | K105: 1.441230318 | L105: 2.416333997 | M105: 105 | N105: 104 | O105: 2.477787143 | P105: 2.468377223 | Q105: 105 | R105: 104 | S105: 0.458443563 | T105: 1.440839202 | U105: 105 | V105: 104 | W105: 1.246247946 | X105: 1.138752163 | Y105: 105 | Z105: 104 | AA105: 1.25819599 | AB105: 1.15576171 | AC105: 105 | AD105: 104 | AE105: 2.435238965 | AF105: 1.407804555 | AG105: 105 | AH105: 104 | AI105: 0.4777871434 | AJ105: 0.4683772234 | AK105: 105 | AL105: 104 | AM105: 1.45033055 | AN105: 0.4292893219 | AO105: 105 | AP105: 104 | AQ105: 2.148783981 | AR105: 0 | AS105: 105 | AT105: 104 | AU105: 2.153024163 | AV105: 0.0060364386
A106: 106 | B106: 105 | C106: 0.2373113879 | D106: 2.875499667 | E106: 106 | F106: 105 | G106: 0.2448723634 | H106: 2.864691651 | I106: 106 | J106: 105 | K106: 1.441469706 | L106: 2.583666003 | M106: 106 | N106: 105 | O106: 2.477877623 | P106: 2.531622777 | Q106: 106 | R106: 105 | S106: 0.4586128357 | T106: 1.559160798 | U106: 106 | V106: 105 | W106: 1.247281559 | X106: 1.861247837 | Y106: 106 | Z106: 105 | AA106: 1.259180935 | AB106: 1.84423829 | AC106: 106 | AD106: 105 | AE106: 2.435502757 | AF106: 1.592195445 | AG106: 106 | AH106: 105 | AI106: 0.4778776234 | AJ106: 0.5316227766 | AK106: 106 | AL106: 105 | AM106: 1.450532869 | AN106: 0.5707106781 | AO106: 106 | AP106: 105 | AQ106: 2.150214596 | AR106: 1 | AS106: 106 | AT106: 105 | AU106: 2.154437506 | AV106: 0.9939635614
A107: 107 | B107: 106 | C107: 0.2383857789 | D107: 2.124500333 | E107: 107 | F107: 106 | G107: 0.2459158302 | H107: 2.135308349 | I107: 107 | J107: 106 | K107: 1.441709093 | L107: 2.416333997 | M107: 107 | N107: 106 | O107: 2.477968103 | P107: 2.468377223 | Q107: 107 | R107: 106 | S107: 0.4587821084 | T107: 1.440839202 | U107: 107 | V107: 106 | W107: 1.248315172 | X107: 1.138752163 | Y107: 107 | Z107: 106 | AA107: 1.26016588 | AB107: 1.15576171 | AC107: 107 | AD107: 106 | AE107: 2.43576655 | AF107: 1.407804555 | AG107: 107 | AH107: 106 | AI107: 0.4779681034 | AJ107: 0.4683772234 | AK107: 107 | AL107: 106 | AM107: 1.450735189 | AN107: 0.4292893219 | AO107: 107 | AP107: 106 | AQ107: 2.151645211 | AR107: 0 | AS107: 107 | AT107: 106 | AU107: 2.15585085 | AV107: 0.0060364386
A108: 108 | B108: 107 | C108: 0.2394601699 | D108: 2.875499667 | E108: 108 | F108: 107 | G108: 0.246959297 | H108: 2.864691651 | I108: 108 | J108: 107 | K108: 1.441948481 | L108: 2.583666003 | M108: 108 | N108: 107 | O108: 2.478058583 | P108: 2.531622777 | Q108: 108 | R108: 107 | S108: 0.4589513811 | T108: 1.559160798 | U108: 108 | V108: 107 | W108: 1.249348786 | X108: 1.861247837 | Y108: 108 | Z108: 107 | AA108: 1.261150825 | AB108: 1.84423829 | AC108: 108 | AD108: 107 | AE108: 2.436030342 | AF108: 1.592195445 | AG108: 108 | AH108: 107 | AI108: 0.4780585834 | AJ108: 0.5316227766 | AK108: 108 | AL108: 107 | AM108: 1.450937508 | AN108: 0.5707106781 | AO108: 108 | AP108: 107 | AQ108: 2.153075826 | AR108: 1 | AS108: 108 | AT108: 107 | AU108: 2.157264193 | AV108: 0.9939635614
A109: 109 | B109: 108 | C109: 0.2405345609 | D109: 2.124500333 | E109: 109 | F109: 108 | G109: 0.2480027638 | H109: 2.135308349 | I109: 109 | J109: 108 | K109: 1.442187869 | L109: 2.416333997 | M109: 109 | N109: 108 | O109: 2.478149063 | P109: 2.468377223 | Q109: 109 | R109: 108 | S109: 0.4591206538 | T109: 1.440839202 | U109: 109 | V109: 108 | W109: 1.250382399 | X109: 1.138752163 | Y109: 109 | Z109: 108 | AA109: 1.26213577 | AB109: 1.15576171 | AC109: 109 | AD109: 108 | AE109: 2.436294135 | AF109: 1.407804555 | AG109: 109 | AH109: 108 | AI109: 0.4781490634 | AJ109: 0.4683772234 | AK109: 109 | AL109: 108 | AM109: 1.451139828 | AN109: 0.4292893219 | AO109: 109 | AP109: 108 | AQ109: 2.154506442 | AR109: 0 | AS109: 109 | AT109: 108 | AU109: 2.158677537 | AV109: 0.0060364386
A110: 110 | B110: 109 | C110: 0.2416089519 | D110: 2.875499667 | E110: 110 | F110: 109 | G110: 0.2490462306 | H110: 2.864691651 | I110: 110 | J110: 109 | K110: 1.442427257 | L110: 2.583666003 | M110: 110 | N110: 109 | O110: 2.478239543 | P110: 2.531622777 | Q110: 110 | R110: 109 | S110: 0.4592899265 | T110: 1.559160798 | U110: 110 | V110: 109 | W110: 1.251416012 | X110: 1.861247837 | Y110: 110 | Z110: 109 | AA110: 1.263120715 | AB110: 1.84423829 | AC110: 110 | AD110: 109 | AE110: 2.436557927 | AF110: 1.592195445 | AG110: 110 | AH110: 109 | AI110: 0.4782395434 | AJ110: 0.5316227766 | AK110: 110 | AL110: 109 | AM110: 1.451342147 | AN110: 0.5707106781 | AO110: 110 | AP110: 109 | AQ110: 2.155937057 | AR110: 1 | AS110: 110 | AT110: 109 | AU110: 2.16009088 | AV110: 0.9939635614
A111: 111 | B111: 110 | C111: 0.2426833429 | D111: 2.124500333 | E111: 111 | F111: 110 | G111: 0.2500896974 | H111: 2.135308349 | I111: 111 | J111: 110 | K111: 1.442666644 | L111: 2.416333997 | M111: 111 | N111: 110 | O111: 2.478330023 | P111: 2.468377223 | Q111: 111 | R111: 110 | S111: 0.4594591992 | T111: 1.440839202 | U111: 111 | V111: 110 | W111: 1.252449626 | X111: 1.138752163 | Y111: 111 | Z111: 110 | AA111: 1.26410566 | AB111: 1.15576171 | AC111: 111 | AD111: 110 | AE111: 2.436821719 | AF111: 1.407804555 | AG111: 111 | AH111: 110 | AI111: 0.4783300234 | AJ111: 0.4683772234 | AK111: 111 | AL111: 110 | AM111: 1.451544467 | AN111: 0.4292893219 | AO111: 111 | AP111: 110 | AQ111: 2.157367672 | AR111: 0 | AS111: 111 | AT111: 110 | AU111: 2.161504224 | AV111: 0.0060364386
A112: 112 | B112: 111 | C112: 0.2437577339 | D112: 2.875499667 | E112: 112 | F112: 111 | G112: 0.2511331642 | H112: 2.864691651 | I112: 112 | J112: 111 | K112: 1.442906032 | L112: 2.583666003 | M112: 112 | N112: 111 | O112: 2.478420503 | P112: 2.531622777 | Q112: 112 | R112: 111 | S112: 0.4596284719 | T112: 1.559160798 | U112: 112 | V112: 111 | W112: 1.253483239 | X112: 1.861247837 | Y112: 112 | Z112: 111 | AA112: 1.265090605 | AB112: 1.84423829 | AC112: 112 | AD112: 111 | AE112: 2.437085512 | AF112: 1.592195445 | AG112: 112 | AH112: 111 | AI112: 0.4784205034 | AJ112: 0.5316227766 | AK112: 112 | AL112: 111 | AM112: 1.451746786 | AN112: 0.5707106781 | AO112: 112 | AP112: 111 | AQ112: 2.158798287 | AR112: 1 | AS112: 112 | AT112: 111 | AU112: 2.162917567 | AV112: 0.9939635614
A113: 113 | B113: 112 | C113: 0.2448321249 | D113: 2.124500333 | E113: 113 | F113: 112 | G113: 0.252176631 | H113: 2.135308349 | I113: 113 | J113: 112 | K113: 1.44314542 | L113: 2.416333997 | M113: 113 | N113: 112 | O113: 2.478510983 | P113: 2.468377223 | Q113: 113 | R113: 112 | S113: 0.4597977446 | T113: 1.440839202 | U113: 113 | V113: 112 | W113: 1.254516852 | X113: 1.138752163 | Y113: 113 | Z113: 112 | AA113: 1.26607555 | AB113: 1.15576171 | AC113: 113 | AD113: 112 | AE113: 2.437349304 | AF113: 1.407804555 | AG113: 113 | AH113: 112 | AI113: 0.4785109834 | AJ113: 0.4683772234 | AK113: 113 | AL113: 112 | AM113: 1.451949106 | AN113: 0.4292893219 | AO113: 113 | AP113: 112 | AQ113: 2.160228902 | AR113: 0 | AS113: 113 | AT113: 112 | AU113: 2.164330911 | AV113: 0.0060364386
A114: 114 | B114: 113 | C114: 0.2459065159 | D114: 2.875499667 | E114: 114 | F114: 113 | G114: 0.2532200978 | H114: 2.864691651 | I114: 114 | J114: 113 | K114: 1.443384807 | L114: 2.583666003 | M114: 114 | N114: 113 | O114: 2.478601463 | P114: 2.531622777 | Q114: 114 | R114: 113 | S114: 0.4599670173 | T114: 1.559160798 | U114: 114 | V114: 113 | W114: 1.255550465 | X114: 1.861247837 | Y114: 114 | Z114: 113 | AA114: 1.267060495 | AB114: 1.84423829 | AC114: 114 | AD114: 113 | AE114: 2.437613097 | AF114: 1.592195445 | AG114: 114 | AH114: 113 | AI114: 0.4786014634 | AJ114: 0.5316227766 | AK114: 114 | AL114: 113 | AM114: 1.452151425 | AN114: 0.5707106781 | AO114: 114 | AP114: 113 | AQ114: 2.161659518 | AR114: 1 | AS114: 114 | AT114: 113 | AU114: 2.165744254 | AV114: 0.9939635614
A115: 115 | B115: 114 | C115: 0.2469809069 | D115: 2.124500333 | E115: 115 | F115: 114 | G115: 0.2542635646 | H115: 2.135308349 | I115: 115 | J115: 114 | K115: 1.443624195 | L115: 2.416333997 | M115: 115 | N115: 114 | O115: 2.478691943 | P115: 2.468377223 | Q115: 115 | R115: 114 | S115: 0.46013629 | T115: 1.440839202 | U115: 115 | V115: 114 | W115: 1.256584079 | X115: 1.138752163 | Y115: 115 | Z115: 114 | AA115: 1.26804544 | AB115: 1.15576171 | AC115: 115 | AD115: 114 | AE115: 2.437876889 | AF115: 1.407804555 | AG115: 115 | AH115: 114 | AI115: 0.4786919434 | AJ115: 0.4683772234 | AK115: 115 | AL115: 114 | AM115: 1.452353745 | AN115: 0.4292893219 | AO115: 115 | AP115: 114 | AQ115: 2.163090133 | AR115: 0 | AS115: 115 | AT115: 114 | AU115: 2.167157598 | AV115: 0.0060364386
A116: 116 | B116: 115 | C116: 0.2480552979 | D116: 2.875499667 | E116: 116 | F116: 115 | G116: 0.2553070314 | H116: 2.864691651 | I116: 116 | J116: 115 | K116: 1.443863583 | L116: 2.583666003 | M116: 116 | N116: 115 | O116: 2.478782423 | P116: 2.531622777 | Q116: 116 | R116: 115 | S116: 0.4603055627 | T116: 1.559160798 | U116: 116 | V116: 115 | W116: 1.257617692 | X116: 1.861247837 | Y116: 116 | Z116: 115 | AA116: 1.269030385 | AB116: 1.84423829 | AC116: 116 | AD116: 115 | AE116: 2.438140681 | AF116: 1.592195445 | AG116: 116 | AH116: 115 | AI116: 0.4787824234 | AJ116: 0.5316227766 | AK116: 116 | AL116: 115 | AM116: 1.452556064 | AN116: 0.5707106781 | AO116: 116 | AP116: 115 | AQ116: 2.164520748 | AR116: 1 | AS116: 116 | AT116: 115 | AU116: 2.168570941 | AV116: 0.9939635614
A117: 117 | B117: 116 | C117: 0.2491296889 | D117: 2.124500333 | E117: 117 | F117: 116 | G117: 0.2563504982 | H117: 2.135308349 | I117: 117 | J117: 116 | K117: 1.44410297 | L117: 2.416333997 | M117: 117 | N117: 116 | O117: 2.478872903 | P117: 2.468377223 | Q117: 117 | R117: 116 | S117: 0.4604748354 | T117: 1.440839202 | U117: 117 | V117: 116 | W117: 1.258651305 | X117: 1.138752163 | Y117: 117 | Z117: 116 | AA117: 1.27001533 | AB117: 1.15576171 | AC117: 117 | AD117: 116 | AE117: 2.438404474 | AF117: 1.407804555 | AG117: 117 | AH117: 116 | AI117: 0.4788729034 | AJ117: 0.4683772234 | AK117: 117 | AL117: 116 | AM117: 1.452758384 | AN117: 0.4292893219 | AO117: 117 | AP117: 116 | AQ117: 2.165951363 | AR117: 0 | AS117: 117 | AT117: 116 | AU117: 2.169984285 | AV117: 0.0060364386
A118: 118 | B118: 117 | C118: 0.2502040799 | D118: 2.875499667 | E118: 118 | F118: 117 | G118: 0.257393965 | H118: 2.864691651 | I118: 118 | J118: 117 | K118: 1.444342358 | L118: 2.583666003 | M118: 118 | N118: 117 | O118: 2.478963383 | P118: 2.531622777 | Q118: 118 | R118: 117 | S118: 0.4606441081 | T118: 1.559160798 | U118: 118 | V118: 117 | W118: 1.259684919 | X118: 1.861247837 | Y118: 118 | Z118: 117 | AA118: 1.271000275 | AB118: 1.84423829 | AC118: 118 | AD118: 117 | AE118: 2.438668266 | AF118: 1.592195445 | AG118: 118 | AH118: 117 | AI118: 0.4789633834 | AJ118: 0.5316227766 | AK118: 118 | AL118: 117 | AM118: 1.452960703 | AN118: 0.5707106781 | AO118: 118 | AP118: 117 | AQ118: 2.167381978 | AR118: 1 | AS118: 118 | AT118: 117 | AU118: 2.171397628 | AV118: 0.9939635614
A119: 119 | B119: 118 | C119: 0.2512784709 | D119: 2.124500333 | E119: 119 | F119: 118 | G119: 0.2584374318 | H119: 2.135308349 | I119: 119 | J119: 118 | K119: 1.444581746 | L119: 2.416333997 | M119: 119 | N119: 118 | O119: 2.479053863 | P119: 2.468377223 | Q119: 119 | R119: 118 | S119: 0.4608133808 | T119: 1.440839202 | U119: 119 | V119: 118 | W119: 1.260718532 | X119: 1.138752163 | Y119: 119 | Z119: 118 | AA119: 1.27198522 | AB119: 1.15576171 | AC119: 119 | AD119: 118 | AE119: 2.438932059 | AF119: 1.407804555 | AG119: 119 | AH119: 118 | AI119: 0.4790538634 | AJ119: 0.4683772234 | AK119: 119 | AL119: 118 | AM119: 1.453163023 | AN119: 0.4292893219 | AO119: 119 | AP119: 118 | AQ119: 2.168812594 | AR119: 0 | AS119: 119 | AT119: 118 | AU119: 2.172810972 | AV119: 0.0060364386
A120: 120 | B120: 119 | C120: 0.2523528619 | D120: 2.875499667 | E120: 120 | F120: 119 | G120: 0.2594808986 | H120: 2.864691651 | I120: 120 | J120: 119 | K120: 1.444821134 | L120: 2.583666003 | M120: 120 | N120: 119 | O120: 2.479144343 | P120: 2.531622777 | Q120: 120 | R120: 119 | S120: 0.4609826535 | T120: 1.559160798 | U120: 120 | V120: 119 | W120: 1.261752145 | X120: 1.861247837 | Y120: 120 | Z120: 119 | AA120: 1.272970165 | AB120: 1.84423829 | AC120: 120 | AD120: 119 | AE120: 2.439195851 | AF120: 1.592195445 | AG120: 120 | AH120: 119 | AI120: 0.4791443434 | AJ120: 0.5316227766 | AK120: 120 | AL120: 119 | AM120: 1.453365342 | AN120: 0.5707106781 | AO120: 120 | AP120: 119 | AQ120: 2.170243209 | AR120: 1 | AS120: 120 | AT120: 119 | AU120: 2.174224315 | AV120: 0.9939635614
A121: 121 | B121: 120 | C121: 0.2534272529 | D121: 2.124500333 | E121: 121 | F121: 120 | G121: 0.2605243654 | H121: 2.135308349 | I121: 121 | J121: 120 | K121: 1.445060521 | L121: 2.416333997 | M121: 121 | N121: 120 | O121: 2.479234823 | P121: 2.468377223 | Q121: 121 | R121: 120 | S121: 0.4611519262 | T121: 1.440839202 | U121: 121 | V121: 120 | W121: 1.262785759 | X121: 1.138752163 | Y121: 121 | Z121: 120 | AA121: 1.27395511 | AB121: 1.15576171 | AC121: 121 | AD121: 120 | AE121: 2.439459643 | AF121: 1.407804555 | AG121: 121 | AH121: 120 | AI121: 0.4792348234 | AJ121: 0.4683772234 | AK121: 121 | AL121: 120 | AM121: 1.453567662 | AN121: 0.4292893219 | AO121: 121 | AP121: 120 | AQ121: 2.171673824 | AR121: 0 | AS121: 121 | AT121: 120 | AU121: 2.175637659 | AV121: 0.0060364386
A122: 122 | B122: 121 | C122: 0.2545016439 | D122: 2.875499667 | E122: 122 | F122: 121 | G122: 0.2615678322 | H122: 2.864691651 | I122: 122 | J122: 121 | K122: 1.445299909 | L122: 2.583666003 | M122: 122 | N122: 121 | O122: 2.479325303 | P122: 2.531622777 | Q122: 122 | R122: 121 | S122: 0.4613211989 | T122: 1.559160798 | U122: 122 | V122: 121 | W122: 1.263819372 | X122: 1.861247837 | Y122: 122 | Z122: 121 | AA122: 1.274940055 | AB122: 1.84423829 | AC122: 122 | AD122: 121 | AE122: 2.439723436 | AF122: 1.592195445 | AG122: 122 | AH122: 121 | AI122: 0.4793253034 | AJ122: 0.5316227766 | AK122: 122 | AL122: 121 | AM122: 1.453769981 | AN122: 0.5707106781 | AO122: 122 | AP122: 121 | AQ122: 2.173104439 | AR122: 1 | AS122: 122 | AT122: 121 | AU122: 2.177051002 | AV122: 0.9939635614
A123: 123 | B123: 122 | C123: 0.2555760349 | D123: 2.124500333 | E123: 123 | F123: 122 | G123: 0.262611299 | H123: 2.135308349 | I123: 123 | J123: 122 | K123: 1.445539297 | L123: 2.416333997 | M123: 123 | N123: 122 | O123: 2.479415783 | P123: 2.468377223 | Q123: 123 | R123: 122 | S123: 0.4614904716 | T123: 1.440839202 | U123: 123 | V123: 122 | W123: 1.264852985 | X123: 1.138752163 | Y123: 123 | Z123: 122 | AA123: 1.275925 | AB123: 1.15576171 | AC123: 123 | AD123: 122 | AE123: 2.439987228 | AF123: 1.407804555 | AG123: 123 | AH123: 122 | AI123: 0.4794157834 | AJ123: 0.4683772234 | AK123: 123 | AL123: 122 | AM123: 1.453972301 | AN123: 0.4292893219 | AO123: 123 | AP123: 122 | AQ123: 2.174535054 | AR123: 0 | AS123: 123 | AT123: 122 | AU123: 2.178464346 | AV123: 0.0060364386
A124: 124 | B124: 123 | C124: 0.2566504259 | D124: 2.875499667 | E124: 124 | F124: 123 | G124: 0.2636547658 | H124: 2.864691651 | I124: 124 | J124: 123 | K124: 1.445778684 | L124: 2.583666003 | M124: 124 | N124: 123 | O124: 2.479506263 | P124: 2.531622777 | Q124: 124 | R124: 123 | S124: 0.4616597443 | T124: 1.559160798 | U124: 124 | V124: 123 | W124: 1.265886598 | X124: 1.861247837 | Y124: 124 | Z124: 123 | AA124: 1.276909945 | AB124: 1.84423829 | AC124: 124 | AD124: 123 | AE124: 2.440251021 | AF124: 1.592195445 | AG124: 124 | AH124: 123 | AI124: 0.4795062634 | AJ124: 0.5316227766 | AK124: 124 | AL124: 123 | AM124: 1.45417462 | AN124: 0.5707106781 | AO124: 124 | AP124: 123 | AQ124: 2.17596567 | AR124: 1 | AS124: 124 | AT124: 123 | AU124: 2.179877689 | AV124: 0.9939635614
A125: 125 | B125: 124 | C125: 0.2577248169 | D125: 2.124500333 | E125: 125 | F125: 124 | G125: 0.2646982326 | H125: 2.135308349 | I125: 125 | J125: 124 | K125: 1.446018072 | L125: 2.416333997 | M125: 125 | N125: 124 | O125: 2.479596743 | P125: 2.468377223 | Q125: 125 | R125: 124 | S125: 0.461829017 | T125: 1.440839202 | U125: 125 | V125: 124 | W125: 1.266920212 | X125: 1.138752163 | Y125: 125 | Z125: 124 | AA125: 1.27789489 | AB125: 1.15576171 | AC125: 125 | AD125: 124 | AE125: 2.440514813 | AF125: 1.407804555 | AG125: 125 | AH125: 124 | AI125: 0.4795967434 | AJ125: 0.4683772234 | AK125: 125 | AL125: 124 | AM125: 1.45437694 | AN125: 0.4292893219 | AO125: 125 | AP125: 124 | AQ125: 2.177396285 | AR125: 0 | AS125: 125 | AT125: 124 | AU125: 2.181291033 | AV125: 0.0060364386
A126: 126 | B126: 125 | C126: 0.2587992079 | D126: 2.875499667 | E126: 126 | F126: 125 | G126: 0.2657416994 | H126: 2.864691651 | I126: 126 | J126: 125 | K126: 1.44625746 | L126: 2.583666003 | M126: 126 | N126: 125 | O126: 2.479687223 | P126: 2.531622777 | Q126: 126 | R126: 125 | S126: 0.4619982897 | T126: 1.559160798 | U126: 126 | V126: 125 | W126: 1.267953825 | X126: 1.861247837 | Y126: 126 | Z126: 125 | AA126: 1.278879835 | AB126: 1.84423829 | AC126: 126 | AD126: 125 | AE126: 2.440778605 | AF126: 1.592195445 | AG126: 126 | AH126: 125 | AI126: 0.4796872234 | AJ126: 0.5316227766 | AK126: 126 | AL126: 125 | AM126: 1.454579259 | AN126: 0.5707106781 | AO126: 126 | AP126: 125 | AQ126: 2.1788269 | AR126: 1 | AS126: 126 | AT126: 125 | AU126: 2.182704376 | AV126: 0.9939635614
A127: 127 | B127: 126 | C127: 0.2598735989 | D127: 2.124500333 | E127: 127 | F127: 126 | G127: 0.2667851662 | H127: 2.135308349 | I127: 127 | J127: 126 | K127: 1.446496847 | L127: 2.416333997 | M127: 127 | N127: 126 | O127: 2.479777703 | P127: 2.468377223 | Q127: 127 | R127: 126 | S127: 0.4621675624 | T127: 1.440839202 | U127: 127 | V127: 126 | W127: 1.268987438 | X127: 1.138752163 | Y127: 127 | Z127: 126 | AA127: 1.27986478 | AB127: 1.15576171 | AC127: 127 | AD127: 126 | AE127: 2.441042398 | AF127: 1.407804555 | AG127: 127 | AH127: 126 | AI127: 0.4797777034 | AJ127: 0.4683772234 | AK127: 127 | AL127: 126 | AM127: 1.454781579 | AN127: 0.4292893219 | AO127: 127 | AP127: 126 | AQ127: 2.180257515 | AR127: 0 | AS127: 127 | AT127: 126 | AU127: 2.18411772 | AV127: 0.0060364386
A128: 128 | B128: 127 | C128: 0.2609479899 | D128: 2.875499667 | E128: 128 | F128: 127 | G128: 0.267828633 | H128: 2.864691651 | I128: 128 | J128: 127 | K128: 1.446736235 | L128: 2.583666003 | M128: 128 | N128: 127 | O128: 2.479868183 | P128: 2.531622777 | Q128: 128 | R128: 127 | S128: 0.4623368351 | T128: 1.559160798 | U128: 128 | V128: 127 | W128: 1.270021052 | X128: 1.861247837 | Y128: 128 | Z128: 127 | AA128: 1.280849725 | AB128: 1.84423829 | AC128: 128 | AD128: 127 | AE128: 2.44130619 | AF128: 1.592195445 | AG128: 128 | AH128: 127 | AI128: 0.4798681834 | AJ128: 0.5316227766 | AK128: 128 | AL128: 127 | AM128: 1.454983898 | AN128: 0.5707106781 | AO128: 128 | AP128: 127 | AQ128: 2.18168813 | AR128: 1 | AS128: 128 | AT128: 127 | AU128: 2.185531063 | AV128: 0.9939635614
A129: 129 | B129: =(A129-1) -> 128 | C129: =0.1245003329+B129*0.001074391 -> 0.2620223809 | D129: =IF(B129/2-INT(B129/2)<0.1,2.1245003329,2.8754996671) -> 2.124500333 | E129: 129 | F129: =(E129-1) -> 128 | G129: =0.1353083494+F129*0.0010434668 -> 0.2688720998 | H129: =IF(F129/2-INT(F129/2)<0.1,2.1353083494,2.8646916506) -> 2.135308349 | I129: 129 | J129: =(I129-1) -> 128 | K129: =1.4163339973+J129*0.0002393877 -> 1.446975623 | L129: =IF(J129/2-INT(J129/2)<0.1,2.4163339973,2.5836660027) -> 2.416333997 | M129: 129 | N129: =(M129-1) -> 128 | O129: =2.4683772234+N129*0.00009048 -> 2.479958663 | P129: =IF(N129/2-INT(N129/2)<0.1,2.4683772234,2.5316227766) -> 2.468377223 | Q129: 129 | R129: =(Q129-1) -> 128 | S129: =0.4408392022+R129*0.0001692727 -> 0.4625061078 | T129: =IF(R129/2-INT(R129/2)<0.1,1.4408392022,1.5591607978) -> 1.440839202 | U129: 129 | V129: =(U129-1) -> 128 | W129: =1.1387521626+V129*0.0010336133 -> 1.271054665 | X129: =IF(V129/2-INT(V129/2)<0.1,1.1387521626,1.8612478374) -> 1.138752163 | Y129: 129 | Z129: =(Y129-1) -> 128 | AA129: =1.1557617104+Z129*0.000984945 -> 1.28183467 | AB129: =IF(Z129/2-INT(Z129/2)<0.1,1.1557617104,1.8442382896) -> 1.15576171 | AC129: 129 | AD129: =(AC129-1) -> 128 | AE129: =2.4078045554+AD129*0.0002637924 -> 2.441569983 | AF129: =IF(AD129/2-INT(AD129/2)<0.1,1.4078045554,1.5921954446) -> 1.407804555 | AG129: 129 | AH129: =(AG129-1) -> 128 | AI129: =0.4683772234+AH129*0.00009048 -> 0.4799586634 | AJ129: =IF(AH129/2-INT(AH129/2)<0.1,0.4683772234,0.5316227766) -> 0.4683772234 | AK129: 129 | AL129: =(AK129-1) -> 128 | AM129: =1.4292893219+AL129*0.0002023195 -> 1.455186218 | AN129: =IF(AL129/2-INT(AL129/2)<0.1,0.4292893219,0.5707106781) -> 0.4292893219 | AO129: 129 | AP129: =(AO129-1) -> 128 | AQ129: =2+AP129*0.0014306152 -> 2.183118746 | AR129: =IF(AP129/2-INT(AP129/2)<0.1,0,1) -> 0 | AS129: 129 | AT129: =(AS129-1) -> 128 | AU129: =2.0060364386+AT129*0.0014133435 -> 2.186944407 | AV129: =IF(AT129/2-INT(AT129/2)<0.1,0.0060364386,0.9939635614) -> 0.0060364386
A130: 130 | B130: 129 | C130: 0.2630967719 | D130: 2.875499667 | E130: 130 | F130: 129 | G130: 0.2699155666 | H130: 2.864691651 | I130: 130 | J130: 129 | K130: 1.447215011 | L130: 2.583666003 | M130: 130 | N130: 129 | O130: 2.480049143 | P130: 2.531622777 | Q130: 130 | R130: 129 | S130: 0.4626753805 | T130: 1.559160798 | U130: 130 | V130: 129 | W130: 1.272088278 | X130: 1.861247837 | Y130: 130 | Z130: 129 | AA130: 1.282819615 | AB130: 1.84423829 | AC130: 130 | AD130: 129 | AE130: 2.441833775 | AF130: 1.592195445 | AG130: 130 | AH130: 129 | AI130: 0.4800491434 | AJ130: 0.5316227766 | AK130: 130 | AL130: 129 | AM130: 1.455388537 | AN130: 0.5707106781 | AO130: 130 | AP130: 129 | AQ130: 2.184549361 | AR130: 1 | AS130: 130 | AT130: 129 | AU130: 2.18835775 | AV130: 0.9939635614
A131: 131 | B131: 130 | C131: 0.2641711629 | D131: 2.124500333 | E131: 131 | F131: 130 | G131: 0.2709590334 | H131: 2.135308349 | I131: 131 | J131: 130 | K131: 1.447454398 | L131: 2.416333997 | M131: 131 | N131: 130 | O131: 2.480139623 | P131: 2.468377223 | Q131: 131 | R131: 130 | S131: 0.4628446532 | T131: 1.440839202 | U131: 131 | V131: 130 | W131: 1.273121892 | X131: 1.138752163 | Y131: 131 | Z131: 130 | AA131: 1.28380456 | AB131: 1.15576171 | AC131: 131 | AD131: 130 | AE131: 2.442097567 | AF131: 1.407804555 | AG131: 131 | AH131: 130 | AI131: 0.4801396234 | AJ131: 0.4683772234 | AK131: 131 | AL131: 130 | AM131: 1.455590857 | AN131: 0.4292893219 | AO131: 131 | AP131: 130 | AQ131: 2.185979976 | AR131: 0 | AS131: 131 | AT131: 130 | AU131: 2.189771094 | AV131: 0.0060364386
A132: 132 | B132: 131 | C132: 0.2652455539 | D132: 2.875499667 | E132: 132 | F132: 131 | G132: 0.2720025002 | H132: 2.864691651 | I132: 132 | J132: 131 | K132: 1.447693786 | L132: 2.583666003 | M132: 132 | N132: 131 | O132: 2.480230103 | P132: 2.531622777 | Q132: 132 | R132: 131 | S132: 0.4630139259 | T132: 1.559160798 | U132: 132 | V132: 131 | W132: 1.274155505 | X132: 1.861247837 | Y132: 132 | Z132: 131 | AA132: 1.284789505 | AB132: 1.84423829 | AC132: 132 | AD132: 131 | AE132: 2.44236136 | AF132: 1.592195445 | AG132: 132 | AH132: 131 | AI132: 0.4802301034 | AJ132: 0.5316227766 | AK132: 132 | AL132: 131 | AM132: 1.455793176 | AN132: 0.5707106781 | AO132: 132 | AP132: 131 | AQ132: 2.187410591 | AR132: 1 | AS132: 132 | AT132: 131 | AU132: 2.191184437 | AV132: 0.9939635614
A133: 133 | B133: 132 | C133: 0.2663199449 | D133: 2.124500333 | E133: 133 | F133: 132 | G133: 0.273045967 | H133: 2.135308349 | I133: 133 | J133: 132 | K133: 1.447933174 | L133: 2.416333997 | M133: 133 | N133: 132 | O133: 2.480320583 | P133: 2.468377223 | Q133: 133 | R133: 132 | S133: 0.4631831986 | T133: 1.440839202 | U133: 133 | V133: 132 | W133: 1.275189118 | X133: 1.138752163 | Y133: 133 | Z133: 132 | AA133: 1.28577445 | AB133: 1.15576171 | AC133: 133 | AD133: 132 | AE133: 2.442625152 | AF133: 1.407804555 | AG133: 133 | AH133: 132 | AI133: 0.4803205834 | AJ133: 0.4683772234 | AK133: 133 | AL133: 132 | AM133: 1.455995496 | AN133: 0.4292893219 | AO133: 133 | AP133: 132 | AQ133: 2.188841206 | AR133: 0 | AS133: 133 | AT133: 132 | AU133: 2.192597781 | AV133: 0.0060364386
A134: 134 | B134: 133 | C134: 0.2673943359 | D134: 2.875499667 | E134: 134 | F134: 133 | G134: 0.2740894338 | H134: 2.864691651 | I134: 134 | J134: 133 | K134: 1.448172561 | L134: 2.583666003 | M134: 134 | N134: 133 | O134: 2.480411063 | P134: 2.531622777 | Q134: 134 | R134: 133 | S134: 0.4633524713 | T134: 1.559160798 | U134: 134 | V134: 133 | W134: 1.276222731 | X134: 1.861247837 | Y134: 134 | Z134: 133 | AA134: 1.286759395 | AB134: 1.84423829 | AC134: 134 | AD134: 133 | AE134: 2.442888945 | AF134: 1.592195445 | AG134: 134 | AH134: 133 | AI134: 0.4804110634 | AJ134: 0.5316227766 | AK134: 134 | AL134: 133 | AM134: 1.456197815 | AN134: 0.5707106781 | AO134: 134 | AP134: 133 | AQ134: 2.190271822 | AR134: 1 | AS134: 134 | AT134: 133 | AU134: 2.194011124 | AV134: 0.9939635614
A135: 135 | B135: 134 | C135: 0.2684687269 | D135: 2.124500333 | E135: 135 | F135: 134 | G135: 0.2751329006 | H135: 2.135308349 | I135: 135 | J135: 134 | K135: 1.448411949 | L135: 2.416333997 | M135: 135 | N135: 134 | O135: 2.480501543 | P135: 2.468377223 | Q135: 135 | R135: 134 | S135: 0.463521744 | T135: 1.440839202 | U135: 135 | V135: 134 | W135: 1.277256345 | X135: 1.138752163 | Y135: 135 | Z135: 134 | AA135: 1.28774434 | AB135: 1.15576171 | AC135: 135 | AD135: 134 | AE135: 2.443152737 | AF135: 1.407804555 | AG135: 135 | AH135: 134 | AI135: 0.4805015434 | AJ135: 0.4683772234 | AK135: 135 | AL135: 134 | AM135: 1.456400135 | AN135: 0.4292893219 | AO135: 135 | AP135: 134 | AQ135: 2.191702437 | AR135: 0 | AS135: 135 | AT135: 134 | AU135: 2.195424468 | AV135: 0.0060364386
A136: 136 | B136: 135 | C136: 0.2695431179 | D136: 2.875499667 | E136: 136 | F136: 135 | G136: 0.2761763674 | H136: 2.864691651 | I136: 136 | J136: 135 | K136: 1.448651337 | L136: 2.583666003 | M136: 136 | N136: 135 | O136: 2.480592023 | P136: 2.531622777 | Q136: 136 | R136: 135 | S136: 0.4636910167 | T136: 1.559160798 | U136: 136 | V136: 135 | W136: 1.278289958 | X136: 1.861247837 | Y136: 136 | Z136: 135 | AA136: 1.288729285 | AB136: 1.84423829 | AC136: 136 | AD136: 135 | AE136: 2.443416529 | AF136: 1.592195445 | AG136: 136 | AH136: 135 | AI136: 0.4805920234 | AJ136: 0.5316227766 | AK136: 136 | AL136: 135 | AM136: 1.456602454 | AN136: 0.5707106781 | AO136: 136 | AP136: 135 | AQ136: 2.193133052 | AR136: 1 | AS136: 136 | AT136: 135 | AU136: 2.196837811 | AV136: 0.9939635614
A137: 137 | B137: 136 | C137: 0.2706175089 | D137: 2.124500333 | E137: 137 | F137: 136 | G137: 0.2772198342 | H137: 2.135308349 | I137: 137 | J137: 136 | K137: 1.448890725 | L137: 2.416333997 | M137: 137 | N137: 136 | O137: 2.480682503 | P137: 2.468377223 | Q137: 137 | R137: 136 | S137: 0.4638602894 | T137: 1.440839202 | U137: 137 | V137: 136 | W137: 1.279323571 | X137: 1.138752163 | Y137: 137 | Z137: 136 | AA137: 1.28971423 | AB137: 1.15576171 | AC137: 137 | AD137: 136 | AE137: 2.443680322 | AF137: 1.407804555 | AG137: 137 | AH137: 136 | AI137: 0.4806825034 | AJ137: 0.4683772234 | AK137: 137 | AL137: 136 | AM137: 1.456804774 | AN137: 0.4292893219 | AO137: 137 | AP137: 136 | AQ137: 2.194563667 | AR137: 0 | AS137: 137 | AT137: 136 | AU137: 2.198251155 | AV137: 0.0060364386
A138: 138 | B138: 137 | C138: 0.2716918999 | D138: 2.875499667 | E138: 138 | F138: 137 | G138: 0.278263301 | H138: 2.864691651 | I138: 138 | J138: 137 | K138: 1.449130112 | L138: 2.583666003 | M138: 138 | N138: 137 | O138: 2.480772983 | P138: 2.531622777 | Q138: 138 | R138: 137 | S138: 0.4640295621 | T138: 1.559160798 | U138: 138 | V138: 137 | W138: 1.280357185 | X138: 1.861247837 | Y138: 138 | Z138: 137 | AA138: 1.290699175 | AB138: 1.84423829 | AC138: 138 | AD138: 137 | AE138: 2.443944114 | AF138: 1.592195445 | AG138: 138 | AH138: 137 | AI138: 0.4807729834 | AJ138: 0.5316227766 | AK138: 138 | AL138: 137 | AM138: 1.457007093 | AN138: 0.5707106781 | AO138: 138 | AP138: 137 | AQ138: 2.195994282 | AR138: 1 | AS138: 138 | AT138: 137 | AU138: 2.199664498 | AV138: 0.9939635614
A139: 139 | B139: 138 | C139: 0.2727662909 | D139: 2.124500333 | E139: 139 | F139: 138 | G139: 0.2793067678 | H139: 2.135308349 | I139: 139 | J139: 138 | K139: 1.4493695 | L139: 2.416333997 | M139: 139 | N139: 138 | O139: 2.480863463 | P139: 2.468377223 | Q139: 139 | R139: 138 | S139: 0.4641988348 | T139: 1.440839202 | U139: 139 | V139: 138 | W139: 1.281390798 | X139: 1.138752163 | Y139: 139 | Z139: 138 | AA139: 1.29168412 | AB139: 1.15576171 | AC139: 139 | AD139: 138 | AE139: 2.444207907 | AF139: 1.407804555 | AG139: 139 | AH139: 138 | AI139: 0.4808634634 | AJ139: 0.4683772234 | AK139: 139 | AL139: 138 | AM139: 1.457209413 | AN139: 0.4292893219 | AO139: 139 | AP139: 138 | AQ139: 2.197424898 | AR139: 0 | AS139: 139 | AT139: 138 | AU139: 2.201077842 | AV139: 0.0060364386
A140: 140 | B140: 139 | C140: 0.2738406819 | D140: 2.875499667 | E140: 140 | F140: 139 | G140: 0.2803502346 | H140: 2.864691651 | I140: 140 | J140: 139 | K140: 1.449608888 | L140: 2.583666003 | M140: 140 | N140: 139 | O140: 2.480953943 | P140: 2.531622777 | Q140: 140 | R140: 139 | S140: 0.4643681075 | T140: 1.559160798 | U140: 140 | V140: 139 | W140: 1.282424411 | X140: 1.861247837 | Y140: 140 | Z140: 139 | AA140: 1.292669065 | AB140: 1.84423829 | AC140: 140 | AD140: 139 | AE140: 2.444471699 | AF140: 1.592195445 | AG140: 140 | AH140: 139 | AI140: 0.4809539434 | AJ140: 0.5316227766 | AK140: 140 | AL140: 139 | AM140: 1.457411732 | AN140: 0.5707106781 | AO140: 140 | AP140: 139 | AQ140: 2.198855513 | AR140: 1 | AS140: 140 | AT140: 139 | AU140: 2.202491185 | AV140: 0.9939635614
A141: 141 | B141: 140 | C141: 0.2749150729 | D141: 2.124500333 | E141: 141 | F141: 140 | G141: 0.2813937014 | H141: 2.135308349 | I141: 141 | J141: 140 | K141: 1.449848275 | L141: 2.416333997 | M141: 141 | N141: 140 | O141: 2.481044423 | P141: 2.468377223 | Q141: 141 | R141: 140 | S141: 0.4645373802 | T141: 1.440839202 | U141: 141 | V141: 140 | W141: 1.283458025 | X141: 1.138752163 | Y141: 141 | Z141: 140 | AA141: 1.29365401 | AB141: 1.15576171 | AC141: 141 | AD141: 140 | AE141: 2.444735491 | AF141: 1.407804555 | AG141: 141 | AH141: 140 | AI141: 0.4810444234 | AJ141: 0.4683772234 | AK141: 141 | AL141: 140 | AM141: 1.457614052 | AN141: 0.4292893219 | AO141: 141 | AP141: 140 | AQ141: 2.200286128 | AR141: 0 | AS141: 141 | AT141: 140 | AU141: 2.203904529 | AV141: 0.0060364386
A142: 142 | B142: 141 | C142: 0.2759894639 | D142: 2.875499667 | E142: 142 | F142: 141 | G142: 0.2824371682 | H142: 2.864691651 | I142: 142 | J142: 141 | K142: 1.450087663 | L142: 2.583666003 | M142: 142 | N142: 141 | O142: 2.481134903 | P142: 2.531622777 | Q142: 142 | R142: 141 | S142: 0.4647066529 | T142: 1.559160798 | U142: 142 | V142: 141 | W142: 1.284491638 | X142: 1.861247837 | Y142: 142 | Z142: 141 | AA142: 1.294638955 | AB142: 1.84423829 | AC142: 142 | AD142: 141 | AE142: 2.444999284 | AF142: 1.592195445 | AG142: 142 | AH142: 141 | AI142: 0.4811349034 | AJ142: 0.5316227766 | AK142: 142 | AL142: 141 | AM142: 1.457816371 | AN142: 0.5707106781 | AO142: 142 | AP142: 141 | AQ142: 2.201716743 | AR142: 1 | AS142: 142 | AT142: 141 | AU142: 2.205317872 | AV142: 0.9939635614
A143: 143 | B143: 142 | C143: 0.2770638549 | D143: 2.124500333 | E143: 143 | F143: 142 | G143: 0.283480635 | H143: 2.135308349 | I143: 143 | J143: 142 | K143: 1.450327051 | L143: 2.416333997 | M143: 143 | N143: 142 | O143: 2.481225383 | P143: 2.468377223 | Q143: 143 | R143: 142 | S143: 0.4648759256 | T143: 1.440839202 | U143: 143 | V143: 142 | W143: 1.285525251 | X143: 1.138752163 | Y143: 143 | Z143: 142 | AA143: 1.2956239 | AB143: 1.15576171 | AC143: 143 | AD143: 142 | AE143: 2.445263076 | AF143: 1.407804555 | AG143: 143 | AH143: 142 | AI143: 0.4812253834 | AJ143: 0.4683772234 | AK143: 143 | AL143: 142 | AM143: 1.458018691 | AN143: 0.4292893219 | AO143: 143 | AP143: 142 | AQ143: 2.203147358 | AR143: 0 | AS143: 143 | AT143: 142 | AU143: 2.206731216 | AV143: 0.0060364386
A144: 144 | B144: 143 | C144: 0.2781382459 | D144: 2.875499667 | E144: 144 | F144: 143 | G144: 0.2845241018 | H144: 2.864691651 | I144: 144 | J144: 143 | K144: 1.450566438 | L144: 2.583666003 | M144: 144 | N144: 143 | O144: 2.481315863 | P144: 2.531622777 | Q144: 144 | R144: 143 | S144: 0.4650451983 | T144: 1.559160798 | U144: 144 | V144: 143 | W144: 1.286558864 | X144: 1.861247837 | Y144: 144 | Z144: 143 | AA144: 1.296608845 | AB144: 1.84423829 | AC144: 144 | AD144: 143 | AE144: 2.445526869 | AF144: 1.592195445 | AG144: 144 | AH144: 143 | AI144: 0.4813158634 | AJ144: 0.5316227766 | AK144: 144 | AL144: 143 | AM144: 1.45822101 | AN144: 0.5707106781 | AO144: 144 | AP144: 143 | AQ144: 2.204577974 | AR144: 1 | AS144: 144 | AT144: 143 | AU144: 2.208144559 | AV144: 0.9939635614
A145: 145 | B145: 144 | C145: 0.2792126369 | D145: 2.124500333 | E145: 145 | F145: 144 | G145: 0.2855675686 | H145: 2.135308349 | I145: 145 | J145: 144 | K145: 1.450805826 | L145: 2.416333997 | M145: 145 | N145: 144 | O145: 2.481406343 | P145: 2.468377223 | Q145: 145 | R145: 144 | S145: 0.465214471 | T145: 1.440839202 | U145: 145 | V145: 144 | W145: 1.287592478 | X145: 1.138752163 | Y145: 145 | Z145: 144 | AA145: 1.29759379 | AB145: 1.15576171 | AC145: 145 | AD145: 144 | AE145: 2.445790661 | AF145: 1.407804555 | AG145: 145 | AH145: 144 | AI145: 0.4814063434 | AJ145: 0.4683772234 | AK145: 145 | AL145: 144 | AM145: 1.45842333 | AN145: 0.4292893219 | AO145: 145 | AP145: 144 | AQ145: 2.206008589 | AR145: 0 | AS145: 145 | AT145: 144 | AU145: 2.209557903 | AV145: 0.0060364386
A146: 146 | B146: 145 | C146: 0.2802870279 | D146: 2.875499667 | E146: 146 | F146: 145 | G146: 0.2866110354 | H146: 2.864691651 | I146: 146 | J146: 145 | K146: 1.451045214 | L146: 2.583666003 | M146: 146 | N146: 145 | O146: 2.481496823 | P146: 2.531622777 | Q146: 146 | R146: 145 | S146: 0.4653837437 | T146: 1.559160798 | U146: 146 | V146: 145 | W146: 1.288626091 | X146: 1.861247837 | Y146: 146 | Z146: 145 | AA146: 1.298578735 | AB146: 1.84423829 | AC146: 146 | AD146: 145 | AE146: 2.446054453 | AF146: 1.592195445 | AG146: 146 | AH146: 145 | AI146: 0.4814968234 | AJ146: 0.5316227766 | AK146: 146 | AL146: 145 | AM146: 1.458625649 | AN146: 0.5707106781 | AO146: 146 | AP146: 145 | AQ146: 2.207439204 | AR146: 1 | AS146: 146 | AT146: 145 | AU146: 2.210971246 | AV146: 0.9939635614
A147: 147 | B147: 146 | C147: 0.2813614189 | D147: 2.124500333 | E147: 147 | F147: 146 | G147: 0.2876545022 | H147: 2.135308349 | I147: 147 | J147: 146 | K147: 1.451284602 | L147: 2.416333997 | M147: 147 | N147: 146 | O147: 2.481587303 | P147: 2.468377223 | Q147: 147 | R147: 146 | S147: 0.4655530164 | T147: 1.440839202 | U147: 147 | V147: 146 | W147: 1.289659704 | X147: 1.138752163 | Y147: 147 | Z147: 146 | AA147: 1.29956368 | AB147: 1.15576171 | AC147: 147 | AD147: 146 | AE147: 2.446318246 | AF147: 1.407804555 | AG147: 147 | AH147: 146 | AI147: 0.4815873034 | AJ147: 0.4683772234 | AK147: 147 | AL147: 146 | AM147: 1.458827969 | AN147: 0.4292893219 | AO147: 147 | AP147: 146 | AQ147: 2.208869819 | AR147: 0 | AS147: 147 | AT147: 146 | AU147: 2.21238459 | AV147: 0.0060364386
A148: 148 | B148: 147 | C148: 0.2824358099 | D148: 2.875499667 | E148: 148 | F148: 147 | G148: 0.288697969 | H148: 2.864691651 | I148: 148 | J148: 147 | K148: 1.451523989 | L148: 2.583666003 | M148: 148 | N148: 147 | O148: 2.481677783 | P148: 2.531622777 | Q148: 148 | R148: 147 | S148: 0.4657222891 | T148: 1.559160798 | U148: 148 | V148: 147 | W148: 1.290693318 | X148: 1.861247837 | Y148: 148 | Z148: 147 | AA148: 1.300548625 | AB148: 1.84423829 | AC148: 148 | AD148: 147 | AE148: 2.446582038 | AF148: 1.592195445 | AG148: 148 | AH148: 147 | AI148: 0.4816777834 | AJ148: 0.5316227766 | AK148: 148 | AL148: 147 | AM148: 1.459030288 | AN148: 0.5707106781 | AO148: 148 | AP148: 147 | AQ148: 2.210300434 | AR148: 1 | AS148: 148 | AT148: 147 | AU148: 2.213797933 | AV148: 0.9939635614
A149: 149 | B149: 148 | C149: 0.2835102009 | D149: 2.124500333 | E149: 149 | F149: 148 | G149: 0.2897414358 | H149: 2.135308349 | I149: 149 | J149: 148 | K149: 1.451763377 | L149: 2.416333997 | M149: 149 | N149: 148 | O149: 2.481768263 | P149: 2.468377223 | Q149: 149 | R149: 148 | S149: 0.4658915618 | T149: 1.440839202 | U149: 149 | V149: 148 | W149: 1.291726931 | X149: 1.138752163 | Y149: 149 | Z149: 148 | AA149: 1.30153357 | AB149: 1.15576171 | AC149: 149 | AD149: 148 | AE149: 2.446845831 | AF149: 1.407804555 | AG149: 149 | AH149: 148 | AI149: 0.4817682634 | AJ149: 0.4683772234 | AK149: 149 | AL149: 148 | AM149: 1.459232608 | AN149: 0.4292893219 | AO149: 149 | AP149: 148 | AQ149: 2.21173105 | AR149: 0 | AS149: 149 | AT149: 148 | AU149: 2.215211277 | AV149: 0.0060364386
A150: 150 | B150: 149 | C150: 0.2845845919 | D150: 2.875499667 | E150: 150 | F150: 149 | G150: 0.2907849026 | H150: 2.864691651 | I150: 150 | J150: 149 | K150: 1.452002765 | L150: 2.583666003 | M150: 150 | N150: 149 | O150: 2.481858743 | P150: 2.531622777 | Q150: 150 | R150: 149 | S150: 0.4660608345 | T150: 1.559160798 | U150: 150 | V150: 149 | W150: 1.292760544 | X150: 1.861247837 | Y150: 150 | Z150: 149 | AA150: 1.302518515 | AB150: 1.84423829 | AC150: 150 | AD150: 149 | AE150: 2.447109623 | AF150: 1.592195445 | AG150: 150 | AH150: 149 | AI150: 0.4818587434 | AJ150: 0.5316227766 | AK150: 150 | AL150: 149 | AM150: 1.459434927 | AN150: 0.5707106781 | AO150: 150 | AP150: 149 | AQ150: 2.213161665 | AR150: 1 | AS150: 150 | AT150: 149 | AU150: 2.21662462 | AV150: 0.9939635614
A151: 151 | B151: 150 | C151: 0.2856589829 | D151: 2.124500333 | E151: 151 | F151: 150 | G151: 0.2918283694 | H151: 2.135308349 | I151: 151 | J151: 150 | K151: 1.452242152 | L151: 2.416333997 | M151: 151 | N151: 150 | O151: 2.481949223 | P151: 2.468377223 | Q151: 151 | R151: 150 | S151: 0.4662301072 | T151: 1.440839202 | U151: 151 | V151: 150 | W151: 1.293794158 | X151: 1.138752163 | Y151: 151 | Z151: 150 | AA151: 1.30350346 | AB151: 1.15576171 | AC151: 151 | AD151: 150 | AE151: 2.447373415 | AF151: 1.407804555 | AG151: 151 | AH151: 150 | AI151: 0.4819492234 | AJ151: 0.4683772234 | AK151: 151 | AL151: 150 | AM151: 1.459637247 | AN151: 0.4292893219 | AO151: 151 | AP151: 150 | AQ151: 2.21459228 | AR151: 0 | AS151: 151 | AT151: 150 | AU151: 2.218037964 | AV151: 0.0060364386
A152: 152 | B152: 151 | C152: 0.2867333739 | D152: 2.875499667 | E152: 152 | F152: 151 | G152: 0.2928718362 | H152: 2.864691651 | I152: 152 | J152: 151 | K152: 1.45248154 | L152: 2.583666003 | M152: 152 | N152: 151 | O152: 2.482039703 | P152: 2.531622777 | Q152: 152 | R152: 151 | S152: 0.4663993799 | T152: 1.559160798 | U152: 152 | V152: 151 | W152: 1.294827771 | X152: 1.861247837 | Y152: 152 | Z152: 151 | AA152: 1.304488405 | AB152: 1.84423829 | AC152: 152 | AD152: 151 | AE152: 2.447637208 | AF152: 1.592195445 | AG152: 152 | AH152: 151 | AI152: 0.4820397034 | AJ152: 0.5316227766 | AK152: 152 | AL152: 151 | AM152: 1.459839566 | AN152: 0.5707106781 | AO152: 152 | AP152: 151 | AQ152: 2.216022895 | AR152: 1 | AS152: 152 | AT152: 151 | AU152: 2.219451307 | AV152: 0.9939635614
A153: 153 | B153: 152 | C153: 0.2878077649 | D153: 2.124500333 | E153: 153 | F153: 152 | G153: 0.293915303 | H153: 2.135308349 | I153: 153 | J153: 152 | K153: 1.452720928 | L153: 2.416333997 | M153: 153 | N153: 152 | O153: 2.482130183 | P153: 2.468377223 | Q153: 153 | R153: 152 | S153: 0.4665686526 | T153: 1.440839202 | U153: 153 | V153: 152 | W153: 1.295861384 | X153: 1.138752163 | Y153: 153 | Z153: 152 | AA153: 1.30547335 | AB153: 1.15576171 | AC153: 153 | AD153: 152 | AE153: 2.447901 | AF153: 1.407804555 | AG153: 153 | AH153: 152 | AI153: 0.4821301834 | AJ153: 0.4683772234 | AK153: 153 | AL153: 152 | AM153: 1.460041886 | AN153: 0.4292893219 | AO153: 153 | AP153: 152 | AQ153: 2.21745351 | AR153: 0 | AS153: 153 | AT153: 152 | AU153: 2.220864651 | AV153: 0.0060364386
A154: 154 | B154: 153 | C154: 0.2888821559 | D154: 2.875499667 | E154: 154 | F154: 153 | G154: 0.2949587698 | H154: 2.864691651 | I154: 154 | J154: 153 | K154: 1.452960315 | L154: 2.583666003 | M154: 154 | N154: 153 | O154: 2.482220663 | P154: 2.531622777 | Q154: 154 | R154: 153 | S154: 0.4667379253 | T154: 1.559160798 | U154: 154 | V154: 153 | W154: 1.296894997 | X154: 1.861247837 | Y154: 154 | Z154: 153 | AA154: 1.306458295 | AB154: 1.84423829 | AC154: 154 | AD154: 153 | AE154: 2.448164793 | AF154: 1.592195445 | AG154: 154 | AH154: 153 | AI154: 0.4822206634 | AJ154: 0.5316227766 | AK154: 154 | AL154: 153 | AM154: 1.460244205 | AN154: 0.5707106781 | AO154: 154 | AP154: 153 | AQ154: 2.218884126 | AR154: 1 | AS154: 154 | AT154: 153 | AU154: 2.222277994 | AV154: 0.9939635614
A155: 155 | B155: 154 | C155: 0.2899565469 | D155: 2.124500333 | E155: 155 | F155: 154 | G155: 0.2960022366 | H155: 2.135308349 | I155: 155 | J155: 154 | K155: 1.453199703 | L155: 2.416333997 | M155: 155 | N155: 154 | O155: 2.482311143 | P155: 2.468377223 | Q155: 155 | R155: 154 | S155: 0.466907198 | T155: 1.440839202 | U155: 155 | V155: 154 | W155: 1.297928611 | X155: 1.138752163 | Y155: 155 | Z155: 154 | AA155: 1.30744324 | AB155: 1.15576171 | AC155: 155 | AD155: 154 | AE155: 2.448428585 | AF155: 1.407804555 | AG155: 155 | AH155: 154 | AI155: 0.4823111434 | AJ155: 0.4683772234 | AK155: 155 | AL155: 154 | AM155: 1.460446525 | AN155: 0.4292893219 | AO155: 155 | AP155: 154 | AQ155: 2.220314741 | AR155: 0 | AS155: 155 | AT155: 154 | AU155: 2.223691338 | AV155: 0.0060364386
A156: 156 | B156: 155 | C156: 0.2910309379 | D156: 2.875499667 | E156: 156 | F156: 155 | G156: 0.2970457034 | H156: 2.864691651 | I156: 156 | J156: 155 | K156: 1.453439091 | L156: 2.583666003 | M156: 156 | N156: 155 | O156: 2.482401623 | P156: 2.531622777 | Q156: 156 | R156: 155 | S156: 0.4670764707 | T156: 1.559160798 | U156: 156 | V156: 155 | W156: 1.298962224 | X156: 1.861247837 | Y156: 156 | Z156: 155 | AA156: 1.308428185 | AB156: 1.84423829 | AC156: 156 | AD156: 155 | AE156: 2.448692377 | AF156: 1.592195445 | AG156: 156 | AH156: 155 | AI156: 0.4824016234 | AJ156: 0.5316227766 | AK156: 156 | AL156: 155 | AM156: 1.460648844 | AN156: 0.5707106781 | AO156: 156 | AP156: 155 | AQ156: 2.221745356 | AR156: 1 | AS156: 156 | AT156: 155 | AU156: 2.225104681 | AV156: 0.9939635614
A157: 157 | B157: 156 | C157: 0.2921053289 | D157: 2.124500333 | E157: 157 | F157: 156 | G157: 0.2980891702 | H157: 2.135308349 | I157: 157 | J157: 156 | K157: 1.453678479 | L157: 2.416333997 | M157: 157 | N157: 156 | O157: 2.482492103 | P157: 2.468377223 | Q157: 157 | R157: 156 | S157: 0.4672457434 | T157: 1.440839202 | U157: 157 | V157: 156 | W157: 1.299995837 | X157: 1.138752163 | Y157: 157 | Z157: 156 | AA157: 1.30941313 | AB157: 1.15576171 | AC157: 157 | AD157: 156 | AE157: 2.44895617 | AF157: 1.407804555 | AG157: 157 | AH157: 156 | AI157: 0.4824921034 | AJ157: 0.4683772234 | AK157: 157 | AL157: 156 | AM157: 1.460851164 | AN157: 0.4292893219 | AO157: 157 | AP157: 156 | AQ157: 2.223175971 | AR157: 0 | AS157: 157 | AT157: 156 | AU157: 2.226518025 | AV157: 0.0060364386
A158: 158 | B158: 157 | C158: 0.2931797199 | D158: 2.875499667 | E158: 158 | F158: 157 | G158: 0.299132637 | H158: 2.864691651 | I158: 158 | J158: 157 | K158: 1.453917866 | L158: 2.583666003 | M158: 158 | N158: 157 | O158: 2.482582583 | P158: 2.531622777 | Q158: 158 | R158: 157 | S158: 0.4674150161 | T158: 1.559160798 | U158: 158 | V158: 157 | W158: 1.301029451 | X158: 1.861247837 | Y158: 158 | Z158: 157 | AA158: 1.310398075 | AB158: 1.84423829 | AC158: 158 | AD158: 157 | AE158: 2.449219962 | AF158: 1.592195445 | AG158: 158 | AH158: 157 | AI158: 0.4825825834 | AJ158: 0.5316227766 | AK158: 158 | AL158: 157 | AM158: 1.461053483 | AN158: 0.5707106781 | AO158: 158 | AP158: 157 | AQ158: 2.224606586 | AR158: 1 | AS158: 158 | AT158: 157 | AU158: 2.227931368 | AV158: 0.9939635614
A159: 159 | B159: 158 | C159: 0.2942541109 | D159: 2.124500333 | E159: 159 | F159: 158 | G159: 0.3001761038 | H159: 2.135308349 | I159: 159 | J159: 158 | K159: 1.454157254 | L159: 2.416333997 | M159: 159 | N159: 158 | O159: 2.482673063 | P159: 2.468377223 | Q159: 159 | R159: 158 | S159: 0.4675842888 | T159: 1.440839202 | U159: 159 | V159: 158 | W159: 1.302063064 | X159: 1.138752163 | Y159: 159 | Z159: 158 | AA159: 1.31138302 | AB159: 1.15576171 | AC159: 159 | AD159: 158 | AE159: 2.449483755 | AF159: 1.407804555 | AG159: 159 | AH159: 158 | AI159: 0.4826730634 | AJ159: 0.4683772234 | AK159: 159 | AL159: 158 | AM159: 1.461255803 | AN159: 0.4292893219 | AO159: 159 | AP159: 158 | AQ159: 2.226037202 | AR159: 0 | AS159: 159 | AT159: 158 | AU159: 2.229344712 | AV159: 0.0060364386
A160: 160 | B160: 159 | C160: 0.2953285019 | D160: 2.875499667 | E160: 160 | F160: 159 | G160: 0.3012195706 | H160: 2.864691651 | I160: 160 | J160: 159 | K160: 1.454396642 | L160: 2.583666003 | M160: 160 | N160: 159 | O160: 2.482763543 | P160: 2.531622777 | Q160: 160 | R160: 159 | S160: 0.4677535615 | T160: 1.559160798 | U160: 160 | V160: 159 | W160: 1.303096677 | X160: 1.861247837 | Y160: 160 | Z160: 159 | AA160: 1.312367965 | AB160: 1.84423829 | AC160: 160 | AD160: 159 | AE160: 2.449747547 | AF160: 1.592195445 | AG160: 160 | AH160: 159 | AI160: 0.4827635434 | AJ160: 0.5316227766 | AK160: 160 | AL160: 159 | AM160: 1.461458122 | AN160: 0.5707106781 | AO160: 160 | AP160: 159 | AQ160: 2.227467817 | AR160: 1 | AS160: 160 | AT160: 159 | AU160: 2.230758055 | AV160: 0.9939635614
A161: 161 | B161: 160 | C161: 0.2964028929 | D161: 2.124500333 | E161: 161 | F161: 160 | G161: 0.3022630374 | H161: 2.135308349 | I161: 161 | J161: 160 | K161: 1.454636029 | L161: 2.416333997 | M161: 161 | N161: 160 | O161: 2.482854023 | P161: 2.468377223 | Q161: 161 | R161: 160 | S161: 0.4679228342 | T161: 1.440839202 | U161: 161 | V161: 160 | W161: 1.304130291 | X161: 1.138752163 | Y161: 161 | Z161: 160 | AA161: 1.31335291 | AB161: 1.15576171 | AC161: 161 | AD161: 160 | AE161: 2.450011339 | AF161: 1.407804555 | AG161: 161 | AH161: 160 | AI161: 0.4828540234 | AJ161: 0.4683772234 | AK161: 161 | AL161: 160 | AM161: 1.461660442 | AN161: 0.4292893219 | AO161: 161 | AP161: 160 | AQ161: 2.228898432 | AR161: 0 | AS161: 161 | AT161: 160 | AU161: 2.232171399 | AV161: 0.0060364386
A162: 162 | B162: 161 | C162: 0.2974772839 | D162: 2.875499667 | E162: 162 | F162: 161 | G162: 0.3033065042 | H162: 2.864691651 | I162: 162 | J162: 161 | K162: 1.454875417 | L162: 2.583666003 | M162: 162 | N162: 161 | O162: 2.482944503 | P162: 2.531622777 | Q162: 162 | R162: 161 | S162: 0.4680921069 | T162: 1.559160798 | U162: 162 | V162: 161 | W162: 1.305163904 | X162: 1.861247837 | Y162: 162 | Z162: 161 | AA162: 1.314337855 | AB162: 1.84423829 | AC162: 162 | AD162: 161 | AE162: 2.450275132 | AF162: 1.592195445 | AG162: 162 | AH162: 161 | AI162: 0.4829445034 | AJ162: 0.5316227766 | AK162: 162 | AL162: 161 | AM162: 1.461862761 | AN162: 0.5707106781 | AO162: 162 | AP162: 161 | AQ162: 2.230329047 | AR162: 1 | AS162: 162 | AT162: 161 | AU162: 2.233584742 | AV162: 0.9939635614
A163: 163 | B163: 162 | C163: 0.2985516749 | D163: 2.124500333 | E163: 163 | F163: 162 | G163: 0.304349971 | H163: 2.135308349 | I163: 163 | J163: 162 | K163: 1.455114805 | L163: 2.416333997 | M163: 163 | N163: 162 | O163: 2.483034983 | P163: 2.468377223 | Q163: 163 | R163: 162 | S163: 0.4682613796 | T163: 1.440839202 | U163: 163 | V163: 162 | W163: 1.306197517 | X163: 1.138752163 | Y163: 163 | Z163: 162 | AA163: 1.3153228 | AB163: 1.15576171 | AC163: 163 | AD163: 162 | AE163: 2.450538924 | AF163: 1.407804555 | AG163: 163 | AH163: 162 | AI163: 0.4830349834 | AJ163: 0.4683772234 | AK163: 163 | AL163: 162 | AM163: 1.462065081 | AN163: 0.4292893219 | AO163: 163 | AP163: 162 | AQ163: 2.231759662 | AR163: 0 | AS163: 163 | AT163: 162 | AU163: 2.234998086 | AV163: 0.0060364386
A164: 164 | B164: 163 | C164: 0.2996260659 | D164: 2.875499667 | E164: 164 | F164: 163 | G164: 0.3053934378 | H164: 2.864691651 | I164: 164 | J164: 163 | K164: 1.455354192 | L164: 2.583666003 | M164: 164 | N164: 163 | O164: 2.483125463 | P164: 2.531622777 | Q164: 164 | R164: 163 | S164: 0.4684306523 | T164: 1.559160798 | U164: 164 | V164: 163 | W164: 1.30723113 | X164: 1.861247837 | Y164: 164 | Z164: 163 | AA164: 1.316307745 | AB164: 1.84423829 | AC164: 164 | AD164: 163 | AE164: 2.450802717 | AF164: 1.592195445 | AG164: 164 | AH164: 163 | AI164: 0.4831254634 | AJ164: 0.5316227766 | AK164: 164 | AL164: 163 | AM164: 1.4622674 | AN164: 0.5707106781 | AO164: 164 | AP164: 163 | AQ164: 2.233190278 | AR164: 1 | AS164: 164 | AT164: 163 | AU164: 2.236411429 | AV164: 0.9939635614
A165: 165 | B165: 164 | C165: 0.3007004569 | D165: 2.124500333 | E165: 165 | F165: 164 | G165: 0.3064369046 | H165: 2.135308349 | I165: 165 | J165: 164 | K165: 1.45559358 | L165: 2.416333997 | M165: 165 | N165: 164 | O165: 2.483215943 | P165: 2.468377223 | Q165: 165 | R165: 164 | S165: 0.468599925 | T165: 1.440839202 | U165: 165 | V165: 164 | W165: 1.308264744 | X165: 1.138752163 | Y165: 165 | Z165: 164 | AA165: 1.31729269 | AB165: 1.15576171 | AC165: 165 | AD165: 164 | AE165: 2.451066509 | AF165: 1.407804555 | AG165: 165 | AH165: 164 | AI165: 0.4832159434 | AJ165: 0.4683772234 | AK165: 165 | AL165: 164 | AM165: 1.46246972 | AN165: 0.4292893219 | AO165: 165 | AP165: 164 | AQ165: 2.234620893 | AR165: 0 | AS165: 165 | AT165: 164 | AU165: 2.237824773 | AV165: 0.0060364386
A166: 166 | B166: 165 | C166: 0.3017748479 | D166: 2.875499667 | E166: 166 | F166: 165 | G166: 0.3074803714 | H166: 2.864691651 | I166: 166 | J166: 165 | K166: 1.455832968 | L166: 2.583666003 | M166: 166 | N166: 165 | O166: 2.483306423 | P166: 2.531622777 | Q166: 166 | R166: 165 | S166: 0.4687691977 | T166: 1.559160798 | U166: 166 | V166: 165 | W166: 1.309298357 | X166: 1.861247837 | Y166: 166 | Z166: 165 | AA166: 1.318277635 | AB166: 1.84423829 | AC166: 166 | AD166: 165 | AE166: 2.451330301 | AF166: 1.592195445 | AG166: 166 | AH166: 165 | AI166: 0.4833064234 | AJ166: 0.5316227766 | AK166: 166 | AL166: 165 | AM166: 1.462672039 | AN166: 0.5707106781 | AO166: 166 | AP166: 165 | AQ166: 2.236051508 | AR166: 1 | AS166: 166 | AT166: 165 | AU166: 2.239238116 | AV166: 0.9939635614
A167: 167 | B167: 166 | C167: 0.3028492389 | D167: 2.124500333 | E167: 167 | F167: 166 | G167: 0.3085238382 | H167: 2.135308349 | I167: 167 | J167: 166 | K167: 1.456072355 | L167: 2.416333997 | M167: 167 | N167: 166 | O167: 2.483396903 | P167: 2.468377223 | Q167: 167 | R167: 166 | S167: 0.4689384704 | T167: 1.440839202 | U167: 167 | V167: 166 | W167: 1.31033197 | X167: 1.138752163 | Y167: 167 | Z167: 166 | AA167: 1.31926258 | AB167: 1.15576171 | AC167: 167 | AD167: 166 | AE167: 2.451594094 | AF167: 1.407804555 | AG167: 167 | AH167: 166 | AI167: 0.4833969034 | AJ167: 0.4683772234 | AK167: 167 | AL167: 166 | AM167: 1.462874359 | AN167: 0.4292893219 | AO167: 167 | AP167: 166 | AQ167: 2.237482123 | AR167: 0 | AS167: 167 | AT167: 166 | AU167: 2.24065146 | AV167: 0.0060364386
A168: 168 | B168: 167 | C168: 0.3039236299 | D168: 2.875499667 | E168: 168 | F168: 167 | G168: 0.309567305 | H168: 2.864691651 | I168: 168 | J168: 167 | K168: 1.456311743 | L168: 2.583666003 | M168: 168 | N168: 167 | O168: 2.483487383 | P168: 2.531622777 | Q168: 168 | R168: 167 | S168: 0.4691077431 | T168: 1.559160798 | U168: 168 | V168: 167 | W168: 1.311365584 | X168: 1.861247837 | Y168: 168 | Z168: 167 | AA168: 1.320247525 | AB168: 1.84423829 | AC168: 168 | AD168: 167 | AE168: 2.451857886 | AF168: 1.592195445 | AG168: 168 | AH168: 167 | AI168: 0.4834873834 | AJ168: 0.5316227766 | AK168: 168 | AL168: 167 | AM168: 1.463076678 | AN168: 0.5707106781 | AO168: 168 | AP168: 167 | AQ168: 2.238912738 | AR168: 1 | AS168: 168 | AT168: 167 | AU168: 2.242064803 | AV168: 0.9939635614
A169: 169 | B169: 168 | C169: 0.3049980209 | D169: 2.124500333 | E169: 169 | F169: 168 | G169: 0.3106107718 | H169: 2.135308349 | I169: 169 | J169: 168 | K169: 1.456551131 | L169: 2.416333997 | M169: 169 | N169: 168 | O169: 2.483577863 | P169: 2.468377223 | Q169: 169 | R169: 168 | S169: 0.4692770158 | T169: 1.440839202 | U169: 169 | V169: 168 | W169: 1.312399197 | X169: 1.138752163 | Y169: 169 | Z169: 168 | AA169: 1.32123247 | AB169: 1.15576171 | AC169: 169 | AD169: 168 | AE169: 2.452121679 | AF169: 1.407804555 | AG169: 169 | AH169: 168 | AI169: 0.4835778634 | AJ169: 0.4683772234 | AK169: 169 | AL169: 168 | AM169: 1.463278998 | AN169: 0.4292893219 | AO169: 169 | AP169: 168 | AQ169: 2.240343354 | AR169: 0 | AS169: 169 | AT169: 168 | AU169: 2.243478147 | AV169: 0.0060364386
A170: 170 | B170: 169 | C170: 0.3060724119 | D170: 2.875499667 | E170: 170 | F170: 169 | G170: 0.3116542386 | H170: 2.864691651 | I170: 170 | J170: 169 | K170: 1.456790519 | L170: 2.583666003 | M170: 170 | N170: 169 | O170: 2.483668343 | P170: 2.531622777 | Q170: 170 | R170: 169 | S170: 0.4694462885 | T170: 1.559160798 | U170: 170 | V170: 169 | W170: 1.31343281 | X170: 1.861247837 | Y170: 170 | Z170: 169 | AA170: 1.322217415 | AB170: 1.84423829 | AC170: 170 | AD170: 169 | AE170: 2.452385471 | AF170: 1.592195445 | AG170: 170 | AH170: 169 | AI170: 0.4836683434 | AJ170: 0.5316227766 | AK170: 170 | AL170: 169 | AM170: 1.463481317 | AN170: 0.5707106781 | AO170: 170 | AP170: 169 | AQ170: 2.241773969 | AR170: 1 | AS170: 170 | AT170: 169 | AU170: 2.24489149 | AV170: 0.9939635614
A171: 171 | B171: 170 | C171: 0.3071468029 | D171: 2.124500333 | E171: 171 | F171: 170 | G171: 0.3126977054 | H171: 2.135308349 | I171: 171 | J171: 170 | K171: 1.457029906 | L171: 2.416333997 | M171: 171 | N171: 170 | O171: 2.483758823 | P171: 2.468377223 | Q171: 171 | R171: 170 | S171: 0.4696155612 | T171: 1.440839202 | U171: 171 | V171: 170 | W171: 1.314466424 | X171: 1.138752163 | Y171: 171 | Z171: 170 | AA171: 1.32320236 | AB171: 1.15576171 | AC171: 171 | AD171: 170 | AE171: 2.452649263 | AF171: 1.407804555 | AG171: 171 | AH171: 170 | AI171: 0.4837588234 | AJ171: 0.4683772234 | AK171: 171 | AL171: 170 | AM171: 1.463683637 | AN171: 0.4292893219 | AO171: 171 | AP171: 170 | AQ171: 2.243204584 | AR171: 0 | AS171: 171 | AT171: 170 | AU171: 2.246304834 | AV171: 0.0060364386
A172: 172 | B172: 171 | C172: 0.3082211939 | D172: 2.875499667 | E172: 172 | F172: 171 | G172: 0.3137411722 | H172: 2.864691651 | I172: 172 | J172: 171 | K172: 1.457269294 | L172: 2.583666003 | M172: 172 | N172: 171 | O172: 2.483849303 | P172: 2.531622777 | Q172: 172 | R172: 171 | S172: 0.4697848339 | T172: 1.559160798 | U172: 172 | V172: 171 | W172: 1.315500037 | X172: 1.861247837 | Y172: 172 | Z172: 171 | AA172: 1.324187305 | AB172: 1.84423829 | AC172: 172 | AD172: 171 | AE172: 2.452913056 | AF172: 1.592195445 | AG172: 172 | AH172: 171 | AI172: 0.4838493034 | AJ172: 0.5316227766 | AK172: 172 | AL172: 171 | AM172: 1.463885956 | AN172: 0.5707106781 | AO172: 172 | AP172: 171 | AQ172: 2.244635199 | AR172: 1 | AS172: 172 | AT172: 171 | AU172: 2.247718177 | AV172: 0.9939635614
A173: 173 | B173: 172 | C173: 0.3092955849 | D173: 2.124500333 | E173: 173 | F173: 172 | G173: 0.314784639 | H173: 2.135308349 | I173: 173 | J173: 172 | K173: 1.457508682 | L173: 2.416333997 | M173: 173 | N173: 172 | O173: 2.483939783 | P173: 2.468377223 | Q173: 173 | R173: 172 | S173: 0.4699541066 | T173: 1.440839202 | U173: 173 | V173: 172 | W173: 1.31653365 | X173: 1.138752163 | Y173: 173 | Z173: 172 | AA173: 1.32517225 | AB173: 1.15576171 | AC173: 173 | AD173: 172 | AE173: 2.453176848 | AF173: 1.407804555 | AG173: 173 | AH173: 172 | AI173: 0.4839397834 | AJ173: 0.4683772234 | AK173: 173 | AL173: 172 | AM173: 1.464088276 | AN173: 0.4292893219 | AO173: 173 | AP173: 172 | AQ173: 2.246065814 | AR173: 0 | AS173: 173 | AT173: 172 | AU173: 2.249131521 | AV173: 0.0060364386
A174: 174 | B174: 173 | C174: 0.3103699759 | D174: 2.875499667 | E174: 174 | F174: 173 | G174: 0.3158281058 | H174: 2.864691651 | I174: 174 | J174: 173 | K174: 1.457748069 | L174: 2.583666003 | M174: 174 | N174: 173 | O174: 2.484030263 | P174: 2.531622777 | Q174: 174 | R174: 173 | S174: 0.4701233793 | T174: 1.559160798 | U174: 174 | V174: 173 | W174: 1.317567263 | X174: 1.861247837 | Y174: 174 | Z174: 173 | AA174: 1.326157195 | AB174: 1.84423829 | AC174: 174 | AD174: 173 | AE174: 2.453440641 | AF174: 1.592195445 | AG174: 174 | AH174: 173 | AI174: 0.4840302634 | AJ174: 0.5316227766 | AK174: 174 | AL174: 173 | AM174: 1.464290595 | AN174: 0.5707106781 | AO174: 174 | AP174: 173 | AQ174: 2.24749643 | AR174: 1 | AS174: 174 | AT174: 173 | AU174: 2.250544864 | AV174: 0.9939635614
A175: 175 | B175: 174 | C175: 0.3114443669 | D175: 2.124500333 | E175: 175 | F175: 174 | G175: 0.3168715726 | H175: 2.135308349 | I175: 175 | J175: 174 | K175: 1.457987457 | L175: 2.416333997 | M175: 175 | N175: 174 | O175: 2.484120743 | P175: 2.468377223 | Q175: 175 | R175: 174 | S175: 0.470292652 | T175: 1.440839202 | U175: 175 | V175: 174 | W175: 1.318600877 | X175: 1.138752163 | Y175: 175 | Z175: 174 | AA175: 1.32714214 | AB175: 1.15576171 | AC175: 175 | AD175: 174 | AE175: 2.453704433 | AF175: 1.407804555 | AG175: 175 | AH175: 174 | AI175: 0.4841207434 | AJ175: 0.4683772234 | AK175: 175 | AL175: 174 | AM175: 1.464492915 | AN175: 0.4292893219 | AO175: 175 | AP175: 174 | AQ175: 2.248927045 | AR175: 0 | AS175: 175 | AT175: 174 | AU175: 2.251958208 | AV175: 0.0060364386
A176: 176 | B176: 175 | C176: 0.3125187579 | D176: 2.875499667 | E176: 176 | F176: 175 | G176: 0.3179150394 | H176: 2.864691651 | I176: 176 | J176: 175 | K176: 1.458226845 | L176: 2.583666003 | M176: 176 | N176: 175 | O176: 2.484211223 | P176: 2.531622777 | Q176: 176 | R176: 175 | S176: 0.4704619247 | T176: 1.559160798 | U176: 176 | V176: 175 | W176: 1.31963449 | X176: 1.861247837 | Y176: 176 | Z176: 175 | AA176: 1.328127085 | AB176: 1.84423829 | AC176: 176 | AD176: 175 | AE176: 2.453968225 | AF176: 1.592195445 | AG176: 176 | AH176: 175 | AI176: 0.4842112234 | AJ176: 0.5316227766 | AK176: 176 | AL176: 175 | AM176: 1.464695234 | AN176: 0.5707106781 | AO176: 176 | AP176: 175 | AQ176: 2.25035766 | AR176: 1 | AS176: 176 | AT176: 175 | AU176: 2.253371551 | AV176: 0.9939635614
A177: 177 | B177: 176 | C177: 0.3135931489 | D177: 2.124500333 | E177: 177 | F177: 176 | G177: 0.3189585062 | H177: 2.135308349 | I177: 177 | J177: 176 | K177: 1.458466232 | L177: 2.416333997 | M177: 177 | N177: 176 | O177: 2.484301703 | P177: 2.468377223 | Q177: 177 | R177: 176 | S177: 0.4706311974 | T177: 1.440839202 | U177: 177 | V177: 176 | W177: 1.320668103 | X177: 1.138752163 | Y177: 177 | Z177: 176 | AA177: 1.32911203 | AB177: 1.15576171 | AC177: 177 | AD177: 176 | AE177: 2.454232018 | AF177: 1.407804555 | AG177: 177 | AH177: 176 | AI177: 0.4843017034 | AJ177: 0.4683772234 | AK177: 177 | AL177: 176 | AM177: 1.464897554 | AN177: 0.4292893219 | AO177: 177 | AP177: 176 | AQ177: 2.251788275 | AR177: 0 | AS177: 177 | AT177: 176 | AU177: 2.254784895 | AV177: 0.0060364386
A178: 178 | B178: 177 | C178: 0.3146675399 | D178: 2.875499667 | E178: 178 | F178: 177 | G178: 0.320001973 | H178: 2.864691651 | I178: 178 | J178: 177 | K178: 1.45870562 | L178: 2.583666003 | M178: 178 | N178: 177 | O178: 2.484392183 | P178: 2.531622777 | Q178: 178 | R178: 177 | S178: 0.4708004701 | T178: 1.559160798 | U178: 178 | V178: 177 | W178: 1.321701717 | X178: 1.861247837 | Y178: 178 | Z178: 177 | AA178: 1.330096975 | AB178: 1.84423829 | AC178: 178 | AD178: 177 | AE178: 2.45449581 | AF178: 1.592195445 | AG178: 178 | AH178: 177 | AI178: 0.4843921834 | AJ178: 0.5316227766 | AK178: 178 | AL178: 177 | AM178: 1.465099873 | AN178: 0.5707106781 | AO178: 178 | AP178: 177 | AQ178: 2.25321889 | AR178: 1 | AS178: 178 | AT178: 177 | AU178: 2.256198238 | AV178: 0.9939635614
A179: 179 | B179: 178 | C179: 0.3157419309 | D179: 2.124500333 | E179: 179 | F179: 178 | G179: 0.3210454398 | H179: 2.135308349 | I179: 179 | J179: 178 | K179: 1.458945008 | L179: 2.416333997 | M179: 179 | N179: 178 | O179: 2.484482663 | P179: 2.468377223 | Q179: 179 | R179: 178 | S179: 0.4709697428 | T179: 1.440839202 | U179: 179 | V179: 178 | W179: 1.32273533 | X179: 1.138752163 | Y179: 179 | Z179: 178 | AA179: 1.33108192 | AB179: 1.15576171 | AC179: 179 | AD179: 178 | AE179: 2.454759603 | AF179: 1.407804555 | AG179: 179 | AH179: 178 | AI179: 0.4844826634 | AJ179: 0.4683772234 | AK179: 179 | AL179: 178 | AM179: 1.465302193 | AN179: 0.4292893219 | AO179: 179 | AP179: 178 | AQ179: 2.254649506 | AR179: 0 | AS179: 179 | AT179: 178 | AU179: 2.257611582 | AV179: 0.0060364386
A180: 180 | B180: 179 | C180: 0.3168163219 | D180: 2.875499667 | E180: 180 | F180: 179 | G180: 0.3220889066 | H180: 2.864691651 | I180: 180 | J180: 179 | K180: 1.459184396 | L180: 2.583666003 | M180: 180 | N180: 179 | O180: 2.484573143 | P180: 2.531622777 | Q180: 180 | R180: 179 | S180: 0.4711390155 | T180: 1.559160798 | U180: 180 | V180: 179 | W180: 1.323768943 | X180: 1.861247837 | Y180: 180 | Z180: 179 | AA180: 1.332066865 | AB180: 1.84423829 | AC180: 180 | AD180: 179 | AE180: 2.455023395 | AF180: 1.592195445 | AG180: 180 | AH180: 179 | AI180: 0.4845731434 | AJ180: 0.5316227766 | AK180: 180 | AL180: 179 | AM180: 1.465504512 | AN180: 0.5707106781 | AO180: 180 | AP180: 179 | AQ180: 2.256080121 | AR180: 1 | AS180: 180 | AT180: 179 | AU180: 2.259024925 | AV180: 0.9939635614
A181: 181 | B181: 180 | C181: 0.3178907129 | D181: 2.124500333 | E181: 181 | F181: 180 | G181: 0.3231323734 | H181: 2.135308349 | I181: 181 | J181: 180 | K181: 1.459423783 | L181: 2.416333997 | M181: 181 | N181: 180 | O181: 2.484663623 | P181: 2.468377223 | Q181: 181 | R181: 180 | S181: 0.4713082882 | T181: 1.440839202 | U181: 181 | V181: 180 | W181: 1.324802557 | X181: 1.138752163 | Y181: 181 | Z181: 180 | AA181: 1.33305181 | AB181: 1.15576171 | AC181: 181 | AD181: 180 | AE181: 2.455287187 | AF181: 1.407804555 | AG181: 181 | AH181: 180 | AI181: 0.4846636234 | AJ181: 0.4683772234 | AK181: 181 | AL181: 180 | AM181: 1.465706832 | AN181: 0.4292893219 | AO181: 181 | AP181: 180 | AQ181: 2.257510736 | AR181: 0 | AS181: 181 | AT181: 180 | AU181: 2.260438269 | AV181: 0.0060364386
A182: 182 | B182: 181 | C182: 0.3189651039 | D182: 2.875499667 | E182: 182 | F182: 181 | G182: 0.3241758402 | H182: 2.864691651 | I182: 182 | J182: 181 | K182: 1.459663171 | L182: 2.583666003 | M182: 182 | N182: 181 | O182: 2.484754103 | P182: 2.531622777 | Q182: 182 | R182: 181 | S182: 0.4714775609 | T182: 1.559160798 | U182: 182 | V182: 181 | W182: 1.32583617 | X182: 1.861247837 | Y182: 182 | Z182: 181 | AA182: 1.334036755 | AB182: 1.84423829 | AC182: 182 | AD182: 181 | AE182: 2.45555098 | AF182: 1.592195445 | AG182: 182 | AH182: 181 | AI182: 0.4847541034 | AJ182: 0.5316227766 | AK182: 182 | AL182: 181 | AM182: 1.465909151 | AN182: 0.5707106781 | AO182: 182 | AP182: 181 | AQ182: 2.258941351 | AR182: 1 | AS182: 182 | AT182: 181 | AU182: 2.261851612 | AV182: 0.9939635614
A183: 183 | B183: 182 | C183: 0.3200394949 | D183: 2.124500333 | E183: 183 | F183: 182 | G183: 0.325219307 | H183: 2.135308349 | I183: 183 | J183: 182 | K183: 1.459902559 | L183: 2.416333997 | M183: 183 | N183: 182 | O183: 2.484844583 | P183: 2.468377223 | Q183: 183 | R183: 182 | S183: 0.4716468336 | T183: 1.440839202 | U183: 183 | V183: 182 | W183: 1.326869783 | X183: 1.138752163 | Y183: 183 | Z183: 182 | AA183: 1.3350217 | AB183: 1.15576171 | AC183: 183 | AD183: 182 | AE183: 2.455814772 | AF183: 1.407804555 | AG183: 183 | AH183: 182 | AI183: 0.4848445834 | AJ183: 0.4683772234 | AK183: 183 | AL183: 182 | AM183: 1.466111471 | AN183: 0.4292893219 | AO183: 183 | AP183: 182 | AQ183: 2.260371966 | AR183: 0 | AS183: 183 | AT183: 182 | AU183: 2.263264956 | AV183: 0.0060364386
A184: 184 | B184: 183 | C184: 0.3211138859 | D184: 2.875499667 | E184: 184 | F184: 183 | G184: 0.3262627738 | H184: 2.864691651 | I184: 184 | J184: 183 | K184: 1.460141946 | L184: 2.583666003 | M184: 184 | N184: 183 | O184: 2.484935063 | P184: 2.531622777 | Q184: 184 | R184: 183 | S184: 0.4718161063 | T184: 1.559160798 | U184: 184 | V184: 183 | W184: 1.327903396 | X184: 1.861247837 | Y184: 184 | Z184: 183 | AA184: 1.336006645 | AB184: 1.84423829 | AC184: 184 | AD184: 183 | AE184: 2.456078565 | AF184: 1.592195445 | AG184: 184 | AH184: 183 | AI184: 0.4849350634 | AJ184: 0.5316227766 | AK184: 184 | AL184: 183 | AM184: 1.46631379 | AN184: 0.5707106781 | AO184: 184 | AP184: 183 | AQ184: 2.261802582 | AR184: 1 | AS184: 184 | AT184: 183 | AU184: 2.264678299 | AV184: 0.9939635614
A185: 185 | B185: 184 | C185: 0.3221882769 | D185: 2.124500333 | E185: 185 | F185: 184 | G185: 0.3273062406 | H185: 2.135308349 | I185: 185 | J185: 184 | K185: 1.460381334 | L185: 2.416333997 | M185: 185 | N185: 184 | O185: 2.485025543 | P185: 2.468377223 | Q185: 185 | R185: 184 | S185: 0.471985379 | T185: 1.440839202 | U185: 185 | V185: 184 | W185: 1.32893701 | X185: 1.138752163 | Y185: 185 | Z185: 184 | AA185: 1.33699159 | AB185: 1.15576171 | AC185: 185 | AD185: 184 | AE185: 2.456342357 | AF185: 1.407804555 | AG185: 185 | AH185: 184 | AI185: 0.4850255434 | AJ185: 0.4683772234 | AK185: 185 | AL185: 184 | AM185: 1.46651611 | AN185: 0.4292893219 | AO185: 185 | AP185: 184 | AQ185: 2.263233197 | AR185: 0 | AS185: 185 | AT185: 184 | AU185: 2.266091643 | AV185: 0.0060364386
A186: 186 | B186: 185 | C186: 0.3232626679 | D186: 2.875499667 | E186: 186 | F186: 185 | G186: 0.3283497074 | H186: 2.864691651 | I186: 186 | J186: 185 | K186: 1.460620722 | L186: 2.583666003 | M186: 186 | N186: 185 | O186: 2.485116023 | P186: 2.531622777 | Q186: 186 | R186: 185 | S186: 0.4721546517 | T186: 1.559160798 | U186: 186 | V186: 185 | W186: 1.329970623 | X186: 1.861247837 | Y186: 186 | Z186: 185 | AA186: 1.337976535 | AB186: 1.84423829 | AC186: 186 | AD186: 185 | AE186: 2.456606149 | AF186: 1.592195445 | AG186: 186 | AH186: 185 | AI186: 0.4851160234 | AJ186: 0.5316227766 | AK186: 186 | AL186: 185 | AM186: 1.466718429 | AN186: 0.5707106781 | AO186: 186 | AP186: 185 | AQ186: 2.264663812 | AR186: 1 | AS186: 186 | AT186: 185 | AU186: 2.267504986 | AV186: 0.9939635614
A187: 187 | B187: 186 | C187: 0.3243370589 | D187: 2.124500333 | E187: 187 | F187: 186 | G187: 0.3293931742 | H187: 2.135308349 | I187: 187 | J187: 186 | K187: 1.46086011 | L187: 2.416333997 | M187: 187 | N187: 186 | O187: 2.485206503 | P187: 2.468377223 | Q187: 187 | R187: 186 | S187: 0.4723239244 | T187: 1.440839202 | U187: 187 | V187: 186 | W187: 1.331004236 | X187: 1.138752163 | Y187: 187 | Z187: 186 | AA187: 1.33896148 | AB187: 1.15576171 | AC187: 187 | AD187: 186 | AE187: 2.456869942 | AF187: 1.407804555 | AG187: 187 | AH187: 186 | AI187: 0.4852065034 | AJ187: 0.4683772234 | AK187: 187 | AL187: 186 | AM187: 1.466920749 | AN187: 0.4292893219 | AO187: 187 | AP187: 186 | AQ187: 2.266094427 | AR187: 0 | AS187: 187 | AT187: 186 | AU187: 2.26891833 | AV187: 0.0060364386
A188: 188 | B188: 187 | C188: 0.3254114499 | D188: 2.875499667 | E188: 188 | F188: 187 | G188: 0.330436641 | H188: 2.864691651 | I188: 188 | J188: 187 | K188: 1.461099497 | L188: 2.583666003 | M188: 188 | N188: 187 | O188: 2.485296983 | P188: 2.531622777 | Q188: 188 | R188: 187 | S188: 0.4724931971 | T188: 1.559160798 | U188: 188 | V188: 187 | W188: 1.33203785 | X188: 1.861247837 | Y188: 188 | Z188: 187 | AA188: 1.339946425 | AB188: 1.84423829 | AC188: 188 | AD188: 187 | AE188: 2.457133734 | AF188: 1.592195445 | AG188: 188 | AH188: 187 | AI188: 0.4852969834 | AJ188: 0.5316227766 | AK188: 188 | AL188: 187 | AM188: 1.467123068 | AN188: 0.5707106781 | AO188: 188 | AP188: 187 | AQ188: 2.267525042 | AR188: 1 | AS188: 188 | AT188: 187 | AU188: 2.270331673 | AV188: 0.9939635614
A189: 189 | B189: 188 | C189: 0.3264858409 | D189: 2.124500333 | E189: 189 | F189: 188 | G189: 0.3314801078 | H189: 2.135308349 | I189: 189 | J189: 188 | K189: 1.461338885 | L189: 2.416333997 | M189: 189 | N189: 188 | O189: 2.485387463 | P189: 2.468377223 | Q189: 189 | R189: 188 | S189: 0.4726624698 | T189: 1.440839202 | U189: 189 | V189: 188 | W189: 1.333071463 | X189: 1.138752163 | Y189: 189 | Z189: 188 | AA189: 1.34093137 | AB189: 1.15576171 | AC189: 189 | AD189: 188 | AE189: 2.457397527 | AF189: 1.407804555 | AG189: 189 | AH189: 188 | AI189: 0.4853874634 | AJ189: 0.4683772234 | AK189: 189 | AL189: 188 | AM189: 1.467325388 | AN189: 0.4292893219 | AO189: 189 | AP189: 188 | AQ189: 2.268955658 | AR189: 0 | AS189: 189 | AT189: 188 | AU189: 2.271745017 | AV189: 0.0060364386
A190: 190 | B190: 189 | C190: 0.3275602319 | D190: 2.875499667 | E190: 190 | F190: 189 | G190: 0.3325235746 | H190: 2.864691651 | I190: 190 | J190: 189 | K190: 1.461578273 | L190: 2.583666003 | M190: 190 | N190: 189 | O190: 2.485477943 | P190: 2.531622777 | Q190: 190 | R190: 189 | S190: 0.4728317425 | T190: 1.559160798 | U190: 190 | V190: 189 | W190: 1.334105076 | X190: 1.861247837 | Y190: 190 | Z190: 189 | AA190: 1.341916315 | AB190: 1.84423829 | AC190: 190 | AD190: 189 | AE190: 2.457661319 | AF190: 1.592195445 | AG190: 190 | AH190: 189 | AI190: 0.4854779434 | AJ190: 0.5316227766 | AK190: 190 | AL190: 189 | AM190: 1.467527707 | AN190: 0.5707106781 | AO190: 190 | AP190: 189 | AQ190: 2.270386273 | AR190: 1 | AS190: 190 | AT190: 189 | AU190: 2.27315836 | AV190: 0.9939635614
A191: 191 | B191: 190 | C191: 0.3286346229 | D191: 2.124500333 | E191: 191 | F191: 190 | G191: 0.3335670414 | H191: 2.135308349 | I191: 191 | J191: 190 | K191: 1.46181766 | L191: 2.416333997 | M191: 191 | N191: 190 | O191: 2.485568423 | P191: 2.468377223 | Q191: 191 | R191: 190 | S191: 0.4730010152 | T191: 1.440839202 | U191: 191 | V191: 190 | W191: 1.33513869 | X191: 1.138752163 | Y191: 191 | Z191: 190 | AA191: 1.34290126 | AB191: 1.15576171 | AC191: 191 | AD191: 190 | AE191: 2.457925111 | AF191: 1.407804555 | AG191: 191 | AH191: 190 | AI191: 0.4855684234 | AJ191: 0.4683772234 | AK191: 191 | AL191: 190 | AM191: 1.467730027 | AN191: 0.4292893219 | AO191: 191 | AP191: 190 | AQ191: 2.271816888 | AR191: 0 | AS191: 191 | AT191: 190 | AU191: 2.274571704 | AV191: 0.0060364386
A192: 192 | B192: 191 | C192: 0.3297090139 | D192: 2.875499667 | E192: 192 | F192: 191 | G192: 0.3346105082 | H192: 2.864691651 | I192: 192 | J192: 191 | K192: 1.462057048 | L192: 2.583666003 | M192: 192 | N192: 191 | O192: 2.485658903 | P192: 2.531622777 | Q192: 192 | R192: 191 | S192: 0.4731702879 | T192: 1.559160798 | U192: 192 | V192: 191 | W192: 1.336172303 | X192: 1.861247837 | Y192: 192 | Z192: 191 | AA192: 1.343886205 | AB192: 1.84423829 | AC192: 192 | AD192: 191 | AE192: 2.458188904 | AF192: 1.592195445 | AG192: 192 | AH192: 191 | AI192: 0.4856589034 | AJ192: 0.5316227766 | AK192: 192 | AL192: 191 | AM192: 1.467932346 | AN192: 0.5707106781 | AO192: 192 | AP192: 191 | AQ192: 2.273247503 | AR192: 1 | AS192: 192 | AT192: 191 | AU192: 2.275985047 | AV192: 0.9939635614
A193: 193 | B193: =(A193-1) -> 192 | C193: =0.1245003329+B193*0.001074391 -> 0.3307834049 | D193: =IF(B193/2-INT(B193/2)<0.1,2.1245003329,2.8754996671) -> 2.124500333 | E193: 193 | F193: =(E193-1) -> 192 | G193: =0.1353083494+F193*0.0010434668 -> 0.335653975 | H193: =IF(F193/2-INT(F193/2)<0.1,2.1353083494,2.8646916506) -> 2.135308349 | I193: 193 | J193: =(I193-1) -> 192 | K193: =1.4163339973+J193*0.0002393877 -> 1.462296436 | L193: =IF(J193/2-INT(J193/2)<0.1,2.4163339973,2.5836660027) -> 2.416333997 | M193: 193 | N193: =(M193-1) -> 192 | O193: =2.4683772234+N193*0.00009048 -> 2.485749383 | P193: =IF(N193/2-INT(N193/2)<0.1,2.4683772234,2.5316227766) -> 2.468377223 | Q193: 193 | R193: =(Q193-1) -> 192 | S193: =0.4408392022+R193*0.0001692727 -> 0.4733395606 | T193: =IF(R193/2-INT(R193/2)<0.1,1.4408392022,1.5591607978) -> 1.440839202 | U193: 193 | V193: =(U193-1) -> 192 | W193: =1.1387521626+V193*0.0010336133 -> 1.337205916 | X193: =IF(V193/2-INT(V193/2)<0.1,1.1387521626,1.8612478374) -> 1.138752163 | Y193: 193 | Z193: =(Y193-1) -> 192 | AA193: =1.1557617104+Z193*0.000984945 -> 1.34487115 | AB193: =IF(Z193/2-INT(Z193/2)<0.1,1.1557617104,1.8442382896) -> 1.15576171 | AC193: 193 | AD193: =(AC193-1) -> 192 | AE193: =2.4078045554+AD193*0.0002637924 -> 2.458452696 | AF193: =IF(AD193/2-INT(AD193/2)<0.1,1.4078045554,1.5921954446) -> 1.407804555 | AG193: 193 | AH193: =(AG193-1) -> 192 | AI193: =0.4683772234+AH193*0.00009048 -> 0.4857493834 | AJ193: =IF(AH193/2-INT(AH193/2)<0.1,0.4683772234,0.5316227766) -> 0.4683772234 | AK193: 193 | AL193: =(AK193-1) -> 192 | AM193: =1.4292893219+AL193*0.0002023195 -> 1.468134666 | AN193: =IF(AL193/2-INT(AL193/2)<0.1,0.4292893219,0.5707106781) -> 0.4292893219 | AO193: 193 | AP193: =(AO193-1) -> 192 | AQ193: =2+AP193*0.0014306152 -> 2.274678118 | AR193: =IF(AP193/2-INT(AP193/2)<0.1,0,1) -> 0 | AS193: 193 | AT193: =(AS193-1) -> 192 | AU193: =2.0060364386+AT193*0.0014133435 -> 2.277398391 | AV193: =IF(AT193/2-INT(AT193/2)<0.1,0.0060364386,0.9939635614) -> 0.0060364386
A194: 194 | B194: 193 | C194: 0.3318577959 | D194: 2.875499667 | E194: 194 | F194: 193 | G194: 0.3366974418 | H194: 2.864691651 | I194: 194 | J194: 193 | K194: 1.462535823 | L194: 2.583666003 | M194: 194 | N194: 193 | O194: 2.485839863 | P194: 2.531622777 | Q194: 194 | R194: 193 | S194: 0.4735088333 | T194: 1.559160798 | U194: 194 | V194: 193 | W194: 1.338239529 | X194: 1.861247837 | Y194: 194 | Z194: 193 | AA194: 1.345856095 | AB194: 1.84423829 | AC194: 194 | AD194: 193 | AE194: 2.458716489 | AF194: 1.592195445 | AG194: 194 | AH194: 193 | AI194: 0.4858398634 | AJ194: 0.5316227766 | AK194: 194 | AL194: 193 | AM194: 1.468336985 | AN194: 0.5707106781 | AO194: 194 | AP194: 193 | AQ194: 2.276108734 | AR194: 1 | AS194: 194 | AT194: 193 | AU194: 2.278811734 | AV194: 0.9939635614
A195: 195 | B195: 194 | C195: 0.3329321869 | D195: 2.124500333 | E195: 195 | F195: 194 | G195: 0.3377409086 | H195: 2.135308349 | I195: 195 | J195: 194 | K195: 1.462775211 | L195: 2.416333997 | M195: 195 | N195: 194 | O195: 2.485930343 | P195: 2.468377223 | Q195: 195 | R195: 194 | S195: 0.473678106 | T195: 1.440839202 | U195: 195 | V195: 194 | W195: 1.339273143 | X195: 1.138752163 | Y195: 195 | Z195: 194 | AA195: 1.34684104 | AB195: 1.15576171 | AC195: 195 | AD195: 194 | AE195: 2.458980281 | AF195: 1.407804555 | AG195: 195 | AH195: 194 | AI195: 0.4859303434 | AJ195: 0.4683772234 | AK195: 195 | AL195: 194 | AM195: 1.468539305 | AN195: 0.4292893219 | AO195: 195 | AP195: 194 | AQ195: 2.277539349 | AR195: 0 | AS195: 195 | AT195: 194 | AU195: 2.280225078 | AV195: 0.0060364386
A196: 196 | B196: 195 | C196: 0.3340065779 | D196: 2.875499667 | E196: 196 | F196: 195 | G196: 0.3387843754 | H196: 2.864691651 | I196: 196 | J196: 195 | K196: 1.463014599 | L196: 2.583666003 | M196: 196 | N196: 195 | O196: 2.486020823 | P196: 2.531622777 | Q196: 196 | R196: 195 | S196: 0.4738473787 | T196: 1.559160798 | U196: 196 | V196: 195 | W196: 1.340306756 | X196: 1.861247837 | Y196: 196 | Z196: 195 | AA196: 1.347825985 | AB196: 1.84423829 | AC196: 196 | AD196: 195 | AE196: 2.459244073 | AF196: 1.592195445 | AG196: 196 | AH196: 195 | AI196: 0.4860208234 | AJ196: 0.5316227766 | AK196: 196 | AL196: 195 | AM196: 1.468741624 | AN196: 0.5707106781 | AO196: 196 | AP196: 195 | AQ196: 2.278969964 | AR196: 1 | AS196: 196 | AT196: 195 | AU196: 2.281638421 | AV196: 0.9939635614
A197: 197 | B197: 196 | C197: 0.3350809689 | D197: 2.124500333 | E197: 197 | F197: 196 | G197: 0.3398278422 | H197: 2.135308349 | I197: 197 | J197: 196 | K197: 1.463253987 | L197: 2.416333997 | M197: 197 | N197: 196 | O197: 2.486111303 | P197: 2.468377223 | Q197: 197 | R197: 196 | S197: 0.4740166514 | T197: 1.440839202 | U197: 197 | V197: 196 | W197: 1.341340369 | X197: 1.138752163 | Y197: 197 | Z197: 196 | AA197: 1.34881093 | AB197: 1.15576171 | AC197: 197 | AD197: 196 | AE197: 2.459507866 | AF197: 1.407804555 | AG197: 197 | AH197: 196 | AI197: 0.4861113034 | AJ197: 0.4683772234 | AK197: 197 | AL197: 196 | AM197: 1.468943944 | AN197: 0.4292893219 | AO197: 197 | AP197: 196 | AQ197: 2.280400579 | AR197: 0 | AS197: 197 | AT197: 196 | AU197: 2.283051765 | AV197: 0.0060364386
A198: 198 | B198: 197 | C198: 0.3361553599 | D198: 2.875499667 | E198: 198 | F198: 197 | G198: 0.340871309 | H198: 2.864691651 | I198: 198 | J198: 197 | K198: 1.463493374 | L198: 2.583666003 | M198: 198 | N198: 197 | O198: 2.486201783 | P198: 2.531622777 | Q198: 198 | R198: 197 | S198: 0.4741859241 | T198: 1.559160798 | U198: 198 | V198: 197 | W198: 1.342373983 | X198: 1.861247837 | Y198: 198 | Z198: 197 | AA198: 1.349795875 | AB198: 1.84423829 | AC198: 198 | AD198: 197 | AE198: 2.459771658 | AF198: 1.592195445 | AG198: 198 | AH198: 197 | AI198: 0.4862017834 | AJ198: 0.5316227766 | AK198: 198 | AL198: 197 | AM198: 1.469146263 | AN198: 0.5707106781 | AO198: 198 | AP198: 197 | AQ198: 2.281831194 | AR198: 1 | AS198: 198 | AT198: 197 | AU198: 2.284465108 | AV198: 0.9939635614
A199: 199 | B199: 198 | C199: 0.3372297509 | D199: 2.124500333 | E199: 199 | F199: 198 | G199: 0.3419147758 | H199: 2.135308349 | I199: 199 | J199: 198 | K199: 1.463732762 | L199: 2.416333997 | M199: 199 | N199: 198 | O199: 2.486292263 | P199: 2.468377223 | Q199: 199 | R199: 198 | S199: 0.4743551968 | T199: 1.440839202 | U199: 199 | V199: 198 | W199: 1.343407596 | X199: 1.138752163 | Y199: 199 | Z199: 198 | AA199: 1.35078082 | AB199: 1.15576171 | AC199: 199 | AD199: 198 | AE199: 2.460035451 | AF199: 1.407804555 | AG199: 199 | AH199: 198 | AI199: 0.4862922634 | AJ199: 0.4683772234 | AK199: 199 | AL199: 198 | AM199: 1.469348583 | AN199: 0.4292893219 | AO199: 199 | AP199: 198 | AQ199: 2.28326181 | AR199: 0 | AS199: 199 | AT199: 198 | AU199: 2.285878452 | AV199: 0.0060364386
A200: 200 | B200: 199 | C200: 0.3383041419 | D200: 2.875499667 | E200: 200 | F200: 199 | G200: 0.3429582426 | H200: 2.864691651 | I200: 200 | J200: 199 | K200: 1.46397215 | L200: 2.583666003 | M200: 200 | N200: 199 | O200: 2.486382743 | P200: 2.531622777 | Q200: 200 | R200: 199 | S200: 0.4745244695 | T200: 1.559160798 | U200: 200 | V200: 199 | W200: 1.344441209 | X200: 1.861247837 | Y200: 200 | Z200: 199 | AA200: 1.351765765 | AB200: 1.84423829 | AC200: 200 | AD200: 199 | AE200: 2.460299243 | AF200: 1.592195445 | AG200: 200 | AH200: 199 | AI200: 0.4863827434 | AJ200: 0.5316227766 | AK200: 200 | AL200: 199 | AM200: 1.469550902 | AN200: 0.5707106781 | AO200: 200 | AP200: 199 | AQ200: 2.284692425 | AR200: 1 | AS200: 200 | AT200: 199 | AU200: 2.287291795 | AV200: 0.9939635614
... 500 more rows

Sheet XLSTAT_20241223_164654_1_HID (hidden)
A1: Arbre | B1: 1 | C1: 2 | D1: 3 | E1: Global
A2: 1 | B2: 0.1176470588 | C2: 0.09195402299 | D2: 0.07486631016 | E2: 0.09042553191
A3: 2 | B3: 0.1208791209 | C3: 0.06896551724 | D3: 0.08163265306 | E3: 0.09017713366
A4: 3 | B4: 0.08520179372 | C4: 0.1122994652 | D4: 0.07629427793 | E4: 0.08751608752
A5: 4 | B5: 0.08097165992 | C5: 0.1028037383 | D5: 0.0845410628 | E5: 0.088
A6: 5 | B6: 0.07421875 | C6: 0.1086956522 | D6: 0.09151785714 | E6: 0.09100642398
A7: 6 | B7: 0.07142857143 | C7: 0.1102040816 | D7: 0.08686440678 | E7: 0.08850457782
A8: 7 | B8: 0.06691449814 | C8: 0.1235059761 | D8: 0.08847736626 | E8: 0.09145129225
A9: 8 | B9: 0.05904059041 | C9: 0.125984252 | D9: 0.0831643002 | E9: 0.08742632613
A10: 9 | B10: 0.05818181818 | C10: 0.1322957198 | D10: 0.07272727273 | E10: 0.08373904576
A11: 10 | B11: 0.05072463768 | C11: 0.1274131274 | D11: 0.08048289738 | E11: 0.08430232558
A12: 11 | B12: 0.05017921147 | C12: 0.1269230769 | D12: 0.07630522088 | E12: 0.08196721311
A13: 12 | B13: 0.05 | C13: 0.1153846154 | D13: 0.07414829659 | E13: 0.07795957652
A14: 13 | B14: 0.05693950178 | C14: 0.1153846154 | D14: 0.078 | E14: 0.08165225744
A15: 14 | B15: 0.05673758865 | C15: 0.1192307692 | D15: 0.066 | E15: 0.07677543186
A16: 15 | B16: 0.05673758865 | C16: 0.1149425287 | D16: 0.068 | E16: 0.07670182167
A17: 16 | B17: 0.05319148936 | C17: 0.1264367816 | D17: 0.066 | E17: 0.07766059444
A18: 17 | B18: 0.05319148936 | C18: 0.1149425287 | D18: 0.056 | E18: 0.06999041227
A19: 18 | B19: 0.04964539007 | C19: 0.1072796935 | D19: 0.048 | E19: 0.06327900288
A20: 19 | B20: 0.05319148936 | C20: 0.1072796935 | D20: 0.052 | E20: 0.06615532119
A21: 20 | B21: 0.05319148936 | C21: 0.1072796935 | D21: 0.046 | E21: 0.06327900288
A22: 21 | B22: 0.05319148936 | C22: 0.1072796935 | D22: 0.058 | E22: 0.0690316395
A23: 22 | B23: 0.05673758865 | C23: 0.1149425287 | D23: 0.054 | E23: 0.06999041227
A24: 23 | B24: 0.05673758865 | C24: 0.1149425287 | D24: 0.052 | E24: 0.0690316395
A25: 24 | B25: 0.06028368794 | C25: 0.1111111111 | D25: 0.046 | E25: 0.06615532119
A26: 25 | B26: 0.06028368794 | C26: 0.1034482759 | D26: 0.048 | E26: 0.06519654842
A27: 26 | B27: 0.06028368794 | C27: 0.1034482759 | D27: 0.05 | E27: 0.06615532119
A28: 27 | B28: 0.06028368794 | C28: 0.1034482759 | D28: 0.05 | E28: 0.06615532119
A29: 28 | B29: 0.06028368794 | C29: 0.1034482759 | D29: 0.048 | E29: 0.06519654842
A30: 29 | B30: 0.06028368794 | C30: 0.09578544061 | D30: 0.044 | E30: 0.06136145733
A31: 30 | B31: 0.06028368794 | C31: 0.09961685824 | D31: 0.04 | E31: 0.06040268456
A32: 31 | B32: 0.06028368794 | C32: 0.09961685824 | D32: 0.038 | E32: 0.05944391179
A33: 32 | B33: 0.06028368794 | C33: 0.09961685824 | D33: 0.036 | E33: 0.05848513902
A34: 33 | B34: 0.06028368794 | C34: 0.09578544061 | D34: 0.036 | E34: 0.05752636625
A35: 34 | B35: 0.06028368794 | C35: 0.09578544061 | D35: 0.034 | E35: 0.05656759348
A36: 35 | B36: 0.05673758865 | C36: 0.1034482759 | D36: 0.034 | E36: 0.05752636625
A37: 36 | B37: 0.06028368794 | C37: 0.1034482759 | D37: 0.032 | E37: 0.05752636625
A38: 37 | B38: 0.05319148936 | C38: 0.1034482759 | D38: 0.038 | E38: 0.05848513902
A39: 38 | B39: 0.05673758865 | C39: 0.09961685824 | D39: 0.038 | E39: 0.05848513902
A40: 39 | B40: 0.05319148936 | C40: 0.09961685824 | D40: 0.036 | E40: 0.05656759348
A41: 40 | B41: 0.05673758865 | C41: 0.09961685824 | D41: 0.036 | E41: 0.05752636625
A42: 41 | B42: 0.05673758865 | C42: 0.09578544061 | D42: 0.04 | E42: 0.05848513902
A43: 42 | B43: 0.05319148936 | C43: 0.09578544061 | D43: 0.04 | E43: 0.05752636625
A44: 43 | B44: 0.05319148936 | C44: 0.09578544061 | D44: 0.042 | E44: 0.05848513902
A45: 44 | B45: 0.05319148936 | C45: 0.09961685824 | D45: 0.04 | E45: 0.05848513902
A46: 45 | B46: 0.05673758865 | C46: 0.09961685824 | D46: 0.042 | E46: 0.06040268456
A47: 46 | B47: 0.05673758865 | C47: 0.09961685824 | D47: 0.04 | E47: 0.05944391179
A48: 47 | B48: 0.05673758865 | C48: 0.09961685824 | D48: 0.038 | E48: 0.05848513902
A49: 48 | B49: 0.05673758865 | C49: 0.09578544061 | D49: 0.038 | E49: 0.05752636625
A50: 49 | B50: 0.05673758865 | C50: 0.09578544061 | D50: 0.038 | E50: 0.05752636625
A51: 50 | B51: 0.05673758865 | C51: 0.09578544061 | D51: 0.04 | E51: 0.05848513902
A52: 51 | B52: 0.05673758865 | C52: 0.09578544061 | D52: 0.04 | E52: 0.05848513902
A53: 52 | B53: 0.05673758865 | C53: 0.09578544061 | D53: 0.038 | E53: 0.05752636625
A54: 53 | B54: 0.05673758865 | C54: 0.09578544061 | D54: 0.038 | E54: 0.05752636625
A55: 54 | B55: 0.05673758865 | C55: 0.09578544061 | D55: 0.038 | E55: 0.05752636625
A56: 55 | B56: 0.05673758865 | C56: 0.09578544061 | D56: 0.036 | E56: 0.05656759348
A57: 56 | B57: 0.05673758865 | C57: 0.09578544061 | D57: 0.036 | E57: 0.05656759348
A58: 57 | B58: 0.05673758865 | C58: 0.09578544061 | D58: 0.034 | E58: 0.05560882071
A59: 58 | B59: 0.05673758865 | C59: 0.09961685824 | D59: 0.036 | E59: 0.05752636625
A60: 59 | B60: 0.05673758865 | C60: 0.09961685824 | D60: 0.034 | E60: 0.05656759348
A61: 60 | B61: 0.05673758865 | C61: 0.09961685824 | D61: 0.036 | E61: 0.05752636625
A62: 61 | B62: 0.05319148936 | C62: 0.09961685824 | D62: 0.036 | E62: 0.05656759348
A63: 62 | B63: 0.05673758865 | C63: 0.09578544061 | D63: 0.036 | E63: 0.05656759348
A64: 63 | B64: 0.06028368794 | C64: 0.09578544061 | D64: 0.034 | E64: 0.05656759348
A65: 64 | B65: 0.05673758865 | C65: 0.09961685824 | D65: 0.034 | E65: 0.05656759348
A66: 65 | B66: 0.05673758865 | C66: 0.09578544061 | D66: 0.032 | E66: 0.05465004794
A67: 66 | B67: 0.05673758865 | C67: 0.09578544061 | D67: 0.032 | E67: 0.05465004794
A68: 67 | B68: 0.05673758865 | C68: 0.09195402299 | D68: 0.032 | E68: 0.05369127517
A69: 68 | B69: 0.05673758865 | C69: 0.09578544061 | D69: 0.032 | E69: 0.05465004794
A70: 69 | B70: 0.05673758865 | C70: 0.09578544061 | D70: 0.034 | E70: 0.05560882071
A71: 70 | B71: 0.05319148936 | C71: 0.09578544061 | D71: 0.034 | E71: 0.05465004794
A72: 71 | B72: 0.04964539007 | C72: 0.09578544061 | D72: 0.034 | E72: 0.05369127517
A73: 72 | B73: 0.05319148936 | C73: 0.09195402299 | D73: 0.034 | E73: 0.05369127517
A74: 73 | B74: 0.05319148936 | C74: 0.09195402299 | D74: 0.032 | E74: 0.0527325024
A75: 74 | B75: 0.05319148936 | C75: 0.09195402299 | D75: 0.032 | E75: 0.0527325024
A76: 75 | B76: 0.05319148936 | C76: 0.09578544061 | D76: 0.032 | E76: 0.05369127517
A77: 76 | B77: 0.05319148936 | C77: 0.09578544061 | D77: 0.032 | E77: 0.05369127517
A78: 77 | B78: 0.05319148936 | C78: 0.09578544061 | D78: 0.03 | E78: 0.0527325024
A79: 78 | B79: 0.05319148936 | C79: 0.09578544061 | D79: 0.03 | E79: 0.0527325024
A80: 79 | B80: 0.05319148936 | C80: 0.09578544061 | D80: 0.032 | E80: 0.05369127517
A81: 80 | B81: 0.05319148936 | C81: 0.09961685824 | D81: 0.032 | E81: 0.05465004794
A82: 81 | B82: 0.05319148936 | C82: 0.09961685824 | D82: 0.032 | E82: 0.05465004794
A83: 82 | B83: 0.05319148936 | C83: 0.09961685824 | D83: 0.032 | E83: 0.05465004794
A84: 83 | B84: 0.05673758865 | C84: 0.09961685824 | D84: 0.03 | E84: 0.05465004794
A85: 84 | B85: 0.05673758865 | C85: 0.09961685824 | D85: 0.03 | E85: 0.05465004794
A86: 85 | B86: 0.05319148936 | C86: 0.09961685824 | D86: 0.03 | E86: 0.05369127517
A87: 86 | B87: 0.05319148936 | C87: 0.09961685824 | D87: 0.03 | E87: 0.05369127517
A88: 87 | B88: 0.05319148936 | C88: 0.09961685824 | D88: 0.03 | E88: 0.05369127517
A89: 88 | B89: 0.05319148936 | C89: 0.09961685824 | D89: 0.03 | E89: 0.05369127517
A90: 89 | B90: 0.05319148936 | C90: 0.09961685824 | D90: 0.028 | E90: 0.0527325024
A91: 90 | B91: 0.05319148936 | C91: 0.09195402299 | D91: 0.028 | E91: 0.05081495686
A92: 91 | B92: 0.05319148936 | C92: 0.09578544061 | D92: 0.03 | E92: 0.0527325024
A93: 92 | B93: 0.05319148936 | C93: 0.09195402299 | D93: 0.03 | E93: 0.05177372963
A94: 93 | B94: 0.05319148936 | C94: 0.09578544061 | D94: 0.03 | E94: 0.0527325024
A95: 94 | B95: 0.05319148936 | C95: 0.09578544061 | D95: 0.028 | E95: 0.05177372963
A96: 95 | B96: 0.05319148936 | C96: 0.09578544061 | D96: 0.028 | E96: 0.05177372963
A97: 96 | B97: 0.05319148936 | C97: 0.09578544061 | D97: 0.028 | E97: 0.05177372963
A98: 97 | B98: 0.05319148936 | C98: 0.09578544061 | D98: 0.028 | E98: 0.05177372963
A99: 98 | B99: 0.05319148936 | C99: 0.09578544061 | D99: 0.028 | E99: 0.05177372963
A100: 99 | B100: 0.05319148936 | C100: 0.09578544061 | D100: 0.028 | E100: 0.05177372963
A101: 100 | B101: 0.05319148936 | C101: 0.09578544061 | D101: 0.028 | E101: 0.05177372963
A102: 101 | B102: 0.05319148936 | C102: 0.09578544061 | D102: 0.028 | E102: 0.05177372963
A103: 102 | B103: 0.05319148936 | C103: 0.09578544061 | D103: 0.028 | E103: 0.05177372963
A104: 103 | B104: 0.05319148936 | C104: 0.09578544061 | D104: 0.028 | E104: 0.05177372963
A105: 104 | B105: 0.05319148936 | C105: 0.09578544061 | D105: 0.028 | E105: 0.05177372963
A106: 105 | B106: 0.05319148936 | C106: 0.09578544061 | D106: 0.028 | E106: 0.05177372963
A107: 106 | B107: 0.05319148936 | C107: 0.09578544061 | D107: 0.028 | E107: 0.05177372963
A108: 107 | B108: 0.05319148936 | C108: 0.09578544061 | D108: 0.028 | E108: 0.05177372963
A109: 108 | B109: 0.05319148936 | C109: 0.09578544061 | D109: 0.028 | E109: 0.05177372963
A110: 109 | B110: 0.05319148936 | C110: 0.09578544061 | D110: 0.028 | E110: 0.05177372963
A111: 110 | B111: 0.05319148936 | C111: 0.09578544061 | D111: 0.028 | E111: 0.05177372963
A112: 111 | B112: 0.05319148936 | C112: 0.09578544061 | D112: 0.03 | E112: 0.0527325024
A113: 112 | B113: 0.05319148936 | C113: 0.09578544061 | D113: 0.03 | E113: 0.0527325024
A114: 113 | B114: 0.05319148936 | C114: 0.09195402299 | D114: 0.03 | E114: 0.05177372963
A115: 114 | B115: 0.05319148936 | C115: 0.09195402299 | D115: 0.03 | E115: 0.05177372963
A116: 115 | B116: 0.05319148936 | C116: 0.09195402299 | D116: 0.03 | E116: 0.05177372963
A117: 116 | B117: 0.05319148936 | C117: 0.08812260536 | D117: 0.03 | E117: 0.05081495686
A118: 117 | B118: 0.05319148936 | C118: 0.08812260536 | D118: 0.03 | E118: 0.05081495686
A119: 118 | B119: 0.05319148936 | C119: 0.08812260536 | D119: 0.03 | E119: 0.05081495686
A120: 119 | B120: 0.05319148936 | C120: 0.08812260536 | D120: 0.03 | E120: 0.05081495686
A121: 120 | B121: 0.05319148936 | C121: 0.08812260536 | D121: 0.028 | E121: 0.04985618408
A122: 121 | B122: 0.05319148936 | C122: 0.09195402299 | D122: 0.03 | E122: 0.05177372963
A123: 122 | B123: 0.05319148936 | C123: 0.09195402299 | D123: 0.028 | E123: 0.05081495686
A124: 123 | B124: 0.05319148936 | C124: 0.09195402299 | D124: 0.03 | E124: 0.05177372963
A125: 124 | B125: 0.05319148936 | C125: 0.09195402299 | D125: 0.03 | E125: 0.05177372963
A126: 125 | B126: 0.05319148936 | C126: 0.09195402299 | D126: 0.03 | E126: 0.05177372963
A127: 126 | B127: 0.05319148936 | C127: 0.09195402299 | D127: 0.03 | E127: 0.05177372963
A128: 127 | B128: 0.05319148936 | C128: 0.09195402299 | D128: 0.028 | E128: 0.05081495686
A129: 128 | B129: 0.05319148936 | C129: 0.09195402299 | D129: 0.028 | E129: 0.05081495686
A130: 129 | B130: 0.05319148936 | C130: 0.09195402299 | D130: 0.028 | E130: 0.05081495686
A131: 130 | B131: 0.05319148936 | C131: 0.09195402299 | D131: 0.03 | E131: 0.05177372963
A132: 131 | B132: 0.05319148936 | C132: 0.09195402299 | D132: 0.03 | E132: 0.05177372963
A133: 132 | B133: 0.05319148936 | C133: 0.09195402299 | D133: 0.03 | E133: 0.05177372963
A134: 133 | B134: 0.05319148936 | C134: 0.09195402299 | D134: 0.03 | E134: 0.05177372963
A135: 134 | B135: 0.05319148936 | C135: 0.09195402299 | D135: 0.028 | E135: 0.05081495686
A136: 135 | B136: 0.05319148936 | C136: 0.09195402299 | D136: 0.028 | E136: 0.05081495686
A137: 136 | B137: 0.05319148936 | C137: 0.09195402299 | D137: 0.028 | E137: 0.05081495686
A138: 137 | B138: 0.05319148936 | C138: 0.09195402299 | D138: 0.028 | E138: 0.05081495686
A139: 138 | B139: 0.05319148936 | C139: 0.09195402299 | D139: 0.026 | E139: 0.04985618408
A140: 139 | B140: 0.05319148936 | C140: 0.09195402299 | D140: 0.028 | E140: 0.05081495686
A141: 140 | B141: 0.05319148936 | C141: 0.09195402299 | D141: 0.024 | E141: 0.04889741131
A142: 141 | B142: 0.05319148936 | C142: 0.09195402299 | D142: 0.024 | E142: 0.04889741131
A143: 142 | B143: 0.05319148936 | C143: 0.09195402299 | D143: 0.024 | E143: 0.04889741131
A144: 143 | B144: 0.05319148936 | C144: 0.09195402299 | D144: 0.024 | E144: 0.04889741131
A145: 144 | B145: 0.05319148936 | C145: 0.09195402299 | D145: 0.024 | E145: 0.04889741131
A146: 145 | B146: 0.05319148936 | C146: 0.09195402299 | D146: 0.024 | E146: 0.04889741131
A147: 146 | B147: 0.05319148936 | C147: 0.09195402299 | D147: 0.026 | E147: 0.04985618408
A148: 147 | B148: 0.05319148936 | C148: 0.09195402299 | D148: 0.026 | E148: 0.04985618408
A149: 148 | B149: 0.05319148936 | C149: 0.09195402299 | D149: 0.026 | E149: 0.04985618408
A150: 149 | B150: 0.05319148936 | C150: 0.09195402299 | D150: 0.026 | E150: 0.04985618408
A151: 150 | B151: 0.05319148936 | C151: 0.09195402299 | D151: 0.026 | E151: 0.04985618408
A152: 151 | B152: 0.05319148936 | C152: 0.09195402299 | D152: 0.026 | E152: 0.04985618408
A153: 152 | B153: 0.05319148936 | C153: 0.09195402299 | D153: 0.026 | E153: 0.04985618408
A154: 153 | B154: 0.05319148936 | C154: 0.09195402299 | D154: 0.026 | E154: 0.04985618408
A155: 154 | B155: 0.05319148936 | C155: 0.09195402299 | D155: 0.026 | E155: 0.04985618408
A156: 155 | B156: 0.05319148936 | C156: 0.09195402299 | D156: 0.026 | E156: 0.04985618408
A157: 156 | B157: 0.05319148936 | C157: 0.09195402299 | D157: 0.024 | E157: 0.04889741131
A158: 157 | B158: 0.05319148936 | C158: 0.09195402299 | D158: 0.024 | E158: 0.04889741131
A159: 158 | B159: 0.05319148936 | C159: 0.09195402299 | D159: 0.024 | E159: 0.04889741131
A160: 159 | B160: 0.05319148936 | C160: 0.09195402299 | D160: 0.024 | E160: 0.04889741131
A161: 160 | B161: 0.05319148936 | C161: 0.09195402299 | D161: 0.024 | E161: 0.04889741131
A162: 161 | B162: 0.05319148936 | C162: 0.09195402299 | D162: 0.024 | E162: 0.04889741131
A163: 162 | B163: 0.05319148936 | C163: 0.09195402299 | D163: 0.024 | E163: 0.04889741131
A164: 163 | B164: 0.05319148936 | C164: 0.09195402299 | D164: 0.024 | E164: 0.04889741131
A165: 164 | B165: 0.05319148936 | C165: 0.09195402299 | D165: 0.024 | E165: 0.04889741131
A166: 165 | B166: 0.05319148936 | C166: 0.09195402299 | D166: 0.024 | E166: 0.04889741131
A167: 166 | B167: 0.05319148936 | C167: 0.09195402299 | D167: 0.022 | E167: 0.04793863854
A168: 167 | B168: 0.05319148936 | C168: 0.09195402299 | D168: 0.026 | E168: 0.04985618408
A169: 168 | B169: 0.05319148936 | C169: 0.09195402299 | D169: 0.026 | E169: 0.04985618408
A170: 169 | B170: 0.05319148936 | C170: 0.09578544061 | D170: 0.024 | E170: 0.04985618408
A171: 170 | B171: 0.05319148936 | C171: 0.09578544061 | D171: 0.024 | E171: 0.04985618408
A172: 171 | B172: 0.05319148936 | C172: 0.09578544061 | D172: 0.024 | E172: 0.04985618408
A173: 172 | B173: 0.05319148936 | C173: 0.09578544061 | D173: 0.024 | E173: 0.04985618408
A174: 173 | B174: 0.05319148936 | C174: 0.09578544061 | D174: 0.024 | E174: 0.04985618408
A175: 174 | B175: 0.05319148936 | C175: 0.09578544061 | D175: 0.024 | E175: 0.04985618408
A176: 175 | B176: 0.05319148936 | C176: 0.09578544061 | D176: 0.024 | E176: 0.04985618408
A177: 176 | B177: 0.05319148936 | C177: 0.09578544061 | D177: 0.024 | E177: 0.04985618408
A178: 177 | B178: 0.05319148936 | C178: 0.09578544061 | D178: 0.024 | E178: 0.04985618408
A179: 178 | B179: 0.05319148936 | C179: 0.09578544061 | D179: 0.024 | E179: 0.04985618408
A180: 179 | B180: 0.05319148936 | C180: 0.09195402299 | D180: 0.024 | E180: 0.04889741131
A181: 180 | B181: 0.05319148936 | C181: 0.09195402299 | D181: 0.024 | E181: 0.04889741131
A182: 181 | B182: 0.05319148936 | C182: 0.09195402299 | D182: 0.024 | E182: 0.04889741131
A183: 182 | B183: 0.05319148936 | C183: 0.09195402299 | D183: 0.024 | E183: 0.04889741131
A184: 183 | B184: 0.05319148936 | C184: 0.09195402299 | D184: 0.024 | E184: 0.04889741131
A185: 184 | B185: 0.05319148936 | C185: 0.09195402299 | D185: 0.024 | E185: 0.04889741131
A186: 185 | B186: 0.05319148936 | C186: 0.09578544061 | D186: 0.024 | E186: 0.04985618408
A187: 186 | B187: 0.05319148936 | C187: 0.09578544061 | D187: 0.022 | E187: 0.04889741131
A188: 187 | B188: 0.05319148936 | C188: 0.09578544061 | D188: 0.022 | E188: 0.04889741131
A189: 188 | B189: 0.05673758865 | C189: 0.09578544061 | D189: 0.022 | E189: 0.04985618408
A190: 189 | B190: 0.05673758865 | C190: 0.09578544061 | D190: 0.022 | E190: 0.04985618408
A191: 190 | B191: 0.05673758865 | C191: 0.09578544061 | D191: 0.022 | E191: 0.04985618408
A192: 191 | B192: 0.05673758865 | C192: 0.09578544061 | D192: 0.022 | E192: 0.04985618408
A193: 192 | B193: 0.05673758865 | C193: 0.09578544061 | D193: 0.022 | E193: 0.04985618408
A194: 193 | B194: 0.05673758865 | C194: 0.09578544061 | D194: 0.022 | E194: 0.04985618408
A195: 194 | B195: 0.05673758865 | C195: 0.09578544061 | D195: 0.022 | E195: 0.04985618408
A196: 195 | B196: 0.05673758865 | C196: 0.09578544061 | D196: 0.022 | E196: 0.04985618408
A197: 196 | B197: 0.05673758865 | C197: 0.09578544061 | D197: 0.024 | E197: 0.05081495686
A198: 197 | B198: 0.05673758865 | C198: 0.09578544061 | D198: 0.024 | E198: 0.05081495686
A199: 198 | B199: 0.05673758865 | C199: 0.09578544061 | D199: 0.022 | E199: 0.04985618408
A200: 199 | B200: 0.05673758865 | C200: 0.09578544061 | D200: 0.022 | E200: 0.04985618408
... 301 more rows
